{"text_format":"1","workbook":"xlsx","n_sheets":10,"sheets":["Introduktion","Filnavngivning","Tegnings- og dokumentliste","Etage","CCS","Indholdstype","Vidensområde","Tegningstype","Virksomhedstype","Løbenummer"],"not_rendered":{"charts":0,"images":51,"macros":1,"external_links":0,"defined_names":27,"comments":0,"pivot_tables":0},"unopened":[],"bounds":{"document_bytes":16777216,"sheet_cells":100000,"rows_first":2000,"rows_last":500,"rows_between":2000,"halvings":0,"cell_chars":16384,"cell_head_chars":4096},"cells_cut":0,"cells_raw":0,"read":"whole","date_system":"1900"}

{"sheet":"Introduktion","index":0,"n_rows":228,"n_cols":9,"rows_kept":228,"cut":false,"hidden":false,"merged":[[43,1,43,9],[54,1,54,9],[56,1,56,9],[10,3,10,9],[11,3,11,9],[12,3,12,9],[13,3,13,9],[32,1,32,9],[25,1,25,9],[20,1,20,9],[70,1,70,9],[88,1,88,9],[136,1,136,9],[164,1,164,9],[104,1,104,9],[106,3,106,9],[108,3,108,9],[110,1,110,9],[100,1,100,9],[102,1,102,9],[227,1,227,9],[175,1,175,9],[193,1,193,9],[166,1,166,9],[213,1,213,9],[225,1,225,9]]}
[]
[null,null,null,null,null,null,null,null,"Joakim Lambertsen, IKT-ansvarlig"]
[null,null,null,null,null,null,null,null,"AU Bygninger"]
[]
["1.0","Først vælges den filtype som skal navngives."]
[]
[]
[]
[]
[null,"Vælg mellem:"]
[null,"Dokument",null,"Vedrører f.eks. aftaler, økonomi, ansøgninger, tilladelser, analyser, referater, beskrivelser, orienteringer og tidsplaner."]
[null,"Tegninger",null,"Vedrører f.eks. planer, facader, snit, bygningsdelsudsnit, diagrammer og rummelige afblidninger."]
[null,"3D-model",null,"Vedrører f.eks. fagmodeller, fællesmodeller og arealforvaltningsmodeller."]
[null,"D&V-materiale",null,"Vedrører alt det materiale der skal bruges til at drifte og vedligeholde, samt KS-dokumentation og som ikke er et dokument, en tegning eller en 3D-model."]
[]
["2.0 ","Udfyld alle felter fremhævet med gult."]
[]
[]
[]
[]
[null,"Obligatoriske felter har en sort overskrift. Det er forskelligt - alt efter filtype - hvilke felter der er obligatoriske. \nVisse felter er valgfrie at udfylde, hvilket er fremhævet med en lys blå overskrift. F.eks."]
[]
[]
[]
[]
[null,"Feltet [N] Løbenummer kan tage ét til to sekunder om at opdatere, hvis pilene anvendes. Du kan vælge at bruge pilene eller selv skrive løbenummeret i feltet. "]
[]
["3.0 ","Giv en kort og sigende titel/emne"]
[]
[]
[]
[]
[null,"Feltet [Z] Title/Emne er et fritekstfelt, hvor det er muligt, at skrive en titel eller en emnebeskrivelse. Hold det kort og forståeligt. \nDer er en begrænsning på 35 karakterer i dette felt."]
[]
["4.0","Generer filnavn"]
[]
[]
[]
[]
[]
[]
[]
[]
[null,"Når de obligatoriske felter er udfyldt, kan filnavnet genereres. Klik på knappen \"Generer filnavn\", hvorefter filnavnet vil være synligt i det hvide felt."]
[]
["4.0","Kopier til tegnings- og dokumentliste"]
[]
[]
[]
[]
[]
[]
[]
[]
[null,"Ønskes filnavnet kopieret til tegnings- og dokumentlisten, klikkes på denne knap. Dette kræver at filnanvet er genereret først."]
[]
[null,"Ved tegninger og 3D-modeller kopieres både filnavnet og tegningsnummeret /modelnummeret til tegnings- og dokumentlisten. Se iøvrigt pkt. 6."]
[]
["5.0","Nulstil felter, hvis du vil slette alt."]
[]
[]
[]
[]
[]
[]
[]
[null,"Når der klikkes på \"Nulstil felter\" åbner en dialogboks, hvor det er muligt at fortryde."]
[]
["6.0","Specielt for tegninger og 3D-modeller"]
[]
[null,"Ved navngivning af tegninger og 3D-modeller er det muligt, at angive et interval af bygninger, som filen repræsenterer. Hvis filen omhandler flere bygninger vinges der af i afkrydsningsboksen."]
[]
[]
[]
[]
[]
[]
[]
[]
[null,"Vær opmærksom på at angive det mindste og største bygningsnummer korrekt."]
[]
[]
[]
[]
[]
[]
[]
[]
[null,"For tegninger og 3D-modeller genereres tegnings- eller modelnummeret samtidig med filnavnet."]
[]
[]
[]
[]
[]
[]
[]
[]
[]
["7.0","Specielt for D&V-materiale"]
[]
[null,"Først vælges [C] Indholdstype for filen og herefter skal der tilknyttes en klassifikationskode. Klassifikationskoden anvendes i Aarhus Universitets driftssystem og er med til at grupperer bygningsdele i meningsfulde \"klasser\"."]
[]
[null,"Valg af klassifikationskode hænger ofte sammen med dokumentet \"Bruttoliste for bygningsdele\" som anvendes under den digitale aflevering. Klassifikationssystemet hedder CCS."]
[]
[null,"Før klassifikationskode vægles skal der tages stilling til om bygningsdelen, som filen omhandler, er et teknisk system eller en komponent. Dette skal ses i en bred forstand og begrænser sig ikke kun til teknik såsom VVS, Vent. og EL, men også konstruktioner kan opfattes som hhv. et teknisk system eller en komponent."]
[]
[null,"Teknisk system",null,"Sammensatte og sammenhængende bygningsdele som udgør en teknisk helhed, herunder f.eks. tagkonstruktion, vægkonstruktion, ventialtionssytem og belysningsanlæg mv."]
[]
[null,"Komponenter",null,"Bygningsdele der udgør en grundlæggende enhed med en egenfunktion, f.eks. pumpe, filter, ventil, vindue, dørpumpe, bjælke mv."]
[]
[null,"Det kan være relevant at angive, hvilket tekniske system en komponent tilhører og dermed er underkomponent til. I så fald sættes et flueben i afkrydsningsboksen."]
[]
[]
[]
[]
[]
[]
[]
[]
[]
[]
[]
[]
[]
[]
[]
[]
[]
[]
[]
[]
[]
[]
[]
[]
[]
[null,"Opbygningen af klassifikationskoder, hvor en bygningsdel er underkomponent til en anden, følger princippet vist nedenfor."]
[]
[]
[]
[]
[]
[]
[]
[]
[]
[]
[]
[]
[]
[]
[]
[]
[]
[]
[]
[]
[]
[]
[]
[]
[]
["8.0","Tegnings- og dokumentliste"]
[]
[null,"I tegnings- og dokumentlisten findes de filnavne, tegningsnumre og modelnumre som er kopieret hertil fra filnavngivningsfanen. Det undersøges automatisk om et eller flere filnavne går igen."]
[]
[null,"Der kan sorteres på kolonnerne ved at klikke på pilene som vist nedenfor. Det er ligeledes muligt, at nulstille hele listen ved at klikke på knappen \"Nulstil tegnings- og dokumentliste\". En dialogboks åbnes automatisk, hvor det er muligt at fortryde."]
[]
[]
[]
[]
[]
[]
[]
[]
[null,"Parallelt med listen kan der importeres en særskilt liste over eksisterende filnavne fra stifinder, hvis man ønsker at overskrive disse med filnavnene fra tegnings- og dokumentlisten. "]
[]
[]
[]
[]
[]
[]
[]
[]
[]
[]
[]
[]
[]
[]
[]
[]
[]
[null,"Ved at klikke på knappe \"Hent eksisterende filnavne\" åbnes en dialogboks op, hvor stien til de eksisterende filer skal vælges. Når stien er fundet og der klikkes på OK, importeres de eksisterende filer, samt filtypen (Extension). Den valgte destination fremgår under overskriften af samme navn."]
[]
[]
[]
[]
[]
[]
[]
[]
[]
[]
[]
[]
[]
[]
[]
[]
[]
[]
[]
[null,"Herefter skal de nye og eksisterende filnavne sorteres for, at de rette filer overskrives med de nye filnavne. Dette gøres ved at markere et eksisterende filnavn og herefter klikke på knapperne \"Ryk op\" of Ryk ned\" og på den måde står det nye filnavn ud for det gamle."]
[]
[]
[]
[]
[]
[]
[]
[]
[]
[]
[]
[null,"Vær opmærksom på filtypen (Extension). Denne må ikke redigeres da det får direkte påvirkning på de eksisterende filer og kan beskadige dem."]
[]
[null,"Når sorteringen er som ønsket, klikkes der på knappen \"Omdøb filer\". Hvis det samme filnavn fremgår mere end én gang i listen med nye filnavne, vil det tydeligt fremgå med teksten \"Filnavnet findes allerede\" i rødt og det vil ikke være muligt at omdøbe de eksisterende filer før dette er rettet. "]

{"sheet":"Filnavngivning","index":1,"n_rows":45,"n_cols":26,"rows_kept":45,"cut":false,"hidden":false,"merged":[]}
[null,null,"Navngivning af filer"]
[]
[]
[null,null,"Vælg filtype",null,null,null,null,null,null,null,null,null,null,null,null,null,null,null,"Vælg filtype",null,"[L] Bygning",null,"Flere bygninger",null,null,"[I] ProjektID"]
[null,null,null,null,null,null,null,null,null,null,null,null,null,null,null,null,5,null,false,null,"",{"$f":"IF(W5,IF(MID(U5,2,1)=MID(U7,2,1),IF(MID(U5,3,1)=MID(U7,3,1),LEFT(U5,3)&\"x\",LEFT(U5,2)&\"xx\"),LEFT(U5,1)&\"xxx\"),U5)","v":""},false,null,null,""]
[null,null,null,null,null,null,null,null,null,null,null,null,null,null,null,null,6]
[null,null,null,null,null,null,null,null,null,null,null,null,null,null,null,null,7,null,true,null,""]
[null,null,"[L] Bygning",null,null,null,null,null,null,null,null,null,null,null,null,null,8,null,false]
[null,null,null,null,null,null,null,null,null,null,null,null,null,null,null,null,9,null,false]
[null,null,{"$f":"IF(W5,\"Mindste bygningsnr.\",\"\")","v":""},null,{"$f":"IF(W5,\"Største bygningsnr.\",\"\")","v":""},null,null,null,null,null,null,null,null,null,null,null,10]
[null,null,"[ I ] ProjektID",null,null,null,null,"CCS klassifikation",null,null,null,null,null,null,null,null,11]
[null,null,null,null,null,null,null,null,null,null,null,null,null,null,null,null,12,null,"CCS klassifikation",null,"Underkomponent"]
[null,null,null,null,null,null,null,null,null,null,null,null,null,null,null,null,13,null,false,null,false]
[null,null,"[H] Tegningstype",null,null,null,null,null,null,null,null,"Løbenummer (valgfri)",null,null,null,null,14,null,false,null,false]
[null,null,null,null,null,null,null,null,null,null,null,null,null,null,null,null,15]
[null,null,null,null,null,null,null,null,null,null,null,null,null,null,null,null,16,null,"Kode og løbrnr.",null,"Kode og løbrnr.",null,"Sammensat CCS"]
[null,null,"[E] Etage",null,null,null,null,null,null,null,null,null,null,null,null,null,17,null,"",{"$f":"IFERROR(IF(S13,RIGHT(S17,2)&S18&\"-\"&LEFT(S17,LEN(S17)-5),IF(S14,RIGHT(S17,3)&S18&\"-\"&LEFT(S17,LEN(S17)-6),\"\")),\"\")","v":""},"",{"$f":"IFERROR(IF(S13,RIGHT(U17,2)&U18,IF(S14,RIGHT(U17,3)&U18,\"\")),\"\")","v":""},{"$f":"IF(S22,V17&\".\"&T17,T17)","v":""}]
[null,null,null,null,null,null,null,null,null,null,null,null,null,null,null,null,18,null,null,""]
[null,null,null,null,null,null,null,null,null,null,null,null,null,null,null,null,19]
[null,null,"[C] Indholdstype",null,null,null,null,null,null,null,null,null,null,null,null,null,20,null,"Synonym",null,"SynonymUnderkomponent"]
[null,null,null,null,null,null,null,null,null,null,null,null,null,null,null,null,21,null,{"$f":"IFERROR(IF(S13,INDEX(Table1[[CCS Klasse]:[Synonymer og Egenskaber (DK)]],MATCH(RIGHT(S17,2),Table1[CCS Klasse],0),3),IF(S14,INDEX(Table2[[CCS Klasse]:[Synonymer og Egenskaber (DK)]],MATCH(RIGHT(S17,3),Table2[CCS Klasse],0),3),\"\")),\"\")","v":""},null,{"$f":"IFERROR(IF(U13,INDEX(Table1[[CCS Klasse]:[Synonymer og Egenskaber (DK)]],MATCH(RIGHT(U17,2),Table1[CCS Klasse],0),3),IF(U14,INDEX(Table2[[CCS Klasse]:[Synonymer og Egenskaber (DK)]],MATCH(RIGHT(U17,3),Table2[CCS Klasse],0),3),\"\")),\"\")","v":""}]
[null,null,null,null,null,null,null,null,null,null,null,null,null,null,null,null,22,null,false]
[null,null,null,null,null,null,null,null,null,null,null,null,null,null,null,null,23]
[null,null,null,null,null,null,null,null,null,null,null,null,null,null,null,null,24]
[null,null,"[K] Vidensområde",null,null,null,null,null,null,null,null,"Løbenummer (valgfri)",null,null,null,null,25]
[null,null,null,null,null,null,null,null,null,null,null,null,null,null,null,null,26]
[null,null,null,null,null,null,null,null,null,null,null,null,null,null,null,null,27,null,"[H] Tegningstype",null,"[E] Etage",null,"[B] Virksomhed"]
[null,null,"[B] Afsender",null,null,null,null,null,null,null,null,null,null,null,null,null,28,null,"",{"$f":"LEFT(S28,2)","v":""},"",{"$f":"IFERROR(LEFT(U28,FIND(\" \",U28,1)-1),\"\")","v":""},"",{"$f":"IF(LEFT(W28,1)=\"B\",LEFT(W28,3),LEFT(SUBSTITUTE(W28,\"   \",\"\"),6))","v":""}]
[null,null,null,null,null,null,null,null,null,null,null,null,null,null,null,null,29]
[null,null,null,null,null,null,null,null,null,null,null,null,null,null,null,null,30,null,"[C] Indholdstype",null,"[K] Vidensområde",null,"[N] Løbenummer"]
[null,null,{"$f":"IF(S7,\"[N] Løbenummer\",\"[N] Løbenummer (valgfri)\")","v":"[N] Løbenummer"},null,null,null,null,null,null,null,null,null,null,null,null,null,31,null,"",{"$f":"IFERROR(IF($S$8,LEFT(S31,FIND(\" \",S31,1)-1),IF(LEFT(S31,1)=\"C\",LEFT(S31,3),LEFT(SUBSTITUTE(S31,\"   \",\"\"),6))),\"\")","v":""},"",{"$f":"IFERROR(IF($S$8,LEFT(U31,FIND(\" \",U31,1)-1),IF(LEFT(U31,1)=\"K\",LEFT(U31,3),LEFT(SUBSTITUTE(U31,\"   \",\"\"),6))),\"\")","v":""},"",{"$f":"IF(W31<>\"\",\"_N\"&IF(LEN(W31)=1,\"00\"&W31,IF(LEN(W31)=2,\"0\"&W31,W31)),\"\")","v":""}]
[null,null,null,null,null,null,null,null,null,null,null,null,null,null,null,null,32,null,{"$f":"IFERROR(IF(S5,INDEX(Table35[],MATCH(S31,Table35['[C']Dokumenter],0),4),IF(S8,INDEX(Table4[],MATCH(S31,Table4['[C']Model],0),3),IF(S9,INDEX(Table16[],MATCH(S31,Table16['[C']D&V],0),4),\"\"))),\"\")","v":""},{"$f":"IFERROR(MID(SUBSTITUTE(S31,\"   \",\"\"),FIND(\" \",SUBSTITUTE(S31,\"   \",\"\"),1)+1,40),\"\")","v":""},{"$f":"IFERROR(IF(S5,INDEX(Table10[],MATCH(U31,Table10['[K']Dokumenter],0),4),IF(S7,INDEX(Table9[],MATCH(U31,Table9['[K']Tegninger],0),4),IF(S8,INDEX(Tabel87[],MATCH(U31,Tabel87['[K']3D-modeller],0),3),\"\"))),\"\")","v":""}]
[null,null,null,null,null,null,null,null,null,null,null,null,null,null,null,null,33,null,null,null,null,null,"[Z] Titel/Emne"]
[null,null,{"$f":"IF(S9,\"[Z] Titel/Emne (valgfri)\",\"[Z] Titel/Emne\")","v":"[Z] Titel/Emne"},null,null,null,null,null,null,null,null,null,null,null,null,null,34,null,null,null,null,null,"",{"$f":"IF(W34<>\"\",\"_Z\"&W34,\"\")","v":""}]
[null,null,null,null,null,null,null,null,null,null,null,null,null,null,null,null,35]
[null,null,null,null,null,null,null,null,null,null,null,null,null,null,null,null,36]
[null,null,null,null,null,null,null,null,null,null,null,null,null,null,null,null,37]
[null,null,null,null,null,null,null,null,null,null,null,null,null,null,null,null,38]
[null,null,null,null,null,null,null,"Filnavn",null,null,null,null,null,null,null,null,39,null,"Filnavn"]
[null,null,null,null,null,null,null,null,null,null,null,null,null,null,null,null,40,null,{"$f":"IF(S5,\"I\"&Z5&\"_\"&T31&\"_\"&V31&X31&X34,IF(S7,\"L\"&V5&\"_\"&T28&\"_\"&V28&\"_\"&V31&\"_\"&X28&X31&X34,IF(S8,\"L\"&V5&\"_\"&T31&\"_\"&V31&X31&X34,IF(S9,W17&\"_\"&T32&X31&X34))))","v":"L____"}]
[null,null,null,null,null,null,null,null,null,null,null,null,null,null,null,null,41]
[null,null,null,null,null,null,null,{"$f":"IF(S7,\"Tegningsnummer\",IF(S8,\"Modelnummer\",\"\"))","v":"Tegningsnummer"},null,null,null,null,null,null,null,null,42,null,"Tegnings- og modelnummer"]
[null,null,null,null,"Du har valgt filtypen:",null,null,null,null,null,null,null,null,null,null,null,43,null,{"$f":"IF(S7,\"L\"&V5&\"_\"&T28&\"_\"&V28&\"_\"&V31&\"_\"&X28&X31,IF(S8,\"L\"&V5&\"_\"&T31&\"_\"&V31,\"\"))","v":"L____"}]
[null,null,null,null,{"$f":"IF(S9,\"D&V-materiale\",IF(S8,\"3D-model\",IF(S7,\"Tegning\",IF(S5,\"Dokument\",\"Ingen filtype valgt\"))))","v":"Tegning"},null,null,null,null,null,null,null,null,null,null,null,44]
[null,null,null,null,null,null,null,null,null,null,null,null,null,null,null,null,46]

{"sheet":"Tegnings- og dokumentliste","index":2,"n_rows":7,"n_cols":10,"rows_kept":7,"cut":false,"hidden":false,"merged":[]}
[]
[null,null,null,null,null,"Valgt destination:",null,null,null,{"$f":"COUNTIF(C:C,\"Filnavnet findes allerede\")","v":0}]
[]
[]
["Filnavn","Tegnings- og modelnummer","Redundans i filnavne?","Filnavn med Extension"]
[null,null,{"$f":"IF(COUNTIF($A$6:$A$6,A6)>1,\"Filnavnet findes allerede\",\"\")","v":""},{"$f":"A6&F6","v":"Extention"},null,"Extention","Eksisterende filnavne"]
[null,null,null,null,null,{"$f":"IFERROR(RIGHT(G7,LEN(G7)-FIND(\"@\",SUBSTITUTE(G7,\".\",\"@\",LEN(G7)-LEN(SUBSTITUTE(G7,\".\",\"\"))),1)+1),\"\")","v":""}]

{"sheet":"Etage","index":3,"n_rows":20,"n_cols":3,"rows_kept":20,"cut":false,"hidden":true,"merged":[]}
["[E]Etage","[E]","Column1"]
["EX Flere etager","EX","Flere etager"]
["EF Fundament","EF","Fundament"]
["EI Etage I","EI","Etage I"]
["EJ Etage J","EJ","Etage J"]
["EK Etage K","EK","Etage K"]
["E0 Etage 0","E0","Etage 0"]
["E1 Etage 1","E1","Etage 1"]
["E2 Etage 2","E2","Etage 2"]
["E3 Etage 3","E3","Etage 3"]
["E4 Etage 4","E4","Etage 4"]
["E5 Etage 5","E5","Etage 5"]
["E6 Etage 6","E6","Etage 6"]
["E7 Etage 7","E7","Etage 7"]
["E8 Etage 8","E8","Etage 8"]
["E9 Etage 9","E9","Etage 9"]
["E10 Etage 10","E10","Etage 10"]
["E11 Etage 11","E11","Etage 11"]
["E12 Etage 12","E12","Etage 12"]
["E13 Etage 13","E13","Etage 13"]

{"sheet":"CCS","index":4,"n_rows":471,"n_cols":7,"rows_kept":471,"cut":false,"hidden":true,"merged":[]}
["CCSTekniskSystem","CCS Klasse","Begreb","Synonymer og Egenskaber (DK)","Definition (DK)",null,"CCSLøbenummer"]
[{"$f":"CCS!$C2&\" - \"&CCS!$B2","v":"Adgangsanlæg - KL"},"KL","Adgangsanlæg","Speedgate, karrusel, Sluse, speedlane, bomanlæg, betalingsanlæg, pullertanlæg","Behandlende teknisk system for fysisk adskillelse af personflow",null,"01"]
[{"$f":"CCS!$C3&\" - \"&CCS!$B3","v":"Adgangskontrolanlæg - LD"},"LD","Adgangskontrolanlæg","ADK-anlæg, perimetersikring, Automatisk dørkontrolanlæg, porttelefonanlæg,  kombinerede anlæg,","Overvågende teknisk system der giver adgang for personer til et område eller en bygning",null,"02"]
[{"$f":"CCS!$C4&\" - \"&CCS!$B4","v":"Affaldsanlæg - JE"},"JE","Affaldsanlæg","Skraldesug, affaldslager, komposteringsanlæg","Transporterende teknisk system for affald",null,"03"]
[{"$f":"CCS!$C5&\" - \"&CCS!$B5","v":"Alarmanlæg - LE"},"LE","Alarmanlæg","Tyverisikringsanlæg, AIA-anlæg, perimetersikring, Tyverisikringsanlæg, AIA-anlæg, indbrudsalarmanlæg, overfaldsalarmanlæg","Overvågende teknisk system der alarmgiver ved farlige eller uønskede tilstande",null,"04"]
[{"$f":"CCS!$C6&\" - \"&CCS!$B6","v":"Antenneanlæg - KJ"},"KJ","Antenneanlæg"," ","Behandlende teknisk system for omformning af radiobølger til elektriske signaler",null,"05"]
[{"$f":"CCS!$C7&\" - \"&CCS!$B7","v":"Audio-Video anlæg - MB"},"MB","Audio-Video anlæg","PA-anlæg, AIS-anlæg, AV-anlæg, TV-anlæg, højttaleranlæg, mikrofonanlæg, kaldeanlæg","Informationspræsenterende teknisk system der frembringer billed og/eller lyd",null,"06"]
[{"$f":"CCS!$C8&\" - \"&CCS!$B8","v":"Automationsanlæg - LC"},"LC","Automationsanlæg","IBI-anlæg, CTS-anlæg, BMS-anlæg, Lysstyring, klimastyring","Overvågende teknisk system der automatiserer processer i bygnings- og procestekniske anlæg i en central enhed",null,"07"]
[{"$f":"CCS!$C9&\" - \"&CCS!$B9","v":"Belægningsopbygning - AA"},"AA","Belægningsopbygning","Befæstelse, Vejopbygning, vejkasse, stiopbygning, ","Opbyggende teknisk system af lag der danner arealer til færdsel",null,"08"]
[{"$f":"CCS!$C10&\" - \"&CCS!$B10","v":"Belysningsanlæg - HH"},"HH","Belysningsanlæg","Sikkerhedsbelysning, reservebelysningsanlæg, rengøringsbelysning, Almen belysning, nødbelysningsanlæg, flugtvejsbelysning, panikbelysning, effektbelysning, skiltebelysning, servicebelysning, vejbelysningsanlæg, udendørs belysningsanlæg, perronbelysning, baneterrænbelysning, idrætsanlægsbelysning, ","Forsynende teknisk system for elektrisk lys",null,"09"]
[{"$f":"CCS!$C11&\" - \"&CCS!$B11","v":"Beplantning - RA"},"RA","Beplantning","Plantning, Træ, busk, plante","Indrettende teknisk system i form af vegetation",null,"10"]
[{"$f":"CCS!$C12&\" - \"&CCS!$B12","v":"Bortledningsanlæg - JD"},"JD","Bortledningsanlæg","Spildevandsopsamling, Spildevand, regnvand, kloak, solvent, regnvandsanlæg, nedsivningsanlæg, fordampningsanlæg, rodzoneanlæg","Transporterende teknisk system for spildevand og -væsker",null,"11"]
[{"$f":"CCS!$C13&\" - \"&CCS!$B13","v":"Brandalarmanlæg - LB"},"LB","Brandalarmanlæg","ABA-anlæg, ","Overvågende teknisk system der alarmgiver ved røg eller brand",null,"12"]
[{"$f":"CCS!$C14&\" - \"&CCS!$B14","v":"Brandbeskyttelsesanlæg - PA"},"PA","Brandbeskyttelsesanlæg","ABDL-anlæg, Automatisk branddørslukning anlæg, anlæg for brand- og røgspjæld","Beskyttende teknisk system der beskytter brugsrum ved åbning/lukning af døre og vinduer ved melding om brand",null,"13"]
[{"$f":"CCS!$C15&\" - \"&CCS!$B15","v":"Brandslukningsanlæg - PB"},"PB","Brandslukningsanlæg","Slukningsanlæg, ARS-anlæg, Inertgasanlæg, sprinkleranlæg, vandtågeanlæg","Beskyttende teknisk system der beskytter mod brand ved hjælp af slukning",null,"14"]
[{"$f":"CCS!$C16&\" - \"&CCS!$B16","v":"Dækkonstruktion - BC"},"BC","Dækkonstruktion","Etagedæk, terrændæk, gitterkonstruktion, skeletkonstruktion, rumgitter,  brodæk, rammekonstruktion, bjælkelagskonstruktion, huldækskonstruktion","Konstruktivt teknisk system i en horisontal adskillelse",null,"15"]
[{"$f":"CCS!$C17&\" - \"&CCS!$B17","v":"Dør- og vinduesoplukkeanlæg - KB"},"KB","Dør- og vinduesoplukkeanlæg","Røgventilation, røgudluftning, Komfortventilation, brandventilation, naturlig ventilation","Behandlende teknisk system for automatisk åbning og lukning af dører og vinduer",null,"16"]
[{"$f":"CCS!$C18&\" - \"&CCS!$B18","v":"El-fordelingsanlæg - JK"},"JK","El-fordelingsanlæg","Elektrisk distributionsanlæg, el-anlæg, el-forsyningsanlæg, ","Transporterende teknisk system for elektrisk energi",null,"17"]
[{"$f":"CCS!$C19&\" - \"&CCS!$B19","v":"El-forsyningsanlæg - HG"},"HG","El-forsyningsanlæg","El-anlæg, nødforsyningsanlæg, reserveforsyningsanlæg, El-stik (offentlig forsyning), generatoranlæg, solcelleanlæg, vindmølleanlæg, UPS-anlæg (batterianlæg), vandkraftanlæg","Forsynende teknisk system for elektrisk energi",null,"18"]
[{"$f":"CCS!$C20&\" - \"&CCS!$B20","v":"Etageadskillelsesopbygning - AC"},"AC","Etageadskillelsesopbygning","Dækopbygning, balkon, terrænadskillelsesopbygning, gangbro, ","Opbyggende teknisk system af lag der danner horisontal adskillelse",null,"19"]
[{"$f":"CCS!$C21&\" - \"&CCS!$B21","v":"Filteranlæg - KC"},"KC","Filteranlæg","Manganopsamling","Behandlende teknisk system for adskillelse af faste partikler fra væske eller luft i flow",null,"20"]
[{"$f":"CCS!$C22&\" - \"&CCS!$B22","v":"Føringskonstruktion - BH"},"BH","Føringskonstruktion","Føringsvej, føring, ","Konstruktivt teknisk system der understøtter forsynings-og fordelingsanlæg",null,"21"]
[{"$f":"CCS!$C23&\" - \"&CCS!$B23","v":"Fundamentskonstruktion - BB"},"BB","Fundamentskonstruktion","Fundament, Understøbning, Piloteringspæl \nLinjefundament, punktfundament","Konstruktivt teknisk system der forbinder overliggende bygningsdele med undergrunden",null,"22"]
[{"$f":"CCS!$C24&\" - \"&CCS!$B24","v":"Fundamentsopbygning - AB"},"AB","Fundamentsopbygning","Fundament, base, ","Opbyggende teknisk system af lag der danner adskillelse mod undergrunden",null,"23"]
[{"$f":"CCS!$C25&\" - \"&CCS!$B25","v":"Gas- og luftart lageranlæg - QB"},"QB","Gas- og luftart lageranlæg","Gaslager, Flaskeanlæg, gastankanlæg","Lagrende teknisk system for gas og luftarter",null,"24"]
[{"$f":"CCS!$C26&\" - \"&CCS!$B26","v":"Gas- og luftforsyningsanlæg - HA"},"HA","Gas- og luftforsyningsanlæg","Gasanlæg, luftanlæg, Gasstik (offentlig forsyning), trykluftanlæg, vakuumanlæg","Forsynende teknisk system for gas eller teknisk luft",null,"25"]
[{"$f":"CCS!$C27&\" - \"&CCS!$B27","v":"Gasalarmanlæg - LA"},"LA","Gasalarmanlæg","Aspirationsanlæg, ","Overvågende teknisk system der alarmgiver ved tilstande af farlige gasser",null,"26"]
[{"$f":"CCS!$C28&\" - \"&CCS!$B28","v":"Gasfordelingsanlæg - JA"},"JA","Gasfordelingsanlæg","Gasfordeling, ","Transporterende teknisk system for gas ",null,"27"]
[{"$f":"CCS!$C29&\" - \"&CCS!$B29","v":"Godstransportanlæg - JN"},"JN","Godstransportanlæg","Godselevator, vareelevator, byggelevator, transportbånd, kran, sengetransportanlæg, rørpostanlæg, lift","Transporterende teknisk system for fast gods eller pakker",null,"28"]
[{"$f":"CCS!$C30&\" - \"&CCS!$B30","v":"Gulvkonstruktion - BF"},"BF","Gulvkonstruktion","Gulv, gulvkonstruktion, svømmende gulv, strøgulv, undergulv, trægulv, parketgulv, klinkrgulv, flisegulv, bjælkelagsgulv, fugefrit gulv,  ","Konstruktivt teknisk system der afslutter et rum nedadtil",null,"29"]
[{"$f":"CCS!$C31&\" - \"&CCS!$B31","v":"Inventar - RB"},"RB","Inventar","Inventar, bohave, indbo, møbler, løsøre, Kontorinventar, møderumsinventar, køkkeninventar, soveværelsesinventar, opbevaringsinventar, staldinventar, receptionsinventar, legepladsinventar, trafikinventar, parkinventar, pladsinventar, gaderumsinventar, byrumsinventar, legepladsredskaber","Indrettende teknisk system i form af faste eller flytbare bygningsdele",null,"30"]
[{"$f":"CCS!$C32&\" - \"&CCS!$B32","v":"Jordingsanlæg - PC"},"PC","Jordingsanlæg","Halvledende gulv","Beskyttende teknisk system der beskytter mod farlige elektriske strømme ved jording af elektriske systemer",null,"31"]
[{"$f":"CCS!$C33&\" - \"&CCS!$B33","v":"Katodisk beskyttelsesanlæg - PE"},"PE","Katodisk beskyttelsesanlæg"," ","Beskyttende teknisk system der beskytter metalkonstruktioner mod korrision ved hjælp af korrosionsbeskyttelse",null,"32"]
[{"$f":"CCS!$C34&\" - \"&CCS!$B34","v":"Kemikaliefordelingsanlæg - JC"},"JC","Kemikaliefordelingsanlæg","Spritanlæg, ","Transporterende teknisk system for brandbare væsker eller andre kemikalier",null,"33"]
[{"$f":"CCS!$C35&\" - \"&CCS!$B35","v":"Kølefordelingsanlæg - JF"},"JF","Kølefordelingsanlæg","Køleanlæg, blandesløjfe","Transporterende teknisk system for kulde",null,"34"]
[{"$f":"CCS!$C36&\" - \"&CCS!$B36","v":"Køleforsyningsanlæg - HC"},"HC","Køleforsyningsanlæg","Køleproduktionsanlæg, køleveksleranlæg, Kølestik (offentlig forsyning) Grundvandskølingsanlæg, kondensatorkøleanlæg, fjernkøleanlæg, havkøling, absorptionskøling","Forsynende teknisk system for kulde",null,"35"]
[{"$f":"CCS!$C37&\" - \"&CCS!$B37","v":"Kombineret varme- og kølefordelingsanlæg - JH"},"JH","Kombineret varme- og kølefordelingsanlæg","Kombianlæg, ","Transporterende teknisk system for kulde og varme",null,"36"]
[{"$f":"CCS!$C38&\" - \"&CCS!$B38","v":"Kombineret varme- og køleforsyningsanlæg - HE"},"HE","Kombineret varme- og køleforsyningsanlæg","Varmepumpeanlæg","Forsynende teknisk system for kulde og varme",null,"37"]
[{"$f":"CCS!$C39&\" - \"&CCS!$B39","v":"Loftkonstruktion - BG"},"BG","Loftkonstruktion","Loft, loftkonstruktion, systemloft,  påbygget loft, nedstroppet loft, nedhængt loft, akustikloft, pudsloft, kludeloft, kassetteloft, metalloft, ","Konstruktivt teknisk system der afslutter et rum opadtil",null,"38"]
[{"$f":"CCS!$C40&\" - \"&CCS!$B40","v":"Luftfordelingsanlæg - JJ"},"JJ","Luftfordelingsanlæg","Luftanlæg, friskluftanlæg, ","Transporterende teknisk system for luft",null,"39"]
[{"$f":"CCS!$C41&\" - \"&CCS!$B41","v":"Lynbeskyttelsesanlæg - PD"},"PD","Lynbeskyttelsesanlæg","Lynanlæg, ","Beskyttende teknisk system der beskytter mod elektriske lyn ved jording af elektriske systemer",null,"40"]
[{"$f":"CCS!$C42&\" - \"&CCS!$B42","v":"Måleranlæg - QA"},"QA","Måleranlæg","Målerarrangement, måler, Gasmåleranlæg, kemikaliemåleranlæg, vandmåleranlælg, væskemåleranlæg, varmemåleranlæg, varmtvandsmåleranlæg, kølemåleranlæg, el-måleranlæg, smartgrid","Lagrende teknisk system for måletekniske forbrugsinformationer",null,"41"]
[{"$f":"CCS!$C43&\" - \"&CCS!$B43","v":"Omformeranlæg - KH"},"KH","Omformeranlæg","Transformeranlæg, inverteranlæg","Behandlende teknisk system for omforming af elektrisk energi",null,"42"]
[{"$f":"CCS!$C44&\" - \"&CCS!$B44","v":"Persontransportanlæg - JM"},"JM","Persontransportanlæg","Elevator, rulletrappe (escalator), handicaplift (lift), rullefortorv (travalator)","Transporterende teknisk system for personer",null,"43"]
[{"$f":"CCS!$C45&\" - \"&CCS!$B45","v":"Pumpeanlæg - KF"},"KF","Pumpeanlæg","Pumpebrønd, Grundvandspumpeanlæg, trykforøgeranlæg, drænpumpeanlæg, afløbspumpeanlæg, vandpumpeanlæg","Behandlende teknisk system for generering af et flow i væske",null,"44"]
[{"$f":"CCS!$C46&\" - \"&CCS!$B46","v":"Rampeopbygning - AG"},"AG","Rampeopbygning","Rampe, rampekonstruktion, Kørestolsrampe, læsserampe, kørerampe, terrænrampe, motorvejsrampe","Opbyggende teknisk system af lag der skaber trinfri forbindelse mellem to eller flere niveauer",null,"45"]
[{"$f":"CCS!$C47&\" - \"&CCS!$B47","v":"Signalfordelingsanlæg - JL"},"JL","Signalfordelingsanlæg","Datadistributionsanlæg, IT-anlæg (Campus Distributor (CD, HX), Building Distributor (BD, UX), Floor Distributor (FD, UX)), TV-anlæg, telefoni-anlæg, sikringsanlæg, AV-anlæg","Transporterende teknisk system for signaler",null,"46"]
[{"$f":"CCS!$C48&\" - \"&CCS!$B48","v":"Signalforsyningsanlæg - HJ"},"HJ","Signalforsyningsanlæg","Monopolskillepunkt, datanetværk, bookingsystem, ADSL, MPLS, ISDN, TV-signal, telefonanlæg, personsøgeanlæg, teleslyngeanlæg, radioanlæg, nødkaldeanlæg","Forsynende teknisk system for signaler",null,"47"]
[{"$f":"CCS!$C49&\" - \"&CCS!$B49","v":"Solafskærmningsanlæg - KA"},"KA","Solafskærmningsanlæg","Solafskærmning, mørklægning","Behandlende teknisk system for begrænsning eller lukning for lysindfald i en bygning",null,"48"]
[{"$f":"CCS!$C50&\" - \"&CCS!$B50","v":"Tagkonstruktion - BE"},"BE","Tagkonstruktion","gitterkonstruktion, skeletkonstruktion, gitterspærfag, hanebåndsspær, trempelspærfag, kassespærfag, gavlspærfag, valmspærfag, saksespær, rumgitter, rammekonstruktion","Konstruktivt teknisk system der afslutter bygværket opadtil",null,"49"]
[{"$f":"CCS!$C51&\" - \"&CCS!$B51","v":"Tagopbygning - AE"},"AE","Tagopbygning","Tag, gitterkonstruktion, skeletkonstruktion, saddeltag, mansardtag, gitterspærfag, hanebåndsspær, trempelspærfag, kassespærfag, gavlspærfag, valmspærfag, saksespær, rumgitter, rammekonstruktion","Opbyggende teknisk system af lag der danner bygværkets afslutning opadtil",null,"50"]
[{"$f":"CCS!$C52&\" - \"&CCS!$B52","v":"Terrænkonstruktion - BA"},"BA","Terrænkonstruktion","Planum, terrænbasis, ","Konstruktivt teknisk system der danner et reguleret volumen af undergrund",null,"51"]
[{"$f":"CCS!$C53&\" - \"&CCS!$B53","v":"Trafikanlæg - MC"},"MC","Trafikanlæg","Trafiklys, trafikinformationstavler","Informationspræsenterende teknisk system der regulerer trafik",null,"52"]
[{"$f":"CCS!$C54&\" - \"&CCS!$B54","v":"Trappeopbygning - AF"},"AF","Trappeopbygning","Trappe, trappekonstruktion, Betontrappe, ståltrappe, trætrappe, spindeltrappe, ligeløbstrappe, kvartsvingstrappe. halvsvingstrappe, terræntrappe, trampe, naturstenstrappe, teglstenstrappe, betontrappe","Opbyggende teknisk system af lag der skaber trinmæssig forbindelse mellem to eller flere niveauer",null,"53"]
[{"$f":"CCS!$C55&\" - \"&CCS!$B55","v":"Trykholde- og ekspansionsanlæg - KG"},"KG","Trykholde- og ekspansionsanlæg","Trykholdeanlæg, ekspansionsanlæg, ","Behandlende teknisk system for stabilisering af tryk og volumen i en væske eller i en luftstrøm",null,"54"]
[{"$f":"CCS!$C56&\" - \"&CCS!$B56","v":"TV-overvågningsanlæg - LF"},"LF","TV-overvågningsanlæg","TVO-anlæg, ITV-anlæg, CCTV-anlæg, perimetersikring, ","Overvågende teknisk system til visuel fjernoverågning",null,"55"]
[{"$f":"CCS!$C57&\" - \"&CCS!$B57","v":"Udskilleranlæg - KD"},"KD","Udskilleranlæg","Olieudskilleranlæg. fedtudskiller, benzindskiller, saltudskiller, gipsudskiller","Behandlende teknisk system for adskillelse af to substanser",null,"56"]
[{"$f":"CCS!$C58&\" - \"&CCS!$B58","v":"Udstyr - RC"},"RC","Udstyr","Udstyr, teknisk udstyr, aperatur, redskab, AV-udstyr, medicinsk udstyr, elektronisk udstyr, musikudstyr, sikkerhedsudstyr, brandslukningsudstyr, dataudstyr, hospitaludstyr, overvågningsudstyr, sendeudstyr, skiltning, signalsystem, sportsudstyr, redningsudstyr, køkkenudstyr","Indrettende teknisk system i form af redskaber som bruges i en bestemt situation",null,"57"]
[{"$f":"CCS!$C59&\" - \"&CCS!$B59","v":"Vægkonstruktion - BD"},"BD","Vægkonstruktion","Formur, skalmur, bagmur, vægelement, skeletkonstruktion, gitterkonstruktion, bindingsværk, søjler, søjlerække, rumgitter, støttemur, bolværk, rammekonstruktion, gabion, stengabion","Konstruktivt teknisk system i en vertikal adskillelse",null,"58"]
[{"$f":"CCS!$C60&\" - \"&CCS!$B60","v":"Vægopbygning - AD"},"AD","Vægopbygning","Væg, lukningsparti,  portparti, Formur, skalmur, bagmur, vægelement, skeletkonstruktion, gitterkonstruktion, bindingsværk, søjler, søjlerække, foldevæg, rumgitter, støttemur, havemur, kampestensmur, teglmur, bolværk, gabion, stengabion, rammekonstruktion","Opbyggende teknisk system af lag der danner vertikal adskillelse",null,"59"]
[{"$f":"CCS!$C61&\" - \"&CCS!$B61","v":"Væskelageranlæg - QC"},"QC","Væskelageranlæg","Bufferanlæg, tankanlæg, opsamlingsanlæg, Kemikalietankanlæg, vandtankanlæg, olietankanlæg","Lagrende teknisk system for væsker",null,"60"]
[{"$f":"CCS!$C62&\" - \"&CCS!$B62","v":"Vandbehandlingsanlæg - KE"},"KE","Vandbehandlingsanlæg","Kemikalieanlæg, Syre-lud anlæg, omvendt osmose anlæg (ROW-anlæg), blødgøringsanlæg, afklaklingsanlæg, Water-For-Injection-anlæg, syreneutraliseringsanlæg, dialysevand","Behandlende teknisk system for håndtering af kemikalier til væske",null,"61"]
[{"$f":"CCS!$C63&\" - \"&CCS!$B63","v":"Vandfordelingsanlæg - JB"},"JB","Vandfordelingsanlæg","Vandfordeling, vandingsanlæg, Koldt brugsvand, varmt brugsvand, teknisk vand, brandvand, stigrøranlæg, sprinklervandingsanlæg, drypvandingsanlæg, overrislingsanlæg, ","Transporterende teknisk system for vand",null,"62"]
[{"$f":"CCS!$C64&\" - \"&CCS!$B64","v":"Vandforsyningsanlæg - HB"},"HB","Vandforsyningsanlæg","Vandanlæg, Vandstik (offentlig forsyning), grundvandsindvindingsanlæg, regnvandsindvindingsanlæg","Forsynende teknisk system for vand",null,"63"]
[{"$f":"CCS!$C65&\" - \"&CCS!$B65","v":"Varmefordelingsanlæg - JG"},"JG","Varmefordelingsanlæg","Varmeanlæg, blandesløjfe","Transporterende teknisk system for varme",null,"64"]
[{"$f":"CCS!$C66&\" - \"&CCS!$B66","v":"Varmeforsyningsanlæg - HD"},"HD","Varmeforsyningsanlæg","Varmeproduktionsanlæg, varmeveksleranlæg, blandeanlæg, Varmestik (offentlig forsyning) Fjernvarmeanlæg, brændselsfyranlæg (gas, olie, træpiller, flis), dampanlæg (fjern- eller lokal damp), geotermisk varmeanlæg,  varmepumpeanlæg,  jordvarmeanlæg, el-varmeanlæg, el-tracing anlæg","Forsynende teknisk system for varme",null,"65"]
[{"$f":"CCS!$C67&\" - \"&CCS!$B67","v":"Varslingsanlæg - MA"},"MA","Varslingsanlæg","AVA-anlæg, Tonevarsling, talevarsling","Informationspræsenterende teknisk system der frembringer fast lyd eller tale til varsling af farlige tilstande",null,"66"]
[{"$f":"CCS!$C68&\" - \"&CCS!$B68","v":"Vejrstationsanlæg - KK"},"KK","Vejrstationsanlæg","Vejranlæg, ","Behandlende teknisk system for omformning af vejrtekniske informationer til elektriske signaler",null,"67"]
[{"$f":"CCS!$C69&\" - \"&CCS!$B69","v":"Ventilationsanlæg - HF"},"HF","Ventilationsanlæg","Ventilationsaggregat, røgudsugningsanlæg, brandventilation, ventilationsanlæg, Kombinerede ind- og udsugningsanlæg, indblæsningsanlæg, udsugningsanlæg","Forsynende teknisk system der genererer et mekanisk flow af luft",null,"68"]
[null,null,null,null,null,null,"69"]
["CCSKomponent","CCS Klasse","Begreb","Synonymer og Egenskaber (DK)","Definition (DK)",null,"70"]
[{"$f":"CCS!$C72&\" - \"&CCS!$B72","v":"Accelerationsmeter - BSD"},"BSD","Accelerationsmeter"," ","hastighed/frekvensomformende komponent fra acceleration til diskret variabel",null,"71"]
[{"$f":"CCS!$C73&\" - \"&CCS!$B73","v":"Adskillelsestransformer - TAB"},"TAB","Adskillelsestransformer"," ","elektrisk energiomformende komponent der adskiller to elektriske kredse galvanisk med ensartet spænding på begge sider",null,"72"]
[{"$f":"CCS!$C74&\" - \"&CCS!$B74","v":"Afbrydelsesfri strømforsyning - RBA"},"RBA","Afbrydelsesfri strømforsyning","UPS, ","elektrisk stabiliserende komponent der kontinuert sikrer strømforsyning",null,"73"]
[{"$f":"CCS!$C75&\" - \"&CCS!$B75","v":"Afbryder - SFA"},"SFA","Afbryder","Hovedafbryder, Kontakt,  nøgleafbryder, nødstop, sikkerhedsafbryder, korrespondanceafbryder, 1-pol afbryder, 2-pol afbryder, kroneafbryder, krydsningsafbryder, reparationsafbryder","elektrisk signalgiverkomponent der ved manuel betjening tænder og slukker en elektrisk kreds",null,"74"]
[{"$f":"CCS!$C76&\" - \"&CCS!$B76","v":"Affaldskværn - TMA"},"TMA","Affaldskværn","Opsamlingsenhed, ","formændrende komponent der knuser biologisk affald",null,"75"]
[{"$f":"CCS!$C77&\" - \"&CCS!$B77","v":"Affugter - HPB"},"HPB","Affugter","","termikseparerende komponent der fjerner vand fra luft",null,"76"]
[{"$f":"CCS!$C78&\" - \"&CCS!$B78","v":"Afmærkning - PHE"},"PHE","Afmærkning","Markering, Stribning, søm, symboler, rumlefelt, rumlestribe, termoplaststriber, maling, dækbånd, signalnet, bændler","variabel-information komponent der afgrænser eller signalerer funktion, placering eller anvendelse for en anden bygningsdel",null,"77"]
[{"$f":"CCS!$C79&\" - \"&CCS!$B79","v":"Afretningslag - UKB"},"UKB","Afretningslag","Sættelag, Grus, sand","konstruktiv komponent der understøtter og sikrer jævnhed under andre bygningsdele",null,"78"]
[{"$f":"CCS!$C80&\" - \"&CCS!$B80","v":"Afspærringsventil - QMA"},"QMA","Afspærringsventil","Shut-off ventil, on-off ventil, rørafbryder, udluftning, kontrolventil, ARS-ventil, Magnetventil, højvandslukke","mekanisk koblende komponent for flow i en væskestrøm",null,"79"]
[{"$f":"CCS!$C81&\" - \"&CCS!$B81","v":"Amperemeter  - PGF"},"PGF","Amperemeter ","","diskret-variabel komponent der passivt viser elektrisk strøm",null,"80"]
[{"$f":"CCS!$C82&\" - \"&CCS!$B82","v":"Antenne - TFB"},"TFB","Antenne","TV-antenne","signalomformende komponent der modtager eller sender elektromagnetiske bølger",null,"81"]
[{"$f":"CCS!$C83&\" - \"&CCS!$B83","v":"Antennekabel - WGC"},"WGC","Antennekabel","Coax-kabel, ","elektronisk signaltransporterende komponent for antennesignaler mellem to punkter",null,"82"]
[{"$f":"CCS!$C84&\" - \"&CCS!$B84","v":"Armeringsstang - UMA"},"UMA","Armeringsstang","Armering, armeringsjern, Armeringsbøjle, bøjlearmering, armeringskurv, armeringsnet, maskinsvejst armering, armeringsjern","forstærkende komponent i form af formede stænger i konstruktioner ",null,"83"]
[{"$f":"CCS!$C85&\" - \"&CCS!$B85","v":"Armeringsvæv - UMB"},"UMB","Armeringsvæv","Armering, Fibernet, trådvæv, glasvæv, glasfilt, terrakottavæv, geotekstil, net, dug, geonet, jordarmering","forstærkende komponent i form af sammenvævet materiale i konstruktioner",null,"84"]
[{"$f":"CCS!$C86&\" - \"&CCS!$B86","v":"Bærelag - UKA"},"UKA","Bærelag","Ubundet materiale, ubundet lag, bundet materiale, Makadam, stabilt grus, knust beton, asfaltbærelag, GAB, betonplade, knust tegl, gruspude","konstruktiv komponent i form af et lag der optager og fordeler laster til undergrunden",null,"85"]
[{"$f":"CCS!$C87&\" - \"&CCS!$B87","v":"Baluster - ULR"},"ULR","Baluster","Scepter","konstruktiv komponent uden for undergrunden der udgør de lodrette led i et værn og primært overfører tværlast",null,"86"]
[{"$f":"CCS!$C88&\" - \"&CCS!$B88","v":"Barometer - PGB"},"PGB","Barometer"," ","diskret-variabel komponent der viser lufttryk i åbne kredsløb / luft",null,"87"]
[{"$f":"CCS!$C89&\" - \"&CCS!$B89","v":"Bassin - CMB"},"CMB","Bassin","Kunstig sø, vandelement, ","lukket stationær komponent til væsker og masser, der er åben opadtil",null,"88"]
[{"$f":"CCS!$C90&\" - \"&CCS!$B90","v":"Batteri - GBA"},"GBA","Batteri","Akkumulator, ","kemisk energikomponentbygningsdel der omdanner lagret kemisk energi til elektrisk energi eller omvendt",null,"89"]
[{"$f":"CCS!$C91&\" - \"&CCS!$B91","v":"Befugter - TTA"},"TTA","Befugter","Vandbefugter, dampbefugter, ultralydsbefugter","miksende komponent der tilfører vand til luft",null,"90"]
[{"$f":"CCS!$C92&\" - \"&CCS!$B92","v":"Beholder - CMA"},"CMA","Beholder","Forrådsbeholdere, tank, tønde, væskeakkumulator, dampakkumulator, Kryobeholder, ekspansionsbeholder, gasbeholder, olietank, gastank, vandtank, dampbeholder","lukket stationær komponent til gas, væsker og masser",null,"91"]
[{"$f":"CCS!$C93&\" - \"&CCS!$B93","v":"Belægning - NCA"},"NCA","Belægning","Terrænbelægning, Ubunden belægning, bunden belægning, elementbelægning, slidlag, asfaltbelægning, flisebelægning,  teglbelægning, naturstensbelægning, betonbelægning, træbelægning, kunststofbelægning, kunstgræs, gummibelægning, grusbelægning, stålbelægning","afdækkende komponent der afslutter en befæstelse opadtil",null,"92"]
[{"$f":"CCS!$C94&\" - \"&CCS!$B94","v":"Belysningsarmatur - UAC"},"UAC","Belysningsarmatur","Armatur, lysarmatur, fatning, Dæmpbar, ikke-dæmpbar","helt eller delvist lukket indkapslende komponent for lyskilde",null,"93"]
[{"$f":"CCS!$C95&\" - \"&CCS!$B95","v":"Bevægelsesdetektor - BGC"},"BGC","Bevægelsesdetektor","Bevægelsessensor (PIR), bevægelsesføler, radar, Finmasket detektering (tilstedeværelsesdetektor),  grovmasket detektering (bevægelsesdetektor), nørhedsføler, induktiv aftaster (radar), ultralydstektor","positionsomformende komponent fra nærhed af mennesker eller dyr til boolsk værdi",null,"94"]
[{"$f":"CCS!$C96&\" - \"&CCS!$B96","v":"Billede - PLE"},"PLE","Billede"," ","udsmykkende komponent der udgør en synlig repræsentation, illustration eller gengivelse af noget på en flade",null,"95"]
[{"$f":"CCS!$C97&\" - \"&CCS!$B97","v":"Bjælke - ULE"},"ULE","Bjælke","Ås, drager, overligger, udligger, spærfod, trempel, rem, spær, spærhoved, Limtræsås, ståltegl, døroverligger, dørplanke, fodrem, gratspær, skiftespær, bjælkespær, rammespær, rundbuespær, stikspær, kehlspær, kipbjælke, , rendespær, udhængsspær, limtræsspær, gitterbjælke","konstruktiv komponent uden for undergrunden hvis længde i den ene retning er meget større end længderne i de andre retninger og som primært overfører last der virker vinkelret på længderetningen",null,"96"]
[{"$f":"CCS!$C98&\" - \"&CCS!$B98","v":"Blink - PFB"},"PFB","Blink","Signalgiver, blitz, flash, ","diskret-tilstand komponent der i form af lys afgiver blink",null,"97"]
[{"$f":"CCS!$C99&\" - \"&CCS!$B99","v":"Blok - ULH"},"ULH","Blok","Porebetonblok, betonblok, hulstensblok, letklinkeblok, murblok, molerblok","større konstruktiv komponent uden for undergrunden der ofte sammenlægges i flere lag og i forbandt",null,"98"]
[{"$f":"CCS!$C100&\" - \"&CCS!$B100","v":"Boks - CMC"},"CMC","Boks","Nøgleboks","lukket stationær komponent til faste genstande",null,"99"]
[{"$f":"CCS!$C101&\" - \"&CCS!$B101","v":"Bom - RUB"},"RUB","Bom","","adgangsbegrænsende komponent i form af en bevægelig bygningsdel der delvist spærrer for gennemgang eller gennemkørsel"]
[{"$f":"CCS!$C102&\" - \"&CCS!$B102","v":"Bøsning - NCQ"},"NCQ","Bøsning","Dørgrebsbøsning","afdækkende komponent i form af kort rørstykke der anvendes som foring af hul"]
[{"$f":"CCS!$C103&\" - \"&CCS!$B103","v":"Brænder - EMC"},"EMC","Brænder","Oliebrænder, gasbrænder","forbrændingskomponent der producere en flamme"]
[{"$f":"CCS!$C104&\" - \"&CCS!$B104","v":"Brændselscelle - GBB"},"GBB","Brændselscelle"," ","kemisk energikomponent der omdanner energi fra brændsel  til elektrisk energi"]
[{"$f":"CCS!$C105&\" - \"&CCS!$B105","v":"Brandjalousi - FME"},"FME","Brandjalousi"," ","brandsikringskomponent der aflukker fysisk rum og beskytter mod brandsmitte"]
[{"$f":"CCS!$C106&\" - \"&CCS!$B106","v":"Brandmanchet - FMD"},"FMD","Brandmanchet"," ","brandsikringskomponent der lukker tæt rundt om rør eller kanal ved detektering af røg eller brand"]
[{"$f":"CCS!$C107&\" - \"&CCS!$B107","v":"Brandspjæld - FMA"},"FMA","Brandspjæld","Trykaflastningsspjæld (ARS)","brandsikringskomponent der lukker for en luftstrøm ved detektering af brand"]
[{"$f":"CCS!$C108&\" - \"&CCS!$B108","v":"Brønd - XME"},"XME","Brønd","Tagbrønd, vejbrønd, nedløbsbrønd, prøveudtagningsbrønd, sandfangsbrønd, kondensatkasse, faskine, forsinkelsesbrønd","flow-flow forbindende komponent der indkapsler og muliggør forbindelse mellem flere flowkredse"]
[{"$f":"CCS!$C109&\" - \"&CCS!$B109","v":"Bruser - XLB"},"XLB","Bruser","Nødbruser, udtag, tapsted, bruserpanel, ","kapsel-flow forbindende komponent der forbinder en fler-strålet aftapningsenhed til et vandsystem"]
[{"$f":"CCS!$C110&\" - \"&CCS!$B110","v":"Bundsikringslag - FRE"},"FRE","Bundsikringslag","Bundlag, Sandfyld, grusfyld, bundsikringsgrus, slaggelag, sandlag, gruslag, knust stenlag, uknust stenlag, blandingslag","klimabeskyttende komponent der forhindrer at overliggende bygningsdele skades af frost ved kapilarbrydning"]
[{"$f":"CCS!$C111&\" - \"&CCS!$B111","v":"Computer - KFC"},"KFC","Computer","Server, client, klient, hovedstation, hovedcentral, ","elektrisk signalinformation komponent der aktivt løser opgaver eller kommunikerer centralt på et datanetværk"]
[{"$f":"CCS!$C112&\" - \"&CCS!$B112","v":"Container - CNA"},"CNA","Container","Affaldscontainer, ","flytbar stoflagrende komponent til materialer"]
[{"$f":"CCS!$C113&\" - \"&CCS!$B113","v":"Cos-phi meter - PGM"},"PGM","Cos-phi meter"," ","diskret-variabel komponent der viser forskydning mellem aktiv effekt og reaktiv effekt"]
[{"$f":"CCS!$C114&\" - \"&CCS!$B114","v":"Cyklus detektor - BZE"},"BZE","Cyklus detektor"," ","hændelsesomformende komponent fra information om perioder til en anden variabel eller elektriske signaler"]
[{"$f":"CCS!$C115&\" - \"&CCS!$B115","v":"Dækplade - ULK"},"ULK","Dækplade","Dæk, dækelement, Huldæk, bobledæk, spændbetondæk, betondæk, trædæk, ","konstruktiv komponent uden for undergrunden hvis længde i et plan er meget større end længden vinkelret på og som primært overfører last der virker vinkelret på planen"]
[{"$f":"CCS!$C116&\" - \"&CCS!$B116","v":"Dæksel - NBE"},"NBE","Dæksel","Låg, brønddæksel, Brønddæksel, renselem","aflukkende komponent der lukker åbning i beholder"]
[{"$f":"CCS!$C117&\" - \"&CCS!$B117","v":"Dampbeholder - CPC"},"CPC","Dampbeholder","Damplager, damptank, ","termisk energilagrende komponent til damp"]
[{"$f":"CCS!$C118&\" - \"&CCS!$B118","v":"Damplampe - EAB"},"EAB","Damplampe","Lampe, lyskilde, lysgiver, Kompaktlysrør, natriumlampe, neonlys, metalhalogen, induktionslampe, lysstofrør","lysafgivende komponent fra udladningsproces i lyskilden"]
[{"$f":"CCS!$C119&\" - \"&CCS!$B119","v":"Datakabel - WGB"},"WGB","Datakabel","Kabel, PDS-kabel, datalinje, bus, datakommunikationsbus, computerbus, Backbonekabel, dropkabel, patchkabel","elektronisk signaltransporterende komponent for datasignaler mellem to punkter"]
[{"$f":"CCS!$C120&\" - \"&CCS!$B120","v":"Densitet switch - BDB"},"BDB","Densitet switch","Massefyldeswitch, ","densitetomformende komponet til boolsk værdi"]
[{"$f":"CCS!$C121&\" - \"&CCS!$B121","v":"Densitetstransmitter - BDA"},"BDA","Densitetstransmitter","Massefyldetransmitter,  massefyldemåler, densitetssensor, densitetsmåler, ","densitetomformende komponet til diskret variabel"]
[{"$f":"CCS!$C122&\" - \"&CCS!$B122","v":"Diffusor - RNC"},"RNC","Diffusor","Indblæsningsarmatur (anemostat, armatur), udsugningsarmatur (armatur), punktudsug","luftbegrænsende komponent der omsætter trykenergi i en gas- eller luftstrøm til bevægelsesenergi"]
[{"$f":"CCS!$C123&\" - \"&CCS!$B123","v":"Diode - RAA"},"RAA","Diode"," ","elektrisk begrænsende komponent med to tilledninger der tillader strøm at løbe i gennemgangsretning, men næsten ikke i spærreretning"]
[{"$f":"CCS!$C124&\" - \"&CCS!$B124","v":"Display - PHA"},"PHA","Display","Tablet, skærm, Fladskærm, TV, monitor, touchskærm, lærred","variabel-information komponent der i form af en fast afgrænset flade gengiver information fra en anden bygningsdel"]
[{"$f":"CCS!$C125&\" - \"&CCS!$B125","v":"Dør - QQC"},"QQC","Dør","Indgang, udgang, dørelement, dørparti, Foldedør, skydedør, yderdør, ståldør, karusseldør, automatisk dør, enkeltdør, halvandendør\ndobbbeltdør, fransk dør\nkarusseldør, svingdør, \nfoldedør, hæve-/ skydedør, automatisk dør, yderdør, ho-veddør, terrassedør, entrédør, branddør lyddør, elevatordør\n","adgangsgivende komponent primært for personer"]
[{"$f":"CCS!$C126&\" - \"&CCS!$B126","v":"Dørblad - NBA"},"NBA","Dørblad","Dørflage, dørfløj, dørplade, Foldedør, skydedør, yderdør, ståldør, karusseldør","aflukkende komponent der lukker åbning i dør"]
[{"$f":"CCS!$C127&\" - \"&CCS!$B127","v":"Dørlukker - MLB"},"MLB","Dørlukker","Dørpumpe, dørfjeder, dørtilslutter, ","mekanisk drivkomponent der automatisk lukker dører"]
[{"$f":"CCS!$C128&\" - \"&CCS!$B128","v":"Dørroset - NCS"},"NCS","Dørroset","Roset, ","afdækkende komponent i form af skive placeret på dørplade ved gennemføring af dørgrebspind  "]
[{"$f":"CCS!$C129&\" - \"&CCS!$B129","v":"Dørskilt - NCR"},"NCR","Dørskilt","Nøgleskilt, Langskilt","afdækkende komponent i form af plade der omgiver nøglehul "]
[{"$f":"CCS!$C130&\" - \"&CCS!$B130","v":"Dørtrin - UNB"},"UNB","Dørtrin","Bundstykke, bundkarm, dørtærskel, tærskel, ","fast indrammende komponent i karm omkring dør eller port mod underliggende bygningsdel"]
[{"$f":"CCS!$C131&\" - \"&CCS!$B131","v":"Drænlag - WMA"},"WMA","Drænlag","Makadam, filtergruslag, drænasfalt, grusfilter, stenfilter, måtte, plade, kassette","åben væsketransporterende komponent der leder vand væk fra overliggende bygningsdel"]
[{"$f":"CCS!$C132&\" - \"&CCS!$B132","v":"Drypkop - XLF"},"XLF","Drypkop","Opsamlingsenhed","kapsel-flow forbindende komponent der opsamler og bortskaffer overskydende vand i tekniske systemer"]
[{"$f":"CCS!$C133&\" - \"&CCS!$B133","v":"Dynamo - GAB"},"GAB","Dynamo"," ","mekanisk energikomponent der omdanner moment til elektricitet"]
[{"$f":"CCS!$C134&\" - \"&CCS!$B134","v":"Dyse - RMC"},"RMC","Dyse","Flowbegrænser, sprinkler, sprinklerhoved, ","væskebegrænsende komponent der omsætter trykenergi i en væskestrøm til bevægelsesenergi"]
[{"$f":"CCS!$C135&\" - \"&CCS!$B135","v":"El-dåse - XDC"},"XDC","El-dåse","Dåse, samledåse, afgreningsdåse, fordelingsdåse, Udvendig monteringsdåse, indbygningsdåse, kanaldåser","effektforbindende komponent der indkapsler og muliggør forbindelse mellem flere ens elektriske strømkredse"]
[{"$f":"CCS!$C136&\" - \"&CCS!$B136","v":"Elektrisk aktuator - MAC"},"MAC","Elektrisk aktuator","Aktuator, Døråbner, vinduesoplukker, portåbner","elektromagnetisk drivkomponent der omsætter et elektrisk kommandosignal til en kraftig mekanisk handling"]
[{"$f":"CCS!$C137&\" - \"&CCS!$B137","v":"Elektrisk filter - RFB"},"RFB","Elektrisk filter"," ","signalstabiliserende komponent der udvælger eller undertrykker bestemte dele af et sammensat signal"]
[{"$f":"CCS!$C138&\" - \"&CCS!$B138","v":"Elektrisk kedel - EBA"},"EBA","Elektrisk kedel"," ","elektrisk varmeenergikomponent der opvarmer til varmt vand, hedtvand eller damp"]
[{"$f":"CCS!$C139&\" - \"&CCS!$B139","v":"Elektrisk varmeblæser - EBD"},"EBD","Elektrisk varmeblæser","Varmlufttæppe","elektrisk varmeenergikomponent der opvarmer omgivelserne i form af varm luft i flow"]
[{"$f":"CCS!$C140&\" - \"&CCS!$B140","v":"Elektrisk varmekabel - EBC"},"EBC","Elektrisk varmekabel","El-tracing, ","elektrisk varmeenergikomponent der opvarmer omgivelserne i form af et fleksibelt kabel"]
[{"$f":"CCS!$C141&\" - \"&CCS!$B141","v":"Elektrisk varmerør - EBE"},"EBE","Elektrisk varmerør","Håndklædetørrer, Varmelegeme","elektrisk varmeenergikomponent der opvarmer omgivelserne i form af et fast rørsystem"]
[{"$f":"CCS!$C142&\" - \"&CCS!$B142","v":"Elektrisk varmflade - EBB"},"EBB","Elektrisk varmflade","Strålevarmeanlæg, kalorifere, varmekalorifere, el-radiator, el-ovn, varmetæppe","elektrisk varmeenergikomponent der opvarmer omgivelserne i form af en opvarmet flade"]
[{"$f":"CCS!$C143&\" - \"&CCS!$B143","v":"Elektromagnetisk målerelæ - BEA"},"BEA","Elektromagnetisk målerelæ","Måleværdiomformer, målerelæ","elektromagnetisk variabelomformende komponent der omformer til et andet elektrisk signal i faste trin"]
[{"$f":"CCS!$C144&\" - \"&CCS!$B144","v":"Elektromagnetisk måletransformer - BEB"},"BEB","Elektromagnetisk måletransformer","Måletransformer","elektromagnetisk variabelomformende komponent der omformer til et andet elektrisk signal trinløst"]
[{"$f":"CCS!$C145&\" - \"&CCS!$B145","v":"Elektromotor - MAA"},"MAA","Elektromotor","Motor, hjælpemotor","elektromagnetisk drivkomponent der omsætter elektrisk energi til kinetisk energi i form af mekanisk rotation"]
[{"$f":"CCS!$C146&\" - \"&CCS!$B146","v":"Elektrostatfilter - HRA"},"HRA","Elektrostatfilter"," ","elektrostatikseparerende komponent der ved hjælp af elektricitet tilbageholder partikler fra luft"]
[{"$f":"CCS!$C147&\" - \"&CCS!$B147","v":"Elevatorstol - CND"},"CND","Elevatorstol"," ","flytbar stoflagrende komponent til personer eller gods"]
[{"$f":"CCS!$C148&\" - \"&CCS!$B148","v":"El-måler - BJD"},"BJD","El-måler","kWh-måler","forbrugsomformende komponent til elektricitet"]
[{"$f":"CCS!$C149&\" - \"&CCS!$B149","v":"El-tavle - UAA"},"UAA","El-tavle","Tavle, skab, el-skab, centralskab, boks, Hovedtavle, fordelingstavle, generatortavle, UPS-tavle, gruppetavle (etagetavle), kabelskab, højspændingsfelt, transformerkiosk, Underskab, tavle, kontroltavle, CTS-hovedtavle, CTS-undertavle, IBI-boks","lukket indkapslende komponent for elektrisk koblingsmateriel"]
[{"$f":"CCS!$C150&\" - \"&CCS!$B150","v":"Encoder - BUC"},"BUC","Encoder","Indkoder, koder, AD-omsætter, DA-omsætter","multivariabelomformende komponent af information eller kode til et andet format"]
[{"$f":"CCS!$C151&\" - \"&CCS!$B151","v":"Ensretter - TAC"},"TAC","Ensretter","AC/DC omformer, Tyristorstyring","elektrisk energiomformende komponent der omdanner vekselstrøm til jævnstrøm"]
[{"$f":"CCS!$C152&\" - \"&CCS!$B152","v":"Equalizer - RFA"},"RFA","Equalizer"," ","signalstabiliserende komponent der elektronisk bearbejder lyd"]
[{"$f":"CCS!$C153&\" - \"&CCS!$B153","v":"Fasekompensering - RBC"},"RBC","Fasekompensering"," ","elektrisk stabiliserende komponent der producerer reaktiv strøm"]
[{"$f":"CCS!$C154&\" - \"&CCS!$B154","v":"Fejeliste - NCL"},"NCL","Fejeliste","Sandliste, Trekantliste","afdækkende komponent over mellemrum mellem fodpanel eller karm og gulv  "]
[{"$f":"CCS!$C155&\" - \"&CCS!$B155","v":"Felt - NAB"},"NAB","Felt","Fast parti, brystning, Ventilationsfelt, blændingsfelt, dørfyldning","udfyldende komponent der forhindrer lysindfald"]
[{"$f":"CCS!$C156&\" - \"&CCS!$B156","v":"Fiberkabel - WHA"},"WHA","Fiberkabel","Fiber, optisk kabel, fiberkabel, Backbonekabel, dropkabel","optisk signaltransporterende komponent for signaler i form af lys mellem to punkter"]
[{"$f":"CCS!$C157&\" - \"&CCS!$B157","v":"Figur - PLB"},"PLB","Figur","Gesimsfigur, karyatide, ornament, arabesk","udsmykkende komponent der afbilder en genstand rumligt"]
[{"$f":"CCS!$C158&\" - \"&CCS!$B158","v":"Filter - HQA"},"HQA","Filter","Snavssamler, Fedtfilter, posefilter, sandfilter, planfilter, elektrofilter, kulfilter, , drænfilter, vandrensningsfilter","filtrerende komponent der fjerner uønskede substanser eller partikler fra luft eller væske"]
[{"$f":"CCS!$C159&\" - \"&CCS!$B159","v":"Flammedetektor - BRC"},"BRC","Flammedetektor"," ","strålingsomformende komponent fra tilstædeværelse af ild (flamme) til boolsk værdi"]
[{"$f":"CCS!$C160&\" - \"&CCS!$B160","v":"Fodblik - WME"},"WME","Fodblik"," ","åben væsketransporterende komponent der leder væske bort ved tagfod"]
[{"$f":"CCS!$C161&\" - \"&CCS!$B161","v":"Fodpanel - NCK"},"NCK","Fodpanel","Fodliste, fodbræt","afdækkende komponent  ved overgang mellem gulv og væg"]
[{"$f":"CCS!$C162&\" - \"&CCS!$B162","v":"Forbrændingsmotor - MSA"},"MSA","Forbrændingsmotor"," ","kemisk drivkomponent der omdanner kemisk bundet energi til mekanisk arbejde"]
[{"$f":"CCS!$C163&\" - \"&CCS!$B163","v":"Fordamper - EQB"},"EQB","Fordamper","Fordamperkondensator","konvektionskøling komponent i form af  omdannelse til gas"]
[{"$f":"CCS!$C164&\" - \"&CCS!$B164","v":"Forstærker - TFA"},"TFA","Forstærker","TV-forstærker","signalomformende komponent der på sin udgang leverer et større effektsignal med samme kurveform som indgangssignalet"]
[{"$f":"CCS!$C165&\" - \"&CCS!$B165","v":"Forstærkningslag - UMC"},"UMC","Forstærkningslag","Armering, Net, dug, geonet, kalkstabilisering, jordarmering","forstærkende komponent i befæstelse"]
[{"$f":"CCS!$C166&\" - \"&CCS!$B166","v":"Fotocelle - BRD"},"BRD","Fotocelle","Linjedetektor, lystæppe, IR-barriere","strålingsomformende komponent fra optisk signal til et elektrisk signal"]
[{"$f":"CCS!$C167&\" - \"&CCS!$B167","v":"Frekvensmåler - BSA"},"BSA","Frekvensmåler","Frekvenstransmitter, akustisk glasbrudsdetektor, frekvens, ","hastighed/frekvensomformende komponent fra frekvens til diskret variabel"]
[{"$f":"CCS!$C168&\" - \"&CCS!$B168","v":"Frekvensmeter - PGJ"},"PGJ","Frekvensmeter","Frekvensviser, ","diskret-variabel komponent der viser elektrisk frekvens"]
[{"$f":"CCS!$C169&\" - \"&CCS!$B169","v":"Frekvensomformer - TAE"},"TAE","Frekvensomformer","AC/AC omformer, Switch mode power supply,  lysdæmper","elektrisk energiomformende komponent der omsætter vekselstrømseffekt til tilsvarende effekt ved en anden frekvens (AC/AC)"]
[{"$f":"CCS!$C170&\" - \"&CCS!$B170","v":"Frise - PLC"},"PLC","Frise","Relief, basrelief, hautrelief","udsmykkende komponent i form af samlet udsmykningselement på væg med figurer eller ornamenter  "]
[{"$f":"CCS!$C171&\" - \"&CCS!$B171","v":"Fuge - NAD"},"NAD","Fuge","Fugelukning, Dilatationsfuge, totrinsfuge, brandfuge, isoleringsfuge, fugebånd, bagstop, fugemasse, stopning, lydtætning","udfyldende komponent der tætner mindre åbninger i eller mellem bygningsdele  "]
[{"$f":"CCS!$C172&\" - \"&CCS!$B172","v":"Fuglenet - FQA"},"FQA","Fuglenet"," ","hindrende komponent mod fugles adgang til bagvedliggende hulrum  "]
[{"$f":"CCS!$C173&\" - \"&CCS!$B173","v":"Fugtswitch - BMB"},"BMB","Fugtswitch","Fugtvagt","fugtighedsomformende komponent til boolsk værdi"]
[{"$f":"CCS!$C174&\" - \"&CCS!$B174","v":"Fugttransmitter - BMA"},"BMA","Fugttransmitter","Fugtmåler, fugtsensor","fugtighedsomformende komponent til diskret variabel"]
[{"$f":"CCS!$C175&\" - \"&CCS!$B175","v":"Fundamentsbjælke - UKE"},"UKE","Fundamentsbjælke","stribefundament, linjefundament, randfundament","konstruktiv komponent i undergrunden hvis længde i den ene retning er meget større end længderne i de andre retninger og som primært overfører last der virker vinkelret på længderetningen"]
[{"$f":"CCS!$C176&\" - \"&CCS!$B176","v":"Fundamentsdækplade - UKF"},"UKF","Fundamentsdækplade","Pladefundament","konstruktiv komponent i undergrunden hvis længde i et plan er meget større end længden vinkelret på og som primært overfører last der virker vinkelret på planen"]
[{"$f":"CCS!$C177&\" - \"&CCS!$B177","v":"Fundamentsmassiv - UKG"},"UKG","Fundamentsmassiv","Klods, pladefundament,  sænkekasse, punktfundament, ","stor konstruktiv komponent i undergrunden der udgør en samlet enhed i sig selv"]
[{"$f":"CCS!$C178&\" - \"&CCS!$B178","v":"Fundamentssøjle - UKD"},"UKD","Fundamentssøjle","Pæl, pille, brøndfundament, boret pæl, ","konstruktiv komponent i undergrunden hvis længde i den ene retning er meget større end længderne i de andre retninger og som primært overfører aksiallast"]
[{"$f":"CCS!$C179&\" - \"&CCS!$B179","v":"Fundamentsvægplade - UKH"},"UKH","Fundamentsvægplade","Støttemure, spunsvægge, ","konstruktiv komponent i undergrunden hvis længde i et plan er meget større end længden vinkelret på og som primært overfører aksiallast i planet"]
[{"$f":"CCS!$C180&\" - \"&CCS!$B180","v":"Gardin - RQE"},"RQE","Gardin","Screen, Rullegardin, foldegardin, netgardin, mørklægningsgardin","miljøstabiliserende komponent i form af tekstil der begrænser lysgennemgang"]
[{"$f":"CCS!$C181&\" - \"&CCS!$B181","v":"Gasflaske - CNB"},"CNB","Gasflaske","Flaske, ","flytbar stoflagrende komponent til gas"]
[{"$f":"CCS!$C182&\" - \"&CCS!$B182","v":"Gasflowmåler - BFB"},"BFB","Gasflowmåler","Gasmåler, Iltmåler","flowomformende komponent til gasgennemstrømning"]
[{"$f":"CCS!$C183&\" - \"&CCS!$B183","v":"Gasmåler - BJA"},"BJA","Gasmåler","Energimåler, effektmåler, effekttransmitter, ","forbrugsomformende komponent til gas"]
[{"$f":"CCS!$C184&\" - \"&CCS!$B184","v":"Gateway - TFC"},"TFC","Gateway"," ","signalomformende komponent der aktivt eller passivt forbinder to datanetværk med omformning af signal"]
[{"$f":"CCS!$C185&\" - \"&CCS!$B185","v":"Generator - GAA"},"GAA","Generator","Generator, nød-generator, diselgenerator, ","mekanisk energikomponent der producerer vekselstrøm"]
[{"$f":"CCS!$C186&\" - \"&CCS!$B186","v":"Gesims - PLA"},"PLA","Gesims"," ","udsmykkende komponent der i form af vandretliggende fremstående bånd danner udsmykkende overgang mellem to facadedele eller mellem tag og facade"]
[{"$f":"CCS!$C187&\" - \"&CCS!$B187","v":"Gitter - NAC"},"NAC","Gitter","Rist, jalousi, Rullegitter, saksegitter, rullejalousi, måtterist, lyskasserist, ventilationsrist","udfyldende komponent der tillader luftgennemstrømning og lysindfald"]
[{"$f":"CCS!$C188&\" - \"&CCS!$B188","v":"Glødelampe - EAA"},"EAA","Glødelampe","Lampe, lyskilde, lysgiver, Kultrådslampe, halogenlampe","lysafgivende komponent fra glødetråd"]
[{"$f":"CCS!$C189&\" - \"&CCS!$B189","v":"Greb - SLA"},"SLA","Greb","Håndtag, vrider, Dørgreb, dørhåndtag, dørklinke, vinduesgreb, skuffegreb, skabsgreb, dørknop","mekanisk signalgiverkomponent der ved bevægelse bevirker åbning og lukning af andre bygningsdele"]
[{"$f":"CCS!$C190&\" - \"&CCS!$B190","v":"Gulvafløb - XLH"},"XLH","Gulvafløb"," ","kapsel-flow forbindende komponent der opsamler og bortskaffer overskydende vand fra gulv"]
[{"$f":"CCS!$C191&\" - \"&CCS!$B191","v":"Gulvbelægning - NCC"},"NCC","Gulvbelægning","Gulvbeklædning, beklædningsplade, Fast tæppe, tæppefliser, tekstilbelægning, linoliumbelægning, vinylbelægning, korkbelægning","afdækkende komponent i form af øvre lag i dækopbygning"]
[{"$f":"CCS!$C192&\" - \"&CCS!$B192","v":"Håndliste - FQC"},"FQC","Håndliste"," ","aflang hindrende komponent mod personers fald som man kan gribe om og holde fast i"]
[{"$f":"CCS!$C193&\" - \"&CCS!$B193","v":"Harmonisk filter - RBB"},"RBB","Harmonisk filter","Overharmonisk filter, ","elektrisk stabiliserende komponent der filtrerer overharmoniske strømme fra den grundllæggende netfrekvens"]
[{"$f":"CCS!$C194&\" - \"&CCS!$B194","v":"Hegn - RUA"},"RUA","Hegn","Perimetersikring, perimeterafgrænsning, Boldhegn, dyrehegn, fodhegn","adgangsbegrænsende komponent der fysisk og visuelt adskiller udendørs områder"]
[{"$f":"CCS!$C195&\" - \"&CCS!$B195","v":"Højspændingskabel - WBB"},"WBB","Højspændingskabel","Kabel, stikledning, ","højspændingstransporterende komponent der transporterer højspænding mellem to punkter"]
[{"$f":"CCS!$C196&\" - \"&CCS!$B196","v":"Højspændingskanalskinne - WBA"},"WBA","Højspændingskanalskinne","Samleskinne, kanalskinne, ","højspændingstransporterende komponent der transporterer højspænding mellem flere punkter"]
[{"$f":"CCS!$C197&\" - \"&CCS!$B197","v":"Højttaler - PJA"},"PJA","Højttaler","Signalgiver, horn, ","hørbar information komponent der afgiver en variabel lyd"]
[{"$f":"CCS!$C198&\" - \"&CCS!$B198","v":"Horn - PJB"},"PJB","Horn","Lydgiver, signalgiver, Sirene, brummer","hørbar information komponent der afgiver en konstant høj lyd"]
[{"$f":"CCS!$C199&\" - \"&CCS!$B199","v":"HPFI-relæ - FBA"},"FBA","HPFI-relæ"," ","fejlstrømskomponent der afbryder ved en fejlstrøm i et elektrisk net"]
[{"$f":"CCS!$C200&\" - \"&CCS!$B200","v":"Hul - XTA"},"XTA","Hul","Åbning, durchsicht, Dørhul, vindueshul, rørgennemføring, boregang, borehul, boring","rumforbindende komponent i form af en gennembrydning af en bygningsdel  "]
[{"$f":"CCS!$C201&\" - \"&CCS!$B201","v":"Hygrometer - PGC"},"PGC","Hygrometer"," ","diskret-variabel komponent der viser fugtighed"]
[{"$f":"CCS!$C202&\" - \"&CCS!$B202","v":"Imprægnering - FRC"},"FRC","Imprægnering","Trykimprægnering, vacuumimprægnering, anti-grafitti-behandling","klimabeskyttende komponent i form af en påført eller induceret væske som gør modstandsdygtig over for udefra kommende nedbrydning eller ødelæggelse  "]
[{"$f":"CCS!$C203&\" - \"&CCS!$B203","v":"Inddækning - WMC"},"WMC","Inddækning","Kapsel, løskant, indskud","åben væsketransporterende komponent der afleder væske ved overgang mellem to bygningsdele"]
[{"$f":"CCS!$C204&\" - \"&CCS!$B204","v":"Indfanger - XEE"},"XEE","Indfanger","Lynfanger, lynafleder, ","potentialeforbindende komponent der forbinder et elektrisk lyn til en elektrisk kreds"]
[{"$f":"CCS!$C205&\" - \"&CCS!$B205","v":"Indfatning - NCJ"},"NCJ","Indfatning","Gericht, gerigt, ","afdækkende komponent der beklæder overgang mellem væg og karm eller lysning  "]
[{"$f":"CCS!$C206&\" - \"&CCS!$B206","v":"Indreguleringsspjæld - RNB"},"RNB","Indreguleringsspjæld","IRIS-spjæld, Volumenstrømsregulator, volustat","luftbegrænsende komponent der permanent begrænser et flow i en luftstrøm"]
[{"$f":"CCS!$C207&\" - \"&CCS!$B207","v":"Indreguleringsventil - RMB"},"RMB","Indreguleringsventil","Flowbegrænser, trykbegrænser, Strengreguleingsventil, cirkulationsventil, trykdifferensregulator","væskebegrænsende komponent der permanent begrænser et flow eller tryk i en væskestrøm"]
[{"$f":"CCS!$C208&\" - \"&CCS!$B208","v":"Induktionsspole - RAB"},"RAB","Induktionsspole","Spole, ","elektrisk begrænsende komponent der ved induktion lagrer energi og regulerer spænding"]
[{"$f":"CCS!$C209&\" - \"&CCS!$B209","v":"Input/output modul - KFF"},"KFF","Input/output modul","Decentralt I/O modul, busmodul, undercentral, ","elektrisk signalinformation komponent der aktivt løser opgaver eller kommunikerer decentralt på et datanetværk"]
[{"$f":"CCS!$C210&\" - \"&CCS!$B210","v":"Isolator - UBC"},"UBC","Isolator"," ","isolerende punktvis understøttende komponent"]
[{"$f":"CCS!$C211&\" - \"&CCS!$B211","v":"Isolering - RQA"},"RQA","Isolering","Konstruktiv isolering, teknisk isolering, Varmeisolering, kuldeisolering, køleisolering, kondensisolering brandisolering, lydisolering, mineraluldsisolering, akutikplade, baffel","miljøstabiliserende komponent for flow af kulde, varme eller lyd"]
[{"$f":"CCS!$C212&\" - \"&CCS!$B212","v":"Istank - CPB"},"CPB","Istank"," ","termisk energilagrende komponent til koldt vand"]
[{"$f":"CCS!$C213&\" - \"&CCS!$B213","v":"IT-switch - KFE"},"KFE","IT-switch","Switch, router, hub","elektrisk signalinformation komponent der aktivt eller passivt forbinder to datanetværk uden omformning af signal"]
[{"$f":"CCS!$C214&\" - \"&CCS!$B214","v":"Jordanker - UKC"},"UKC","Jordanker"," ","konstruktiv komponent i undergrunden hvis længde i den ene retning er meget større end længderne i de andre retninger og som alene overfører aksiallast i form af træk"]
[{"$f":"CCS!$C215&\" - \"&CCS!$B215","v":"Jorddækning - FQE"},"FQE","Jorddækning","Planteplade, flis, ukrudtsdug","hindrende komponent mod ukrudts vækst"]
[{"$f":"CCS!$C216&\" - \"&CCS!$B216","v":"Jordelektrode - XED"},"XED","Jordelektrode","Jordbed, ringjord, driftsjord, Jordspyd, jordplade, ","potentialeforbindende komponent der skaber en stabil elektrisk forbindelse til ledende jord"]
[{"$f":"CCS!$C217&\" - \"&CCS!$B217","v":"Jordingskobler - QCA"},"QCA","Jordingskobler"," ","jordende elektrisk komponent der kobler elektrisk kreds til jord"]
[{"$f":"CCS!$C218&\" - \"&CCS!$B218","v":"Jordklemme - XEA"},"XEA","Jordklemme"," ","potentialeforbindende komponent der giver forbindelse til jordpotentiale"]
[{"$f":"CCS!$C219&\" - \"&CCS!$B219","v":"Jordleder - WEB"},"WEB","Jordleder","Jordkabel, beskyttelsesleder, ledende net (kobbernet)","potentilatetransporterende komponent der leder jordpotentiale mellem to punkter"]
[{"$f":"CCS!$C220&\" - \"&CCS!$B220","v":"Jordskinne - WEA"},"WEA","Jordskinne","Hovedjordskinne, hovedjordplint, plint","potentilatetransporterende komponent der fordeler jordpotentiale mellem flere punkter"]
[{"$f":"CCS!$C221&\" - \"&CCS!$B221","v":"Kabelføringsvej - UBA"},"UBA","Kabelføringsvej","Kabelbakke, kabelstige, installationskanal, kabelkanal, trækrør, føringsvej, foringsrør, gitterbakke, kabelplade, kabelgrav (kabelblok), gulvkanal, gulvboks","ikke-isolerende fuldt understøttende komponent"]
[{"$f":"CCS!$C222&\" - \"&CCS!$B222","v":"Kamera - BXB"},"BXB","Kamera","Videokamera, profilkontrol, CCTV, PTZ kamera","lyd- og billedomformende komponent fra billeder til elektriske signaler"]
[{"$f":"CCS!$C223&\" - \"&CCS!$B223","v":"Kanalfitting - XMF"},"XMF","Kanalfitting"," ","flow-flow forbindende komponent der formidler retningsændringer, afgreninger og samlinger i kanaler"]
[{"$f":"CCS!$C224&\" - \"&CCS!$B224","v":"Kant - NDA"},"NDA","Kant","Elementkant, kantsten, stålskinne, lodretstående flise, betonkant, jernkant, naturstenskant, trækant","afsluttende komponent der afgrænser side eller flade"]
[{"$f":"CCS!$C225&\" - \"&CCS!$B225","v":"Kapacitor - CAA"},"CAA","Kapacitor","Kondensator, ","kapacitivt lagrende komponent der lagre en elektrisk ladning"]
[{"$f":"CCS!$C226&\" - \"&CCS!$B226","v":"Karm - UNA"},"UNA","Karm","Dørkarm, vindueskarm, overkarm, underkarm, bundkarm, sidekarm, vinduespost, tværpost, lodpost ","fast indrammende komponent omkring dørblad, portblad, rist, vinduesramme, rude eller felt"]
[{"$f":"CCS!$C227&\" - \"&CCS!$B227","v":"Karrusel - RUC"},"RUC","Karrusel","Vindmølle, tælleapparat, personkarrusel, turnstyle, speedgate, ","adgangsbegrænsende komponent der tillader adgang til og fra et område for et stærkt begrænset antal personer ad gangen."]
[{"$f":"CCS!$C228&\" - \"&CCS!$B228","v":"Kedel - EMB"},"EMB","Kedel"," ","forbrændingskomponent der opvarmer vand til videre afgivelse af varme eller damp"]
[{"$f":"CCS!$C229&\" - \"&CCS!$B229","v":"Kemisk fastgørelsesmiddel - UQC"},"UQC","Kemisk fastgørelsesmiddel","fast binder, lim, limanker, lodning, murbinder, murværksbinder, svejsesøm, tagstensbinder, trådbinder","forbindelsesmiddel der kemisk fastgør bygningsdele til hinanden  "]
[{"$f":"CCS!$C230&\" - \"&CCS!$B230","v":"Kemisk samling - UPD"},"UPD","Kemisk samling","Limanker","samlende komponent der virker kemisk"]
[{"$f":"CCS!$C231&\" - \"&CCS!$B231","v":"Klemme - XDA"},"XDA","Klemme","Klemmerække, ","effektforbindende komponent der forbinder en enhed til et el-fordelingsanlæg"]
[{"$f":"CCS!$C232&\" - \"&CCS!$B232","v":"Klokke - PJC"},"PJC","Klokke","Signalgiver, dørklokke, ","hørbar information komponent der afgiver en konstant lyd med fast interval"]
[{"$f":"CCS!$C233&\" - \"&CCS!$B233","v":"Kølefancoil - EZC"},"EZC","Kølefancoil"," ","kombineret energigivende komponent med ventilator og ét vandveksler-kredsløb til overførsel af køling fra et medie til et andet uden at medierne blandes"]
[{"$f":"CCS!$C234&\" - \"&CCS!$B234","v":"Køleflade - EQA"},"EQA","Køleflade","Kølegiver, Køleelement, køleaggregat, køleloft, kølebaffel","konvektionskøling komponent der i form af en stor flade afgiver kulde i et lukket teknisk anlæg"]
[{"$f":"CCS!$C235&\" - \"&CCS!$B235","v":"Kølemåler - BJB"},"BJB","Kølemåler","Energimåler, ","forbrugsomformende komponent til køling"]
[{"$f":"CCS!$C236&\" - \"&CCS!$B236","v":"Kølemaskine - ESA"},"ESA","Kølemaskine","Kølemaskine, ","køling ved fordampning i form af nedkøling i større tekniske anlæg"]
[{"$f":"CCS!$C237&\" - \"&CCS!$B237","v":"Kølepanel - EQE"},"EQE","Kølepanel","Kølebaffel, ","konvektionskøling komponent der i form af en stor flade der afgiver kulde til et rum"]
[{"$f":"CCS!$C238&\" - \"&CCS!$B238","v":"Kølepumpe - EQC"},"EQC","Kølepumpe","Varme/kølepumpe, ","konvektionskøling komponent der i form af termisk energi der overføres fra en kilde til en køleafleder"]
[{"$f":"CCS!$C239&\" - \"&CCS!$B239","v":"Køletårn - EQD"},"EQD","Køletårn"," ","konvektionskøling komponent der i form af afkøling af vand eller væske ved hjælp af luft"]
[{"$f":"CCS!$C240&\" - \"&CCS!$B240","v":"Kombinerede brand- og røgspjæld - FMC"},"FMC","Kombinerede brand- og røgspjæld"," ","brandsikringskomponent der lukker for en luftstrøm ved detektering af røg eller brand"]
[{"$f":"CCS!$C241&\" - \"&CCS!$B241","v":"Kombineret varme- og kølefancoil - EZD"},"EZD","Kombineret varme- og kølefancoil"," ","kombineret energigivende komponent med ventilator og to vandveksler-kredsløb til overførsel af køling eller varme fra et medie (kølevand eller vandvarme) til et andet uden at medierne blandes"]
[{"$f":"CCS!$C242&\" - \"&CCS!$B242","v":"Kompressor - GQB"},"GQB","Kompressor"," ","gas- og luftgivende komponent der komprimerer luft og andre gasser"]
[{"$f":"CCS!$C243&\" - \"&CCS!$B243","v":"Konsol - ULN"},"ULN","Konsol","Krumknægt, volutkonsol","udragende konstruktiv komponent uden for undergrunden der understøtter overliggende bygningsdele"]
[{"$f":"CCS!$C244&\" - \"&CCS!$B244","v":"Konstruktiv fuge - UPB"},"UPB","Konstruktiv fuge","Understøbning, fuge, elementsamling, Vægfuge, dækfuge, selvforskallende fuge","samlende komponent der virker ved udstøbning"]
[{"$f":"CCS!$C245&\" - \"&CCS!$B245","v":"Kontaktor - QAA"},"QAA","Kontaktor","Hovedkontaktor, styrekontakt","elektrisk koblende komponent der mekanisk kobler effekt i elektriske kredse"]
[{"$f":"CCS!$C246&\" - \"&CCS!$B246","v":"Kontraspjæld - RNA"},"RNA","Kontraspjæld"," ","luftbegrænsende komponent der forhindrer eller begrænser returflow i en luftstrøm"]
[{"$f":"CCS!$C247&\" - \"&CCS!$B247","v":"Kontraventil - RMA"},"RMA","Kontraventil","Tilbagestrømningsventil","væskebegrænsende komponent der forhindrer returflow i en væskestrøm"]
[{"$f":"CCS!$C248&\" - \"&CCS!$B248","v":"Korrosionsbeskyttelse - FRD"},"FRD","Korrosionsbeskyttelse","Metalbeskyttelse, metalovefladebehandling, Anodisering, eloxering, galvanisering","klimabeskyttende komponent mod oxidering af metal"]
[{"$f":"CCS!$C249&\" - \"&CCS!$B249","v":"Kortlæser - BZC"},"BZC","Kortlæser","Forbikobler, Magnetkortlæser, chiplæser, briklæser","hændelsesomformende komponent fra information på kort til personligt brug til elektriske signaler"]
[{"$f":"CCS!$C250&\" - \"&CCS!$B250","v":"Kortskriver - KZC"},"KZC","Kortskriver","Kortfabrik, kortprinter, ","kombineret signalinformation komponent der fremstiller datakort"]
[{"$f":"CCS!$C251&\" - \"&CCS!$B251","v":"Kraftmåler - BWB"},"BWB","Kraftmåler"," ","vægt/kraftomformende komponent fra kraft til diskrete variable"]
[{"$f":"CCS!$C252&\" - \"&CCS!$B252","v":"Kulde/varmerør - EZB"},"EZB","Kulde/varmerør","Gulvvarme, gulvkøling, ","kombineret energigivende komponent i form af et rør til overførsel af køling eller varme"]
[{"$f":"CCS!$C253&\" - \"&CCS!$B253","v":"Låge - QQF"},"QQF","Låge","Led, Havelåge, portlåge, hegnslåge","adgangsgivende komponent for uderum"]
[{"$f":"CCS!$C254&\" - \"&CCS!$B254","v":"Lågeramme - NBD"},"NBD","Lågeramme","Låge, ","aflukkende komponent der lukker åbning i låge"]
[{"$f":"CCS!$C255&\" - \"&CCS!$B255","v":"Lagermedie - CFA"},"CFA","Lagermedie","Harddisk, USB-stik, videooptager, DVR (Digital lageringsenhed for analoge videokilder), NVR (Digital lageringsenhed for digtiale videokilder)","informationslagrende komponent i form af fast disk"]
[{"$f":"CCS!$C256&\" - \"&CCS!$B256","v":"Lås - RLA"},"RLA","Lås","Låsetøj, lukketøj, låseenhed, låsekasse, Dørlås, vinduesløs, paskvil, skudrigle, klinkefald, el-slutblik, magnetllås, motorlås, kasselås","mekanisk begrænsende komponent der lukker og låser"]
[{"$f":"CCS!$C257&\" - \"&CCS!$B257","v":"Lastafbryder - QBA"},"QBA","Lastafbryder"," ","elektrisk adskillende komponent der mekanisk adskiller kredse der ikke er i drift"]
[{"$f":"CCS!$C258&\" - \"&CCS!$B258","v":"Lavspændingskabel - WDB"},"WDB","Lavspændingskabel","Kabel, , Stikledning, hovedledning, gruppeledning","lavspændingstransporterende komponent der transporterer lavspænding mellem to punkter"]
[{"$f":"CCS!$C259&\" - \"&CCS!$B259","v":"Lavspæningskanalskinne - WDA"},"WDA","Lavspæningskanalskinne","Samleskinne, kanalskinne, ","lavspændingstransporterende komponent der transporterer lavspænding mellem flere punkter"]
[{"$f":"CCS!$C260&\" - \"&CCS!$B260","v":"LED lyskilde - EAC"},"EAC","LED lyskilde","Lampe, lyskilde, lysgiver, ","lysafgivende komponent fra elektronisk komponent der afgiver synligt lys ved gennemløb af en elektrisk strøm"]
[{"$f":"CCS!$C261&\" - \"&CCS!$B261","v":"Ledningsevnemåler - BZG"},"BZG","Ledningsevnemåler"," ","hændelsesomformende komponent fra ledningsevne i en væske til andre værdier eller elektriske signaler"]
[{"$f":"CCS!$C262&\" - \"&CCS!$B262","v":"Lejeplade - ULT"},"ULT","Lejeplade","Leje, trykfordelingsplade, underlagsplade, vederlagsplade, ","konstruktiv komponent uden for undergrunden der fordeler tryk i samling mellem overliggende og underliggende bygningsdel"]
[{"$f":"CCS!$C263&\" - \"&CCS!$B263","v":"Lem - QQD"},"QQD","Lem","Luge, Tagluge, serveringsluge, røglem, taglem, loftslem, skunklem, gulvlem, kælderlem, inspektionsluge","mindre adgangsgivende komponent for personer og materiel"]
[{"$f":"CCS!$C264&\" - \"&CCS!$B264","v":"Linearmotor - MAB"},"MAB","Linearmotor","Motor, ","elektromagnetisk drivkomponent der omsætter elektrisk energi til kinetisk energi i form af mekanisk translation"]
[{"$f":"CCS!$C265&\" - \"&CCS!$B265","v":"Loftbeklædning - NCD"},"NCD","Loftbeklædning","Beklædningsplade, loftplade, Gipsplade, glasplade, fiberbetonplade, ","afdækkende komponent i form af underliggende lag i dækopbygning"]
[{"$f":"CCS!$C266&\" - \"&CCS!$B266","v":"Luftkanal - WPB"},"WPB","Luftkanal","Ventilationskanal, ","fast lukket transporterende komponent der leder luft mellem to punkter"]
[{"$f":"CCS!$C267&\" - \"&CCS!$B267","v":"Luftkvalitetsdetektor - BQB"},"BQB","Luftkvalitetsdetektor","Luftswitch, ","kvalitetsomformende komponent fra koncentrationer i luftarter til boolsk værdi"]
[{"$f":"CCS!$C268&\" - \"&CCS!$B268","v":"Luftkvalitettransmitter - BQA"},"BQA","Luftkvalitettransmitter","Gasanalysator, luftkvalitetssensor, Benzinkoncentration, CO-koncentration, CO2-koncentration, NH3-koncentration","kvalitetsomformende komponent fra koncentrationer i luftarter til diskret variabel"]
[{"$f":"CCS!$C269&\" - \"&CCS!$B269","v":"Luftslange - WPD"},"WPD","Luftslange"," ","fleksibel lukket transporterende komponent der leder gas og luft mellem to punkter"]
[{"$f":"CCS!$C270&\" - \"&CCS!$B270","v":"Luftswitch - BFD"},"BFD","Luftswitch","Flowvagt, ","flowomformende komponent fra luftmængde til boolsk værdi"]
[{"$f":"CCS!$C271&\" - \"&CCS!$B271","v":"Lufttransmitter - BFC"},"BFC","Lufttransmitter","Luftmåler, ","flowomformende komponent fra luftmængde til diskret variabel"]
[{"$f":"CCS!$C272&\" - \"&CCS!$B272","v":"Lynafleder - FAA"},"FAA","Lynafleder","Transientbeskyttelse, ","overspændingskomponent der indfanger og afleder elektriske lyn"]
[{"$f":"CCS!$C273&\" - \"&CCS!$B273","v":"Lysfiberkabel - WHB"},"WHB","Lysfiberkabel","Lysfiber, optisk kabel, fiberkabel, ","optisk signaltransporterende komponent for transport af lys fra en lyskilde til et andet punkt"]
[{"$f":"CCS!$C274&\" - \"&CCS!$B274","v":"Lysning - NCH"},"NCH","Lysning","Tilsætning, lysningspanel, Karmlysning, vindueslysning, dørlysning ","afdækkende komponent der beklæder fals i åbning"]
[{"$f":"CCS!$C275&\" - \"&CCS!$B275","v":"Lysswitch - BRB"},"BRB","Lysswitch","Lysdetektor, lysmåler, skumringsrelæ, ","strålingsomformende komponent fra lysmængde til boolsk værdi"]
[{"$f":"CCS!$C276&\" - \"&CCS!$B276","v":"Lystransmitter - BRA"},"BRA","Lystransmitter","Lystransmitter, lysmåler, lyssensor, luxsensor, ","strålingsomformende komponent fra lysmængde til diskret variabel"]
[{"$f":"CCS!$C277&\" - \"&CCS!$B277","v":"Mængdemåler - BZA"},"BZA","Mængdemåler","Regnmåler, ","hændelsesomformende komponent fra en mængde til diskrete variable"]
[{"$f":"CCS!$C278&\" - \"&CCS!$B278","v":"Magnetisk separator - HRB"},"HRB","Magnetisk separator"," ","elektrostatikseparerende komponent der ved hjælp af magnetisme tilbageholder partikler fra luft eller en væske"]
[{"$f":"CCS!$C279&\" - \"&CCS!$B279","v":"Maksimalafbryder - FCB"},"FCB","Maksimalafbryder","Effektafbryder, motorværn, Kombineret afbryder, automatsikring","selvvirkende overstrømskomponent der vd elektronisk overvågning afbryder en elektrisk kreds ved kortslutning, overstrøm eller fejlstrøm"]
[{"$f":"CCS!$C280&\" - \"&CCS!$B280","v":"Måleur - BKA"},"BKA","Måleur","Tidtager, ","tidsomformende komponent fra tid til diskret variabel"]
[{"$f":"CCS!$C281&\" - \"&CCS!$B281","v":"Maling - FRB"},"FRB","Maling","Malerbehandling, malerbehandlet overflade, Olie, lak, lud","klimabeskyttende komponent i form af en hærdet hinde på overflade af en anden bygningsdel "]
[{"$f":"CCS!$C282&\" - \"&CCS!$B282","v":"Massiv - ULJ"},"ULJ","Massiv","Klods, ","stor konstruktiv komponent uden for undergrunden der udgør en samlet enhed i sig selv"]
[{"$f":"CCS!$C283&\" - \"&CCS!$B283","v":"Mast - UBD"},"UBD","Mast"," ","ikke-isolerende over lange afstande punktvis understøttende komponent "]
[{"$f":"CCS!$C284&\" - \"&CCS!$B284","v":"Mekanisk aktuator - MLA"},"MLA","Mekanisk aktuator","Aktuator, Vindusoplukker","mekanisk drivkomponent der omsætter et mekanisk kommandosignal til en kraftig mekanisk handling"]
[{"$f":"CCS!$C285&\" - \"&CCS!$B285","v":"Mekanisk samling - UPC"},"UPC","Mekanisk samling","Boltesamling, strittekasse, Svejsesamling","samlende komponent der virker mekanisk"]
[{"$f":"CCS!$C286&\" - \"&CCS!$B286","v":"Membran - RQB"},"RQB","Membran","Spærre, fugtisolering, barriere, separering, Vindspærre, fugtspærre, vådrumsmembran, vandtætning, fugtisolering, rodbarriere, rodspærre, geotekstil","miljøstabiliserende komponent for flow af væske, fugt, vind og materiale"]
[{"$f":"CCS!$C287&\" - \"&CCS!$B287","v":"Mikrofon - BXA"},"BXA","Mikrofon","Varslingsmikrofon, Glasbrudsdetektor, akustisk sensor,","lyd- og billedomformende komponent fra tale til elektriske signaler"]
[{"$f":"CCS!$C288&\" - \"&CCS!$B288","v":"Mikser - TTB"},"TTB","Mikser"," ","miksende komponent der blander væsker"]
[{"$f":"CCS!$C289&\" - \"&CCS!$B289","v":"Modstand - RAC"},"RAC","Modstand","Resistans, ","elektrisk begrænsende komponent viklet op i spiral der begrænser elektrisk energi"]
[{"$f":"CCS!$C290&\" - \"&CCS!$B290","v":"Modtager - KFH"},"KFH","Modtager","Telefon, radio, personsøger, dør- & porttelefon","elektrisk signalinformation komponent der modtager information via radiobølger"]
[{"$f":"CCS!$C291&\" - \"&CCS!$B291","v":"Motorstarter - QAB"},"QAB","Motorstarter","MCC, hastighedsstyring, Softstarter, Y-D starter","elektrisk koblende komponent der styrer og regulerer en elektrisk motor"]
[{"$f":"CCS!$C292&\" - \"&CCS!$B292","v":"Multiswitch - BUB"},"BUB","Multiswitch"," ","multivariabelomformende komponent til boolsk værdi"]
[{"$f":"CCS!$C293&\" - \"&CCS!$B293","v":"Multitransmitter - BUA"},"BUA","Multitransmitter","Multimåler, multisensor, multidetektor, ","multivariabelomformende komponent til diskret variabel"]
[{"$f":"CCS!$C294&\" - \"&CCS!$B294","v":"Murafdækning - NCN"},"NCN","Murafdækning"," ","afdækkende komponent på vægs overkant"]
[{"$f":"CCS!$C295&\" - \"&CCS!$B295","v":"Murkrone - NDB"},"NDB","Murkrone","Kam, Kamtak, murtinde, krenelering","afsluttende komponent på vægs overkant"]
[{"$f":"CCS!$C296&\" - \"&CCS!$B296","v":"Niveauswitch - BLB"},"BLB","Niveauswitch","Niveaukontakt, niveauvagt, ","niveauomformende komponent til boolsk værdi"]
[{"$f":"CCS!$C297&\" - \"&CCS!$B297","v":"Niveautransmitter - BLA"},"BLA","Niveautransmitter","Niveaumåler, niveausensor, Med transmitter, Uden transmitter","niveauomformende komponent til diskret variabel"]
[{"$f":"CCS!$C298&\" - \"&CCS!$B298","v":"Nødkald - SGA"},"SGA","Nødkald","Alarmtryk, nødtryk, ","optisk-akustisk signalgiverkomponent der ved manuel betjening indkobler en akustisk og/eller visuel alarmkreds"]
[{"$f":"CCS!$C299&\" - \"&CCS!$B299","v":"Nøglecylinder - SLB"},"SLB","Nøglecylinder","Mekanisk nøglecylinder, elektronisk nøglecylinder","mekanisk signalgiverkomponent der ved bevægelse af nøgle bevirker åbning og lukning af andre bygningsdele"]
[{"$f":"CCS!$C300&\" - \"&CCS!$B300","v":"Omdrejningsviser - PGE"},"PGE","Omdrejningsviser","Omdrejningstæller, ","diskret-variabel komponent der viser omdrejninger"]
[{"$f":"CCS!$C301&\" - \"&CCS!$B301","v":"Omskifter - SFB"},"SFB","Omskifter","Tre-stillingsafbryder, Nøgleomskifter","elektrisk signalgiverkomponent der ved manuel betjening omkobler mellem flere valg i en elektrisk kreds"]
[{"$f":"CCS!$C302&\" - \"&CCS!$B302","v":"On-off spjæld - QMB"},"QMB","On-off spjæld","Motorspjæld, spjæld, ","mekanisk koblende komponent for flow i en luftstrøm"]
[{"$f":"CCS!$C303&\" - \"&CCS!$B303","v":"Opbinding - ULU"},"ULU","Opbinding","Plantepæl, opbindingsstok, forankring, espalier (spalier)","konstruktiv komponent uden for undergrunden der understøtter planter"]
[{"$f":"CCS!$C304&\" - \"&CCS!$B304","v":"Ophæng - UBB"},"UBB","Ophæng","Rørophæng, kanalophæng, kombinerede ophæng, pendel, bøjle, konsol, rørkonsol, kanalkonsol, kombinerede konsol, bæring","ikke-isolerende punktvis understøttende komponent over korte afstande"]
[{"$f":"CCS!$C305&\" - \"&CCS!$B305","v":"Optisk modtager - KGD"},"KGD","Optisk modtager","Optokobler","optisk signalinformation komponent der modtager information via lys"]
[{"$f":"CCS!$C306&\" - \"&CCS!$B306","v":"Optisk repeater - KGE"},"KGE","Optisk repeater"," ","optisk signalinformation komponent der forstærker et lysinformationssignal"]
[{"$f":"CCS!$C307&\" - \"&CCS!$B307","v":"Optisk router - KGB"},"KGB","Optisk router","Gateway","optisk signalinformation komponent der fordeler information via lys"]
[{"$f":"CCS!$C308&\" - \"&CCS!$B308","v":"Optisk sender - KGC"},"KGC","Optisk sender"," ","optisk signalinformation komponent der sender information via lys"]
[{"$f":"CCS!$C309&\" - \"&CCS!$B309","v":"Optisk switch - KGA"},"KGA","Optisk switch"," ","optisk signalinformation komponent der aktivt eller passivt forbinder to lyssignaler uden omformning af signal"]
[{"$f":"CCS!$C310&\" - \"&CCS!$B310","v":"Overspændingsafleder - FAB"},"FAB","Overspændingsafleder","Transientbeskyttelse, ","overspændingskomponent der afleder elektriske overspændinger"]
[{"$f":"CCS!$C311&\" - \"&CCS!$B311","v":"Ovn - EMA"},"EMA","Ovn","Brændeovn, ","forbrændingskomponent der opvarmer rum fra forskellige typer af brændsel"]
[{"$f":"CCS!$C312&\" - \"&CCS!$B312","v":"Pakning - NAE"},"NAE","Pakning","Tætning, Gastætning, vandtætning","udfyldende komponent der ved sammenpresning slutter luft- eller vandtæt mellem to bygningsdele"]
[{"$f":"CCS!$C313&\" - \"&CCS!$B313","v":"Panel - SFD"},"SFD","Panel","Trykknappanel, betjeningspanel, Rumstyringspanel, AV-panel, touchpanel, brandmandspanel","programmerbar elektrisk signalgiverkomponent der ved manuel betjening kobler mellem flere valg i en eller flere elektriske kredse"]
[{"$f":"CCS!$C314&\" - \"&CCS!$B314","v":"Patchpanel - XGC"},"XGC","Patchpanel","X-felt, ","elektrisk signalforbindende komponent der fleksibelt forbinder flere datanetværk med hinanden"]
[{"$f":"CCS!$C315&\" - \"&CCS!$B315","v":"Permanent mekanisk fastgørelsesmiddel - UQA"},"UQA","Permanent mekanisk fastgørelsesmiddel","anker, ankerbånd, ankerjern, ankerplade, armeringskobling, bjælkeanker, bolt, dorn, dyvel, dørgrebspind, dørgrebsstift, dørhængsel, forskudsanker, forskudsjern, gavlanker, hjørnebånd, hulplade, hulplade, jordanker, kobling, laske, ligejern, muranker, nitte, skabshængsel, skrue,  søm, sømbeslag, tap, vindueshængsel, vinkellaske","forbindelsesmiddel der mekanisk blivende fastgør bygningsdele til hinanden  "]
[{"$f":"CCS!$C316&\" - \"&CCS!$B316","v":"Persienne - RQF"},"RQF","Persienne","Træpersienne, alupersienne, mellemglas-persienne, indbygget persienne","miljøstabiliserende komponent i form af smalle indstillelige lameller der begrænser lysgennemgang "]
[{"$f":"CCS!$C317&\" - \"&CCS!$B317","v":"Plante  - BYA"},"BYA","Plante ","Vedplante, træ, busk, staude, sommerblomst, græs, urt, vandplante, mos, conifera, bregne, sukkulent","stofomformende komponent ved fotosyntese "]
[{"$f":"CCS!$C318&\" - \"&CCS!$B318","v":"Port - QQE"},"QQE","Port","Portelement, portparti, Hejseport, rulleport, skydeport, garageport, ladeport","adgangsgivende komponent primært for materiel"]
[{"$f":"CCS!$C319&\" - \"&CCS!$B319","v":"Portblad - NBB"},"NBB","Portblad","Portfløj, ","aflukkende komponent der lukker åbning i port"]
[{"$f":"CCS!$C320&\" - \"&CCS!$B320","v":"Positionsswitch - BGB"},"BGB","Positionsswitch","Positionsføler, endestop, ","positionsomformende komponent fra position af udstyr til boolsk værdi"]
[{"$f":"CCS!$C321&\" - \"&CCS!$B321","v":"Positionstransmitter - BGA"},"BGA","Positionstransmitter","Positionssensor","positionsomformende komponent fra position af udstyr til diskret variabel"]
[{"$f":"CCS!$C322&\" - \"&CCS!$B322","v":"Printer - PHC"},"PHC","Printer"," ","variabel-information komponent der udskriver tekst og grafik på et medie"]
[{"$f":"CCS!$C323&\" - \"&CCS!$B323","v":"Projektor - PHB"},"PHB","Projektor","Smartboard","variabel-information komponent der på en valgfri flade gengiver information fra en anden bygningsdel"]
[{"$f":"CCS!$C324&\" - \"&CCS!$B324","v":"Puds - FRA"},"FRA","Puds","Pudset overflade, Berapning, filts, sækkeskuring, vandskuring, sokkelpuds, grovpuds, finpuds ","klimabeskyttende komponent i form af tynd størknet materialelag påført anden bygningsdel"]
[{"$f":"CCS!$C325&\" - \"&CCS!$B325","v":"Pullert - RUD"},"RUD","Pullert","Roadblocker, ","adgangsbegrænsende komponent i form af en fast bygningsdel, der delvist spærrer for gennemkørsel"]
[{"$f":"CCS!$C326&\" - \"&CCS!$B326","v":"Pumpe - GPA"},"GPA","Pumpe","Trykforøger, Cirkulationspumpe, trykforøgerpumpe, trykholdepumpe, doseringspumpe, lænsepumpe","væskegivende komponent der transporterer væske ved mekanisk fremføring"]
[{"$f":"CCS!$C327&\" - \"&CCS!$B327","v":"Rack - UAB"},"UAB","Rack","Multimedierack, IT-rack, X-felt, krydsfelt,  multimedieskab, multimedierack, telepatchfelt, IT-anlæg (Campus Distributor (CD, HX), Building Distributor (BD, UX), Floor Distributor (FD, UX)), kamerahus","delvis lukket indkapslende komponent for elektronisk udstyr"]
[{"$f":"CCS!$C328&\" - \"&CCS!$B328","v":"Radiator - EPE"},"EPE","Radiator"," ","varmeoverførselskomponent i form af en hul metalkomponent der opvarmer rum"]
[{"$f":"CCS!$C329&\" - \"&CCS!$B329","v":"Ramme - UNC"},"UNC","Ramme","Dørramme, vinduesramme, måtteramme, bundramme, sideramme, tværrammestykke, tværramme, tværramstykke","bevægelig/gående indrammende komponent omkring vinduesrude, dør- og portfyldning"]
[{"$f":"CCS!$C330&\" - \"&CCS!$B330","v":"Regulator - KHA"},"KHA","Regulator"," ","mekanisk signalinformation komponent der regulerer en luft- eller væskestrøm"]
[{"$f":"CCS!$C331&\" - \"&CCS!$B331","v":"Reguleringsspjæld - QNB"},"QNB","Reguleringsspjæld","Motorspjæld, VAV-spjæld (VAV terminal), ","mekanisk varierende komponent for regulering af flow i en luftsrøm"]
[{"$f":"CCS!$C332&\" - \"&CCS!$B332","v":"Reguleringsventil - QNA"},"QNA","Reguleringsventil","Modulerende motorventil, radiatorventil, termostatventil","mekanisk varierende komponent for regulering af flow i en væskestrøm"]
[{"$f":"CCS!$C333&\" - \"&CCS!$B333","v":"Relæ - KFA"},"KFA","Relæ","Kontaktorrelæ, overdragerelæ, hjælperelæ","elektrisk signalinformation komponent der slutter og bryder andre elektriske strømme uden tidsforskydning"]
[{"$f":"CCS!$C334&\" - \"&CCS!$B334","v":"Rende - WMB"},"WMB","Rende","Karnisrende, gesimsrende, skjult tagrende, kvartrund, firkant, halvrund, zink-, plast-, ståltagrende, skotrende, kasserende, siderende, tagrende","åben væsketransporterende komponent der opsamler og afleder væske i åbent kar  "]
[{"$f":"CCS!$C335&\" - \"&CCS!$B335","v":"Repos - XSA"},"XSA","Repos","Trapperepos, ramperepos, mellemrepos, hjørnerepos, hovedrepos, indgangsrepos, indgangsrepos","niveauforbindende komponent der forbinder to eller flere trappeløb eller ramper  "]
[{"$f":"CCS!$C336&\" - \"&CCS!$B336","v":"Retningsmåler - BGD"},"BGD","Retningsmåler","Vindretningsmåler, ","positionsomformende komponent fra retning på en luftstrømning til diskret variabel"]
[{"$f":"CCS!$C337&\" - \"&CCS!$B337","v":"Reversibelt mekanisk fastgørelsesmiddel - UQB"},"UQB","Reversibelt mekanisk fastgørelsesmiddel","anverfer, dørholder, dørkrog, dørmagnet, dørstopper, gliphage, haspe, haspekrog, holdemagnet, karmbeslag, klemfjeder, sikringsbeslag, stjerthage, stormjerns, stormkrog, udskyderjern, udskyderstang, vinduesholder","forbindelsesmiddel der mekanisk midlertidigt fastgør bygningsdele til hinanden  "]
[{"$f":"CCS!$C338&\" - \"&CCS!$B338","v":"Rive - HQB"},"HQB","Rive","Grovrist, ","filtrerende komponent der tilbageholder større emner i en væske"]
[{"$f":"CCS!$C339&\" - \"&CCS!$B339","v":"Røgdetektor - BQD"},"BQD","Røgdetektor","Røgswitch, ","kvalitetsomformende komponent fra mængden af røg i en luftart til boolsk værdi"]
[{"$f":"CCS!$C340&\" - \"&CCS!$B340","v":"Røggardin - FMF"},"FMF","Røggardin"," ","brandsikringskomponent der opdeler i røgzoner"]
[{"$f":"CCS!$C341&\" - \"&CCS!$B341","v":"Røglukning - FMG"},"FMG","Røglukning","Brandlukning, ","brandsikringskomponent der lukker et hul og beskytter mod brandsmitte"]
[{"$f":"CCS!$C342&\" - \"&CCS!$B342","v":"Røgspjæld  - FMB"},"FMB","Røgspjæld ","Røglem, Røgevakueringsspjæld","brandsikringskomponent der åbner eller lukker for en luftstrøm ved detektering af røg"]
[{"$f":"CCS!$C343&\" - \"&CCS!$B343","v":"Røgtransmitter - BQC"},"BQC","Røgtransmitter","Røgsensor, ","kvalitetsomformende komponent fra mængden af røg i en luftart til diskrete variabel"]
[{"$f":"CCS!$C344&\" - \"&CCS!$B344","v":"Rør - WPA"},"WPA","Rør","Stikledning, overløb, drænrør, gasstik, vandstik, varmestik, nedløbsrør, Røgrør, drænledning, gasledning, vandledning, varmeledning, fjernvarmeledning, tagnedløb, vandingsrør, skorsten","fast lukket transporterende komponent der leder gas, vand eller væske mellem to punkter. "]
[{"$f":"CCS!$C345&\" - \"&CCS!$B345","v":"Rørfitting - XMC"},"XMC","Rørfitting","Fitting, studs, ","flow-flow forbindende komponent der formidler retningsændringer, afgreninger og samlinger i rør"]
[{"$f":"CCS!$C346&\" - \"&CCS!$B346","v":"Rørflange - XMD"},"XMD","Rørflange","Tilslutning, ","flow-flow forbindende komponent der forbinder rør til et teknisk system ireversibelt"]
[{"$f":"CCS!$C347&\" - \"&CCS!$B347","v":"Rørkobling - XMB"},"XMB","Rørkobling","Tilslutning, ","flow-flow forbindende komponent der forbinder rør til et teknisk system reversibelt"]
[{"$f":"CCS!$C348&\" - \"&CCS!$B348","v":"Rottespærre - RLB"},"RLB","Rottespærre","Rottestop, ","mekanisk begrænsende komponent der forhindrer rotter i at trænge ind i bygværker fra kloakker"]
[{"$f":"CCS!$C349&\" - \"&CCS!$B349","v":"Rude - NAA"},"NAA","Rude","Vindue, vinduesglas, glas, Termorude, energirude, sikringsglas, rudefrise","udfyldende komponent der tillader lysindfald"]
[{"$f":"CCS!$C350&\" - \"&CCS!$B350","v":"Rygning - NCM"},"NCM","Rygning","Tagryg, kip, Mønning","afdækkende komponent der beklæder den øverst vandret liggende sammenskæring af tagflader"]
[{"$f":"CCS!$C351&\" - \"&CCS!$B351","v":"Sætningstank - HNB"},"HNB","Sætningstank","Udskiller, Syreneutralisator","tyngdekraftseparerende komponent til stillestående sammensatte substanser"]
[{"$f":"CCS!$C352&\" - \"&CCS!$B352","v":"Sålbænk - NCF"},"NCF","Sålbænk"," ","afdækkende komponent ved overgang mellem vindues og dørs underkant og facade"]
[{"$f":"CCS!$C353&\" - \"&CCS!$B353","v":"Samlingsanordning - UPA"},"UPA","Samlingsanordning","Samling, (eksempler mangler?)","samlende komponent der kombinerer flere virkemidler"]
[{"$f":"CCS!$C354&\" - \"&CCS!$B354","v":"Sender - KFG"},"KFG","Sender","Radiosender, TV-sender","elektrisk signalinformation komponent der sender information via radiobølger"]
[{"$f":"CCS!$C355&\" - \"&CCS!$B355","v":"Sender/modtager kombineret - KZA"},"KZA","Sender/modtager kombineret","Betalingsautomat, ","kombineret signalinformation komponent der sender, modtager og gengiver information via radiobølger"]
[{"$f":"CCS!$C356&\" - \"&CCS!$B356","v":"Seperator - HNA"},"HNA","Seperator","Udskiller, Beninudskiller, olieudskiller, vandudskiller, fedtudskiller","tyngdekraftseparerende komponent til sammensatte substanser i flow"]
[{"$f":"CCS!$C357&\" - \"&CCS!$B357","v":"Signaldåse - XGB"},"XGB","Signaldåse","Keystone, Teminal Outlet (TO)","elektrisk signalforbindende komponent der indkapsler og muliggør forbindelse mellem flere ens elektroniske kredse"]
[{"$f":"CCS!$C358&\" - \"&CCS!$B358","v":"Signalfordeler - XGD"},"XGD","Signalfordeler"," ","elektrisk elektronisk signalforbindende komponent der kobler og fordeler signaler mellem flere tilsluttede enheder"]
[{"$f":"CCS!$C359&\" - \"&CCS!$B359","v":"Signallampe - PFA"},"PFA","Signallampe","Signalgiver, lampe, optisk signalgiver, ","diskret-tilstand komponent der i form af farvet lys viser en bestemt tilstand i et teknisk anlæg"]
[{"$f":"CCS!$C360&\" - \"&CCS!$B360","v":"Signalstik - XGA"},"XGA","Signalstik","Drop, EDB-drop, PDS-stik, EDB-stik, RJ45-stik, HDMI-stik, USB-stik, antennestik, VGA-stik, SVGA-stik, telefonstik, mikrofonstik, optisk stik","signalforbindende komponent der tilslutter en vilkårlig elektronisk enhed til en signalkilde"]
[{"$f":"CCS!$C361&\" - \"&CCS!$B361","v":"Sikkerhedsspjæld - FLB"},"FLB","Sikkerhedsspjæld","Overtryksspjæld, ","trykbetinget fare komponent der åbner eller lukker for en luftstrøm, når tryk overstiger eller går under en sat grænseværdi"]
[{"$f":"CCS!$C362&\" - \"&CCS!$B362","v":"Sikkerhedsventil - FLA"},"FLA","Sikkerhedsventil","Overtryksventil, alarmventil, ","trykbetinget fare komponent der udleder damp eller væske når tryk overstiger en sat grænseværdi"]
[{"$f":"CCS!$C363&\" - \"&CCS!$B363","v":"Sikring - FCA"},"FCA","Sikring","Smeltesikring","selvvirkende overstrømskomponent der mekanisk afbryder en elektrisk kreds ved kortslutning eller overstrøm"]
[{"$f":"CCS!$C364&\" - \"&CCS!$B364","v":"Sikringsadskiller - QBB"},"QBB","Sikringsadskiller"," ","elektrisk adskillende komponent der med en indbygget sikring afbryder kredse der ikke er i drift"]
[{"$f":"CCS!$C365&\" - \"&CCS!$B365","v":"Skab for slangevinder - UAD"},"UAD","Skab for slangevinder","Brandpost, brandskab, ","lukket indkapslende komponent for rør og slanger"]
[{"$f":"CCS!$C366&\" - \"&CCS!$B366","v":"Skabslåge - NBC"},"NBC","Skabslåge","Låge, ","aflukkende komponent der lukker åbning i skab"]
[{"$f":"CCS!$C367&\" - \"&CCS!$B367","v":"Skærm - RQD"},"RQD","Skærm","Markise, baldakin , Lamelskærm, vindskærm, strålingsskærm, solafskærmning","miljøstabiliserende komponent der begrænser lys, vind, nedbør og stråling  "]
[{"$f":"CCS!$C368&\" - \"&CCS!$B368","v":"Skilt - PHD"},"PHD","Skilt","Mærkeplade, Vejskilt, informationstavle","variabel-information komponent der på fast materialeform gengiver information i form af tekst eller symboler"]
[{"$f":"CCS!$C369&\" - \"&CCS!$B369","v":"Skjuler - RVA"},"RVA","Skjuler","Radiatorskjuler, skraldespandsskjuler","indsigtsbegrænsende komponent der helt eller delvist begrænser indsigt til andre bygningsdele  "]
[{"$f":"CCS!$C370&\" - \"&CCS!$B370","v":"Skodde - RQG"},"RQG","Skodde","Træskodde, rulleskodde, foldeskodde, ","miljøstabiliserende komponent i form af plade placeret udvendigt der begrænser lys- og lydgennemgang"]
[{"$f":"CCS!$C371&\" - \"&CCS!$B371","v":"Skorsten - WPE"},"WPE","Skorsten","Stålskorsten, muret skorsten, in situ støbt skorsten, glidestøbt skorsten","lodret lukket transporterende komponent der bortleder luft, damp eller røggas "]
[{"$f":"CCS!$C372&\" - \"&CCS!$B372","v":"Skorstensafdækning - NCP"},"NCP","Skorstensafdækning"," ","afdækkende komponent på skorstens overkant"]
[{"$f":"CCS!$C373&\" - \"&CCS!$B373","v":"Slangekobling - XMA"},"XMA","Slangekobling","Tilslutning, box, Storzkobling","flow-flow forbindende komponent der forbinder slanger til et teknisk system reversibelt"]
[{"$f":"CCS!$C374&\" - \"&CCS!$B374","v":"Snefang - FQB"},"FQB","Snefang","Sneskredjern","hindrende komponent mod snenedfald eller sneindfygning"]
[{"$f":"CCS!$C375&\" - \"&CCS!$B375","v":"Søjle - ULD"},"ULD","Søjle","Pæl, stolpe, pille, sule, træk- og trykstang, hanebånd, Træsøjle, stålsøjle, betonsøjle, H-stolpe, limtræssøjle, skunkstolpe, trempelstol, lodpost, pilaster","konstruktiv komponent uden for undergrunden hvis længde i den ene retning er meget større end længderne i de andre retninger og som primært overfører aksiallast"]
[{"$f":"CCS!$C376&\" - \"&CCS!$B376","v":"Sokkel - ULC"},"ULC","Sokkel","Plint, sokkelmur,, Skorstenssokkel, skorstensrod, skabssokkel","konstruktiv komponent uden for undergrunden der understøtter en anden bygningdel på fundament eller dæk"]
[{"$f":"CCS!$C377&\" - \"&CCS!$B377","v":"Solcelle - GCA"},"GCA","Solcelle"," ","strålingsenergi komponent der anvender lys og varme fra solen til at producere elektricitet eller varme"]
[{"$f":"CCS!$C378&\" - \"&CCS!$B378","v":"Solfanger - EVA"},"EVA","Solfanger"," ","varmestrålingsenergi komponent i form af lys og varme fra solen"]
[{"$f":"CCS!$C379&\" - \"&CCS!$B379","v":"Spændingsmålerelæ - BAA"},"BAA","Spændingsmålerelæ","Måleværdiomformer, målerelæ, ","elektrisk potentialeomformende komponent der omformer til andet elektrisk signal i faste trin"]
[{"$f":"CCS!$C380&\" - \"&CCS!$B380","v":"Spændingsmåletransformer - BAB"},"BAB","Spændingsmåletransformer","Spændingstransformer, ","elektrisk potentialeomformende komponent der trinløst omformer til andet elektrisk signal"]
[{"$f":"CCS!$C381&\" - \"&CCS!$B381","v":"Speedometer - BSB"},"BSB","Speedometer"," ","hastighed/frekvensomformende komponent fra hastighed til diskret variabel"]
[{"$f":"CCS!$C382&\" - \"&CCS!$B382","v":"Sprosse - UND"},"UND","Sprosse","Liste, Tværsprosse, lodsprosse, vinduessprosse","indrammende komponent der opdeler vinduesramme eller dørblad omkring ruder eller fyldninger  "]
[{"$f":"CCS!$C383&\" - \"&CCS!$B383","v":"Stelklemme - XEC"},"XEC","Stelklemme","Stelplade, ","potentialeforbindende komponent der giver forbindelse til elektrisk stel"]
[{"$f":"CCS!$C384&\" - \"&CCS!$B384","v":"Sten - ULG"},"ULG","Sten","Mursten, Natursten","mindre konstruktiv komponent uden for undergrunden der ofte sammenlægges i flere lag og i forbandt"]
[{"$f":"CCS!$C385&\" - \"&CCS!$B385","v":"Stern - NDC"},"NDC","Stern","Sternbrædt, ","afsluttende komponent på tagflades afslutning ved spærender langs facade"]
[{"$f":"CCS!$C386&\" - \"&CCS!$B386","v":"Stige - XSC"},"XSC","Stige","Trappestige, wienerstige","niveauforbindende komponent der trinvis forbinder niveauer med hinanden i et trace der er tæt på lodret"]
[{"$f":"CCS!$C387&\" - \"&CCS!$B387","v":"Stikkontakt - XDB"},"XDB","Stikkontakt","Kontakt, Almen kraftstikkontakt, EDB-stikkontakt, hospitalstikkontakt, CEE stikkontakt, lampestikkontakt","effektforbindende komponent der tilslutter en vilkårlig elektrisk forbrugsgenstand til den elektriske forsyning"]
[{"$f":"CCS!$C388&\" - \"&CCS!$B388","v":"Støddæmper - RLC"},"RLC","Støddæmper","Aksialkompensator , ","mekanisk begrænsende komponent der udligner og dæmper bevægelse i materiale"]
[{"$f":"CCS!$C389&\" - \"&CCS!$B389","v":"Støjbeskyttelse  - RQC"},"RQC","Støjbeskyttelse ","Støjskærm, Lyddæmper","miljøstabiliserende komponent for lyds udbredelse"]
[{"$f":"CCS!$C390&\" - \"&CCS!$B390","v":"Strømfordeler - XDE"},"XDE","Strømfordeler","Power Distribution Unit (PDU), ","elektronisk effektforbindende komponent der kobler og fordeler strøm mellem flere tilsluttede enheder"]
[{"$f":"CCS!$C391&\" - \"&CCS!$B391","v":"Strømmålerelæ - BCA"},"BCA","Strømmålerelæ","Måleværdiomformer, målerelæ, ","elektrisk strømomformende komponent der omformer til et andet elektrisk signal i faste trin"]
[{"$f":"CCS!$C392&\" - \"&CCS!$B392","v":"Strømmåletransformer  - BCB"},"BCB","Strømmåletransformer ","Strømtransformer, ","elektrisk strømomformende komponent der trinløst omformer til et andet elektrisk signal"]
[{"$f":"CCS!$C393&\" - \"&CCS!$B393","v":"Stukatur - PLD"},"PLD","Stukatur","Lamperoset, loftstuk","udsmykkende komponent i form af ornament fremstillet af stuk placeret på loft eller væg  "]
[{"$f":"CCS!$C394&\" - \"&CCS!$B394","v":"Styre- og reguleringsenhed - KFD"},"KFD","Styre- og reguleringsenhed","Undercentral, controller, styreboks, centraludstyr, PLC, IBI-controller, brandalarmcentral,AIA,CCTV, ADK,AVA; ARS, ABV; ABDL, AVS, ASP","elektrisk signalinformation komponent der selvstændigt styrer et system lokalt uden menneskelig indgriben"]
[{"$f":"CCS!$C395&\" - \"&CCS!$B395","v":"Styrekabel - WGA"},"WGA","Styrekabel","Kabel, ","elektronisk signaltransporterende komponent for styresignaler mellem to punkter"]
[{"$f":"CCS!$C396&\" - \"&CCS!$B396","v":"Synkroniseringsenhed - BZF"},"BZF","Synkroniseringsenhed","Synkroniseringsudstyr, ","hændelsesomformende komponent fra synkrontidspunkt for indkobling til et elektrisk net til andre værdier eller elektriske signaler"]
[{"$f":"CCS!$C397&\" - \"&CCS!$B397","v":"Tachometer - BSC"},"BSC","Tachometer"," ","hastighed/frekvensomformende komponent fra omdrejninger til diskret variabel"]
[{"$f":"CCS!$C398&\" - \"&CCS!$B398","v":"Tæppe - PLF"},"PLF","Tæppe"," ","udsmykkende komponent i form af et tykt stykke stof der dækker over en del af en anden bygningsdel"]
[{"$f":"CCS!$C399&\" - \"&CCS!$B399","v":"Tagdækning - NCE"},"NCE","Tagdækning","Tagbelægning, tagbeklædning, undertag, ","afdækkende komponent i form af øvre lag i en tagopbygning"]
[{"$f":"CCS!$C400&\" - \"&CCS!$B400","v":"Tågegenerator - TTC"},"TTC","Tågegenerator","Røgkanon, ","miksende komponent der fremstiller røg eller tåge"]
[{"$f":"CCS!$C401&\" - \"&CCS!$B401","v":"Tastatur - SFE"},"SFE","Tastatur","Kodetastatur","elektrisk signalgiverkomponent til indtastning af tal, symboler og bogstaver"]
[{"$f":"CCS!$C402&\" - \"&CCS!$B402","v":"Tavlecomputer - KZB"},"KZB","Tavlecomputer","Smartpad, smartphone, tablet, ","kombineret signalinformation komponent der kombinerer computer, skærm og tastatur i én enhed og hvor skærm anvendes som tastatur"]
[{"$f":"CCS!$C403&\" - \"&CCS!$B403","v":"Teknikbrønd - XDF"},"XDF","Teknikbrønd","Trækbrønd, el-brønd, Kabelbrønd, målebrønd","effektforbindende komponent der indkapsler og muliggør forbindelse mellem flere forskellige signal- og effektkredse"]
[{"$f":"CCS!$C404&\" - \"&CCS!$B404","v":"Telefoncentral - GFB"},"GFB","Telefoncentral","PABX , ","signalgivende komponent der genererer telefonsignaler i et telenet"]
[{"$f":"CCS!$C405&\" - \"&CCS!$B405","v":"Temperaturswitch - BTB"},"BTB","Temperaturswitch","Termostat, temperaturføler, termodetektor, Frosttermostat, Brandtermostat, Dugpunkttermostat","temperaturomformende komponent til boolsk værdi"]
[{"$f":"CCS!$C406&\" - \"&CCS!$B406","v":"Temperaturtransmitter - BTA"},"BTA","Temperaturtransmitter","Temperaturmåler, temperatursensor, temperaturføler, ","temperaturomformende komponent til diskret variabel"]
[{"$f":"CCS!$C407&\" - \"&CCS!$B407","v":"Termometer - PGA"},"PGA","Termometer","Temperaturviser, ","diskret-variabel komponent der viser temperatur"]
[{"$f":"CCS!$C408&\" - \"&CCS!$B408","v":"Thyristor - QAC"},"QAC","Thyristor"," ","elektrisk koblende komponent der omdanner vekselstrøm til jævnstrøm"]
[{"$f":"CCS!$C409&\" - \"&CCS!$B409","v":"Tidsrelæ - KFB"},"KFB","Tidsrelæ","Timer, ur, ","elektrisk signalinformation komponent der slutter og bryder andre elektriske strømme med tidsforskydning"]
[{"$f":"CCS!$C410&\" - \"&CCS!$B410","v":"Toilet - XLD"},"XLD","Toilet","WC, kloset, opsamlingsenhed, ","kapsel-flow forbindende komponent der opsamler og bortskaffer urin og fækalier"]
[{"$f":"CCS!$C411&\" - \"&CCS!$B411","v":"Tørkøler - EQF"},"EQF","Tørkøler","Frikøler, ","konvektionskøling komponent der i form af overskudsvarme til det fri ved hjælp af mekanisk ventilering"]
[{"$f":"CCS!$C412&\" - \"&CCS!$B412","v":"Tørreenhed - HPA"},"HPA","Tørreenhed","Køletørre, absorptionstørre","termikseparerende komponent der fjerner vand fra materiale"]
[{"$f":"CCS!$C413&\" - \"&CCS!$B413","v":"Trækbånd - ULF"},"ULF","Trækbånd","Diagonal, vindkryds, skråbånd, Ranke, revle, stormbjælke, stormbånd","konstruktiv komponent uden for undergrunden hvis længde i den ene retning er meget større end længderne i de andre retninger og som alene overfører aksiallast i form af træk"]
[{"$f":"CCS!$C414&\" - \"&CCS!$B414","v":"Trafiklys - PFC"},"PFC","Trafiklys","Lyssignal, ","diskret-tilstand komponent der i form lyssignaler styrer trafik"]
[{"$f":"CCS!$C415&\" - \"&CCS!$B415","v":"Transformer - TAA"},"TAA","Transformer","Autotransformer, skilletransformer, ringkernetransformer, elektronisk transformer","elektrisk energiomformende komponent der omsætter vekselstrøm fra én spænding til en anden"]
[{"$f":"CCS!$C416&\" - \"&CCS!$B416","v":"Trappeløb - XSB"},"XSB","Trappeløb","1-skridts-trappe, 1½ skridtstrappe, flerskridtstrappe","niveauforbindende komponent der trinvis forbinder reposer eller etager med hinanden  "]
[{"$f":"CCS!$C417&\" - \"&CCS!$B417","v":"Trin - ULQ"},"ULQ","Trin","Trappetrin, stødtrin, grund","konstruktiv komponent uden for undergrunden der udgør et trædeplan og som primært overfører last der virker vinkelret på planet"]
[{"$f":"CCS!$C418&\" - \"&CCS!$B418","v":"Tromle - CNC"},"CNC","Tromle"," ","flytbar stoflagrende komponent til væske"]
[{"$f":"CCS!$C419&\" - \"&CCS!$B419","v":"Trykknap - SFC"},"SFC","Trykknap","Ud-tryk, åbne-tryk, udløsetryk,  jalousitryk , tryk, betjeningstryk, forbikobler, Kiptryk,  brandtryk, varslingstryk, trappeautomat, overfaldstryk","elektrisk signalgiverkomponent der ved manuel betjening skifter og fastholder en tilstand i en elektrisk kreds"]
[{"$f":"CCS!$C420&\" - \"&CCS!$B420","v":"Trykswitch - BPB"},"BPB","Trykswitch","Trykvagt, ","trykomformende komponent til boolsk værdi"]
[{"$f":"CCS!$C421&\" - \"&CCS!$B421","v":"Tryktransmitter - BPA"},"BPA","Tryktransmitter","Trykmåler, differenstrykmåler, tryksensor, ","trykomformende komponent til diskret variabel"]
[{"$f":"CCS!$C422&\" - \"&CCS!$B422","v":"Trykviser - PGD"},"PGD","Trykviser","","diskret-variabel komponent der viser tryk i lukkede kredsløb"]
[{"$f":"CCS!$C423&\" - \"&CCS!$B423","v":"TV-station - GFA"},"GFA","TV-station","TV-hovedstation, ","signalgivende komponent der genererer TV kanaler i et TV net"]
[{"$f":"CCS!$C424&\" - \"&CCS!$B424","v":"Udgravning - XTC"},"XTC","Udgravning","Grube, boring, grav, Fundamentsudgravning, byggegrube, ledningsgrav, udgravning for kælder, underjordisk udgravning, tunnelboring, tunnellering, styret underboring, gennempresning, skakt, tunnel, kammer","rumforbindende komponent i form af fjernet volumen i terrænbasis"]
[{"$f":"CCS!$C425&\" - \"&CCS!$B425","v":"Udhæng - NDD"},"NDD","Udhæng","Tagskæg, Gavludhæng","afsluttende komponent på tagkonstruktion uden for facade"]
[{"$f":"CCS!$C426&\" - \"&CCS!$B426","v":"Udligningsforbindelse - WED"},"WED","Udligningsforbindelse","Maskenet, Udligningskabel, nedleder","potentilatetransporterende komponent der udligner det elektriske potentiale mellem to bygningsdele"]
[{"$f":"CCS!$C427&\" - \"&CCS!$B427","v":"Udligningsklemme - XEB"},"XEB","Udligningsklemme"," ","potentialeforbindende komponent der giver forbindelse til fælles elektrisk referencepunkt"]
[{"$f":"CCS!$C428&\" - \"&CCS!$B428","v":"Udligningsskinne - WEC"},"WEC","Udligningsskinne","Jordplint, plint, ","potentilatetransporterende komponent der fordeler et elektrisk referencepotentiale mellem flere punkter"]
[{"$f":"CCS!$C429&\" - \"&CCS!$B429","v":"Udluftning - XLG"},"XLG","Udluftning","Udluftningshætte, luftskrue, luftpotte, luftudlader, mikrobobleaflufter, vacuumaflufter, udluftningsrør","kapsel-flow forbindende komponent der bortskaffer overskydende luft"]
[{"$f":"CCS!$C430&\" - \"&CCS!$B430","v":"Udsparing - XTB"},"XTB","Udsparing","Recess, niche, forsænkning, fordybning, fugeprofil, ","rumforbindende komponent i form af en fordybning i en bygningsdel"]
[{"$f":"CCS!$C431&\" - \"&CCS!$B431","v":"Udtag - XDD"},"XDD","Udtag","Lampeudtag, gummikabelafgang, komfurudtag, udløbsroset","effektforbindende komponent der fast forbinder en elektrisk forbrugsgenstand med den elektriske forsyning"]
[{"$f":"CCS!$C432&\" - \"&CCS!$B432","v":"Undergulv - ULL"},"ULL","Undergulv","Blindgulv, blændgulv , Afretningslag, slidlag, pudslag, overbeton","konstruktiv komponent uden for undergrunden der understøtter og sikrer jævnhed under gulv"]
[{"$f":"CCS!$C433&\" - \"&CCS!$B433","v":"Underlag - ULS"},"ULS","Underlag","Lægte, Afstandsliste, Nedstropning, opbygning, nedforskalling, ","konstruktiv komponent uden for undergrunden der understøtter beklædning eller dækning"]
[{"$f":"CCS!$C434&\" - \"&CCS!$B434","v":"Ur - PGL"},"PGL","Ur"," ","diskret-variabel komponent der passivt viser tid"]
[{"$f":"CCS!$C435&\" - \"&CCS!$B435","v":"Urinal - XLE"},"XLE","Urinal","Opsamlingsenhed, ","kapsel-flow forbindende komponent der opsamler og bortskaffer urin"]
[{"$f":"CCS!$C436&\" - \"&CCS!$B436","v":"Urswitch - BKB"},"BKB","Urswitch"," ","tidsomformende komponent fra tid til boolsk værdi"]
[{"$f":"CCS!$C437&\" - \"&CCS!$B437","v":"Vægbeklædning - NCB"},"NCB","Vægbeklædning","Beklædningsplade, facadebeklædning, Gipsplade, glasplade, fiberbetonplade, vægpanel","afdækkende komponent i form af ydre lag i vægopbygning"]
[{"$f":"CCS!$C438&\" - \"&CCS!$B438","v":"Vægplade - ULM"},"ULM","Vægplade","Væg, vægelement, vægfelt, stræberpille, stræber, stræbersøjle, Betonelement, skalmur","konstruktiv komponent uden for undergrunden hvis længde i et plan er meget større end længden vinkelret på og som primært overfører aksiallast i planet"]
[{"$f":"CCS!$C439&\" - \"&CCS!$B439","v":"Vægt - BWA"},"BWA","Vægt"," ","vægt/kraftomformende komponent fra vægt til diskret variabel"]
[{"$f":"CCS!$C440&\" - \"&CCS!$B440","v":"Vækstlag - WUA"},"WUA","Vækstlag","Vækstbasis, Plantehul, muldjord, systemjord, spagnum","organisk stoftransporterende komponent der transporterer næring til plantes vækst"]
[{"$f":"CCS!$C441&\" - \"&CCS!$B441","v":"Værn - FQD"},"FQD","Værn","Rækværk, gelænder, Autoværn, brytningsværn, trappeværn, fodhegn, hjulværn","hindrende komponent mod at falde ud eller støde sammen  "]
[{"$f":"CCS!$C442&\" - \"&CCS!$B442","v":"Væskedetektor - BZB"},"BZB","Væskedetektor","Regndetektor, snedetektor, fugtbændel, kapacitiv væskeføler, ","hændelsesomformende komponent fra tilstædeværelse af væske til boolsk værdi"]
[{"$f":"CCS!$C443&\" - \"&CCS!$B443","v":"Væskeflowmåler - BFA"},"BFA","Væskeflowmåler","Væskemåler, Vandmåler, spritmåler","flowomformende komponent til væskegennemstrømning"]
[{"$f":"CCS!$C444&\" - \"&CCS!$B444","v":"Vakuumbryder - FLC"},"FLC","Vakuumbryder"," ","trykbetinget fare komponent der forhindre vakuum"]
[{"$f":"CCS!$C445&\" - \"&CCS!$B445","v":"Vakuumpumpe - GQC"},"GQC","Vakuumpumpe"," ","gas- og luftgivende komponent der genererer vakuum i luft og andre gasser"]
[{"$f":"CCS!$C446&\" - \"&CCS!$B446","v":"Vandhane - XLA"},"XLA","Vandhane","Vandpost, tapsted, spulehane, brandhane, brandpost (brandhydrant), slangevinder, blandingsbatteri, udtag, ","kapsel-flow forbindende komponent der forbinder en en-strålet aftapningsenhed til et vandsystem"]
[{"$f":"CCS!$C447&\" - \"&CCS!$B447","v":"Vandlås - RMD"},"RMD","Vandlås"," ","væskebegrænsende komponent der forhindrer eller begrænser lugt fra et afløbssystem"]
[{"$f":"CCS!$C448&\" - \"&CCS!$B448","v":"Vandnæse - WMD"},"WMD","Vandnæse"," ","åben væsketransporterende komponent i form af fremspring der leder væske bort fra underliggende bygningsdele"]
[{"$f":"CCS!$C449&\" - \"&CCS!$B449","v":"Vandslange - WPC"},"WPC","Vandslange","Brandslange, ","fleksibel lukket transporterende komponent der leder vand eller væske mellem to punkter"]
[{"$f":"CCS!$C450&\" - \"&CCS!$B450","v":"Vandvarmer - EPB"},"EPB","Vandvarmer"," ","varmeoverførselskomponent der opvarmer vand til forbrug"]
[{"$f":"CCS!$C451&\" - \"&CCS!$B451","v":"Vange - ULP"},"ULP","Vange","Liggende vange, spindel, forvange, bagvange","konstruktiv komponent uden for undergrunden der udgør de lodrette led i et værn og primært overfører tværlast"]
[{"$f":"CCS!$C452&\" - \"&CCS!$B452","v":"Varmeflade - EPA"},"EPA","Varmeflade","Konvektor, varmegiver, gulvvarme, strålevarmeloft","varmeoverførselskomponent i form af en stor flade som afgiver varme i et lukket teknisk anlæg"]
[{"$f":"CCS!$C453&\" - \"&CCS!$B453","v":"Varmemåler - BJC"},"BJC","Varmemåler","Energimåler, kondensatmåler, ","forbrugsomformende komponent til varme"]
[{"$f":"CCS!$C454&\" - \"&CCS!$B454","v":"Varmepanel - EPG"},"EPG","Varmepanel","Loftvarme, gulvvarme, strålevarmeloft, Strålepanel","varmeoverførselskomponent i form af overførsel over en stor flade der afgiver varme til et rum"]
[{"$f":"CCS!$C455&\" - \"&CCS!$B455","v":"Varmepumpe - EPD"},"EPD","Varmepumpe","Varme/kølepumpe, ","varmeoverførselskomponent i form af termisk energi fra en varmekilde til en varmeafleder"]
[{"$f":"CCS!$C456&\" - \"&CCS!$B456","v":"Varmerør - EPF"},"EPF","Varmerør","Håndklædetørrer, ","varmeoverførselskomponent i form af overførsel mellem to komponenter der overfører varme ved en kombination af termisk konduktivitet (varmeledning) og faseændringsvarme"]
[{"$f":"CCS!$C457&\" - \"&CCS!$B457","v":"VAR-meter - PGN"},"PGN","VAR-meter"," ","diskret-variabel komponent der viser elektrisk reaktiv effekt"]
[{"$f":"CCS!$C458&\" - \"&CCS!$B458","v":"Varmeveksler - EPC"},"EPC","Varmeveksler","Varmegenvinder, Roterende varmeveksler (rotorveksler), modstrømsvarmeveksler, krydsvarmeveklser, væskekoblet batteri, Heat-pipe","varmeoverførselskomponent i form af varme der passerer fra et medie til et andet uden at medierne blandes"]
[{"$f":"CCS!$C459&\" - \"&CCS!$B459","v":"Varmeventilator - EZA"},"EZA","Varmeventilator","Varmetæppe, ","kombineret energigivende komponent med ventilator og veksler til overførsel af varme ved at varme passerer fra et medie til et andet uden at medierne blandes"]
[{"$f":"CCS!$C460&\" - \"&CCS!$B460","v":"Varmtvandsbeholder - CPA"},"CPA","Varmtvandsbeholder"," ","termisk energilagrende komponent til varmt vand"]
[{"$f":"CCS!$C461&\" - \"&CCS!$B461","v":"Vask - XLC"},"XLC","Vask","Opsamlingsenhed, køkkenvask, håndvask, grovvask, bidet, rengøringsvask, udslagsvask, ","kapsel-flow forbindende komponent der opsamler og bortskaffer spildevand"]
[{"$f":"CCS!$C462&\" - \"&CCS!$B462","v":"Vekselretter - TAD"},"TAD","Vekselretter","DC/AC omformer, inverter, ","elektrisk energiomformende komponent der omdanner jævnstrøm til vekselstrøm"]
[{"$f":"CCS!$C463&\" - \"&CCS!$B463","v":"Ventilator - GQA"},"GQA","Ventilator","Blæser, ","gas- og luftgivende komponent der ved rotation af indbyggede propeller sætter luft i bevægelse"]
[{"$f":"CCS!$C464&\" - \"&CCS!$B464","v":"Vibrationsdetektor - BSE"},"BSE","Vibrationsdetektor","Rystekontakt, bokskontakt, seismisk switch, ","hastighed/frekvensomformende komponent fra rystelse til boolsk værdi"]
[{"$f":"CCS!$C465&\" - \"&CCS!$B465","v":"Vindskede - NDE"},"NDE","Vindskede","Vindskedebræt, ","afsluttende komponent på tagflades afslutning ved gavl"]
[{"$f":"CCS!$C466&\" - \"&CCS!$B466","v":"Vindue - QQA"},"QQA","Vindue","Vindueselement, vinduesparti, Dannebrogsvindue, bondehusvindue, 2-fagsvindue, biforium","adgangsgivende komponent for lysindfald"]
[{"$f":"CCS!$C467&\" - \"&CCS!$B467","v":"Vinduesparti - QQB"},"QQB","Vinduesparti","Glasparti, glasfacade, dørparti, ","større adgangsgivende komponent for lysindfald og/eller personer"]
[{"$f":"CCS!$C468&\" - \"&CCS!$B468","v":"Vinduesplade - NCG"},"NCG","Vinduesplade","Vindueskarm, ","afdækkende komponent der beklæder overside af vinduesbrystning indvendigt"]
[{"$f":"CCS!$C469&\" - \"&CCS!$B469","v":"Voltmeter - PGG"},"PGG","Voltmeter"," ","diskret-variabel komponent der viser elektrisk spænding"]
[{"$f":"CCS!$C470&\" - \"&CCS!$B470","v":"Wattmeter - PGH"},"PGH","Wattmeter"," ","diskret-variabel komponent der viser elektrisk aktiv effekt"]
[{"$f":"CCS!$C471&\" - \"&CCS!$B471","v":"Watt-timemeter - PGK"},"PGK","Watt-timemeter"," ","diskret-variabel komponent der viser elektisk forbrug"]

{"sheet":"Indholdstype","index":5,"n_rows":88,"n_cols":14,"rows_kept":88,"cut":false,"hidden":true,"merged":[]}
["[C]Dokumenter","[C]","Emne","Beskrivelse",null,"[C]D&V","[C]","Emne","Beskrivelse",null,"[C]Model","[C]","Emne","Column1"]
[{"$f":"B2&\" \"&C2","v":"C01 Basis"},"C01","Basis","Dokumenter hvis indhold vedrører organisation og de involverede virksomheders virke",null,{"$f":"G2&\" \"&H2","v":"C02 Aftale"},"C02","Aftale","Dokumenter hvis indhold fastlægger ydelser, leverancer og vilkår mellem parter",null,{"$f":"L2&\" \"&M2","v":"C07.02 Fagmodel"},"C07.02","Fagmodel"]
[{"$f":"B3&\" \"&C3","v":"   C01.01 Arkivfortegnelse"},"   C01.01","Arkivfortegnelse","Sags-/regnskabsnumre, distribu-tionsliste, dokument- og tegningsliste",null,"   C02.01 Aflevering","   C02.01","Aflevering","Afleveringsprotokol, overdragelsesdokumentation",null,"C07.06 Fællesmodel","C07.06","Fællesmodel"]
["   C01.02 Organisation","   C01.02","Organisation","Adresseliste, organisationsplan og -diagram, medarbejderliste",null,"   C02.04 Garanti","   C02.04","Garanti","Sikkerhedsstillelse, garanti",null,{"$f":"L4&\" \"&M4","v":"C07.08 Arealforvaltningsmodel"},"C07.08","Arealforvaltningsmodel"]
["   C01.03 Skabelon","   C01.03","Skabelon","Paradigme, mapperygmærke, faneblade, udfyldelsesskabelon",null,"C08 Teknisk specifikation","C08","Teknisk specifikation","Dokumenter der præcist og detaljeret beskriver egenskaber, fastlægger krav eller giver vejledning"]
["C02 Aftale","C02","Aftale","Dokumenter hvis indhold fastlægger ydelser, leverancer og vilkår mellem parter",null,"   C08.01 Generel beskrivelse","   C08.01","Generel beskrivelse","Problemformulering, byggeprogram, projektbeskrivelse, konkurrencebeskrivelse, ideoplægsbeskrivelse, projektforslagsbeskrivelse"]
["   C02.01 Aflevering","   C02.01","Aflevering","Afleveringsprotokol, overdragelsesdokumentation",null,"   C08.02 BSB og arbejdsbeskriv.","   C08.02","BSB og arbejdsbeskriv.","Byggesags-, arbejds- og bygningsdelsbeskrivelse, metodebeskrivelse, funktionsbeskrivelse, montage- og leverancespecifikation"]
["   C02.02 Forsikring","   C02.02","Forsikring","Forsikringspolice, byggeskadeforsikring",null,"   C08.03 Mængde- og prisliste","   C08.03","Mængde- og prisliste","Arealoversigt, mængder, tilbudsliste, styklister"]
["   C02.03 Fuldmagt","   C02.03","Fuldmagt","Fuldmagt, bemyndigelse",null,"   C08.08 Datablad","   C08.08","Datablad","Materiale produkt- og datablad, produktspecifikation"]
["   C02.04 Garanti","   C02.04","Garanti","Sikkerhedsstillelse, garanti",null,"   C08.09 D&V-vejl.","   C08.09","D&V-vejl.","Driftplan, driftshåndbog, bygningsdelskort, driftkort, nøgleskema, pumpeliste, ventilliste, I/O liste, vedligeholdelsesvejledning, rengøringsvejledning"]
["   C02.05 Kontrakt","   C02.05","Kontrakt","Acceptskrivelse, rammeaftale, entrepriseaftale, akkordaftale, rekvisition, ydelsesfordelingsdokument, kontrakt",null,"   C08.10 CE-mærkning","   C08.10","CE-mærkning","CE-mærkning"]
["   C02.06 Aftaleseddel","   C02.06","Aftaleseddel","Aftaleseddel, beskedseddel, beslutningsplan",null,"   C08.11 Anlægsbeskrivelse","   C08.11","Anlægsbeskrivelse","Anlægs- og funktionssbeskrivelse"]
["   C02.07 IKT-specifikationer","   C02.07","IKT-specifikationer","IKT-specifikationer",null,"   C08.12 Checklister","   C08.12","Checklister","Checklister, checkskemaer"]
[{"$f":"B14&\" \"&C14","v":"   C02.08 Låneaftale"},"   C02.08","Låneaftale","Udlån og indlån af genstande ",null,"   C08.13 Tegningsliste","   C08.13","Tegningsliste","Tegningsliste"]
["C03 Økonomi","C03","Økonomi","Dokumenter hvis indhold vedrører forvaltning og anvendelse af penge.",null,"   C08.14 Reservedelsliste","   C08.14","Reservedelsliste","Komponent- og reservedelsliste"]
["   C03.01 Betalingsplan","   C03.01","Betalingsplan","Faktureringsplan, aconto begæring",null,{"$f":"G16&\" \"&H16","v":"   C08.15 Bygningsdelskort"},"   C08.15","Bygningsdelskort"]
["   C03.02 Bevilling","   C03.02","Bevilling","Bevilling, tildeling",null,"C10 Kvalitetsstyring","C10","Kvalitetsstyring","Dokumenter hvis indhold er knyttet til fastlæggelse, håndtering og kontrol af kvalitet"]
["   C03.03 Budget","   C03.03","Budget","Omkostningsstyring, budgetopfølgning, stadeopgørelse",null,"   C10.01 Granskning","   C10.01","Granskning","Afvigelsesrapport, granskningsnotat, projekteringscheck- og huskeliste, spørgsmål-svar-liste, procesgranskning"]
["   C03.04 Regnskab","   C03.04","Regnskab","Kontoplan, økonomirapport, økonominotat, lønliste, akkord-regnskab",null,"   C10.02 Kontrol","   C10.02","Kontrol","Kontrolplan, projektkontrol, proceskontrol, egenkontrol, kollisionskontrol, konsistenskontrol"]
["   C03.05 Faktura","   C03.05","Faktura","Faktura, slutregning",null,"   C10.03 KS-Dok.","   C10.03","KS-Dok.","Kvalitetssikringsdokumentation, modtagekontrol, logbog, projektlog"]
["   C03.06 Prisoverslag","   C03.06","Prisoverslag","Kalkulation, tilbudskalkulation",null,"   C10.04 Kvalitetsplan","   C10.04","Kvalitetsplan","Kvalitetshåndbog, kvalitetskrav, kvalitetsniveau"]
["C04 Myndighed","C04","Myndighed","Dokumenter hvis indhold vedrører forhold knyttet til offentlige instanser",null,"   C10.05 Risikovurdering","   C10.05","Risikovurdering","Risikoanalyse, risikostyring"]
["   C04.01 Ansøgning","   C04.01","Ansøgning","Byggeandragende, BBR-oplysninger, matrikelkort",null,"   C10.06 Tilsyn","   C10.06","Tilsyn","Tilsynsplan, tilsynsnotat"]
["   C04.02 Anmeldelse","   C04.02","Anmeldelse","Anmeldelse- / færdigmeldingsblanket",null,"   C10.07 Mangel","   C10.07","Mangel","Fejl- og mangelliste"]
["   C04.03 Lokalplan","   C04.03","Lokalplan","Lokalplan, kommuneplan, tingbogsdokument, servitut",null,"   C10.08 Forespørgsel","   C10.08","Forespørgsel","Teknisk forespørgsel, projektafklaring, afvigelsesrapport"]
["   C04.04 Myndighedskrav","   C04.04","Myndighedskrav","Bygningsfredning, brandstrategirapport",null,"   C10.09 Audit","   C10.09","Audit","Auditrapport, kvalitetsaudit"]
["   C04.05 Tilladelse","   C04.05","Tilladelse","Byggetilladelse, grave-/støbetilladelse, ibrugtagningstilladelse, myndighedsgodkendelse",null,{"$f":"G27&\" \"&H27","v":"   C10.10 Foto"},"   C10.10","Foto","Fotodokumentation"]
["C05 Analyse","C05","Analyse","Dokumenter der indeholder resultater af undersøgelser, studier, beregninger  og simuleringer",null,{"$f":"G28&\" \"&H28","v":"   C10.11 Certifikat"},"   C10.11","Certifikat"]
["   C05.01 Beregning","   C05.01","Beregning","Akustikberegning, statisk beregning, energirammeberegning, lysberegning",null,{"$f":"G29&\" \"&H29","v":"   C10.12 Trykprøv. Attest"},"   C10.12","Trykprøv. Attest"]
["   C05.02 Opmåling","   C05.02","Opmåling","Opmåling",null,"C11 Tids- og ressourcestyring","C11","Tids- og ressourcestyring","Dokumenter hvis indhold er relateret  til tids- og ressourcemæssige forhold"]
["   C05.03 Registrering","   C05.03","Registrering","Registreringsfoto, energiaflæsning",null,"   C11.01 Projektplan","   C11.01","Projektplan","Forhindringsliste, aktivitetsliste, beslutningsplan, procesplan"]
["   C05.04 Simulering","   C05.04","Simulering","Brand-, lys-, lyd-, vind- og trafiksimulering",null,"   C11.02 Tidsplan","   C11.02","Tidsplan","Hovedtidsplan, projekteringstidsplan, udbudstidsplan, tilbudstidsplan, udførelsestidsplan, arbejdstidsplan, produktionstidsplan"]
["   C05.05 Undersøgelse","   C05.05","Undersøgelse","Geoteknisk rapport, vejrligsrapport, Asbest- og forureningsundersøgelse, bygningssynsrapport, TV-inspektion, VVM redegørelse",null,"   C11.03 Ressourceplan","   C11.03","Ressourceplan","Bemandingsplan, frekvensplan, timeseddel"]
[{"$f":"B34&\" \"&C34","v":"   C05.06 Tilstandsrapport"},"   C05.06","Tilstandsrapport","Tilstandsrapport, tilstandsvurdering"]
["C06 Referat","C06","Referat","Dokumenter der indeholder dagsordner eller dokumenter der gengiver indhold eller beslutninger fra møder eller samtaler"]
["   C06.01 Bygherremøde","   C06.01","Bygherremøde","Referat"]
["   C06.02 Byggeudvalgsmøde","   C06.02","Byggeudvalgsmøde","Referat"]
["   C06.03 Myndighedsmøde","   C06.03","Myndighedsmøde","Referat"]
["   C06.04 Projekteringsmøde","   C06.04","Projekteringsmøde","Referat"]
["   C06.05 Projektgennemgangsmøde","   C06.05","Projektgennemgangsmøde","Referat"]
["   C06.06 Styregruppemøde","   C06.06","Styregruppemøde","Referat"]
["   C06.07 Sikkerhedsmøde","   C06.07","Sikkerhedsmøde","Referat"]
["   C06.08 Byggemøde","   C06.08","Byggemøde","Referat"]
["   C06.09 Projektgranskning","   C06.09","Projektgranskning","Referat"]
["   C06.10 Projektplanlægning","   C06.10","Projektplanlægning","Referat"]
["   C06.11 Entreprenørmøde","   C06.11","Entreprenørmøde","Referat"]
["   C06.12 Workshop/Brugermøde","   C06.12","Workshop/Brugermøde","Referat"]
["C08 Teknisk specifikation","C08","Teknisk specifikation","Dokumenter der præcist og detaljeret beskriver egenskaber, fastlægger krav eller giver vejledning"]
["   C08.01 Generel beskrivelse","   C08.01","Generel beskrivelse","Problemformulering, byggeprogram, projektbeskrivelse, konkurrencebeskrivelse, ideoplægsbeskrivelse, projektforslagsbeskrivelse"]
["   C08.02 BSB og arbejdsbesk.","   C08.02","BSB og arbejdsbesk.","Byggesags-, arbejds- og bygningsdelsbeskrivelse, metodebeskrivelse, funktionsbeskrivelse, montage- og leverancespecifikation"]
["   C08.03 Mængde- og prisliste","   C08.03","Mængde- og prisliste","Mængder, tilbudsliste, arealoversigt, styklister, dørskema"]
["   C08.04 Rumspecifikation","   C08.04","Rumspecifikation","Rumskema, inventarliste, bestykningsliste"]
["   C08.05 Sikkerhed og arb.miljø","   C08.05","Sikkerhed og arb.miljø","Plan for sikkerhed og sundhed, arbejdsinstruks, arbejdsmiljøplan, certifikat, Arbejdstilsynets vejledning og anvisning, AT-henvendelse, arbejdspladsvurdering (APV), arbejdspladstjekliste, analyse og forebyggelse af ulykker, vejledning til offshore"]
["   C08.06 Byggepladsspec.","   C08.06","Byggepladsspec.","Arbejdsprocedure, indkøbs- og leveranceplan, vinterforanstaltning, materiel disposition, materiale disposition, bukkeliste, læsseliste, lejeliste, byggeaffaldshåndtering"]
["   C08.07 Miljø og bæredygtighed","   C08.07","Miljø og bæredygtighed","Miljøprogram, miljøkortlægning, miljøscreening, miljømål, miljøplan, miljøberedskabsplan, miljøprioritering, affaldshåndtering, miljømærkning, miljøpolitik, miljøgodkendelse"]
["   C08.08 Datablad","   C08.08","Datablad","Materiale produkt- og datablad, produktspecifikation"]
["   C08.09 D&V-vejl.","   C08.09","D&V-vejl.","Driftplan, driftshåndbog, bygningsdelskort, driftkort, nøgleskema, pumpeliste, ventilliste, I/O liste, vedligeholdelsesvejledning, rengøringsvejledning"]
["   C08.10 CE-mærkning","   C08.10","CE-mærkning","CE-mærkning"]
["   C08.11 Anlægsbeskrivelse","   C08.11","Anlægsbeskrivelse","Funktions- og anlægsbeskrivelse"]
["   C08.12 Checklister","   C08.12","Checklister","Checklister, checkskemaer"]
["   C08.13 Tegningsliste","   C08.13","Tegningsliste","Tegningsliste"]
["   C08.14 Reservedelsliste","   C08.14","Reservedelsliste","Komponent- og reservedelsliste"]
["   C08.15 Bygningsdelskort","   C08.15","Bygningsdelskort"]
["C09 Orientering","C09","Orientering","Dokumenter hvis indhold er af nyhedsmæssig eller meddelende karakter"]
["   C09.01 Høring","   C09.01","Høring","Nabohøring, nyhedsbrev"]
[{"$f":"B66&\" \"&C66","v":"   C09.02 Varsling"},"   C09.02","Varsling","Naboorientering"]
["   C09.03 Meddelelse","   C09.03","Meddelelse","Udbudsbrev, følgebrev"]
[{"$f":"B68&\" \"&C68","v":"   C09.04 Notat"},"   C09.04","Notat","Notat, rapport"]
[{"$f":"B69&\" \"&C69","v":"   C09.05 Korrespondance"},"   C09.05","Korrespondance","Korrespondance, mailudveksling"]
[{"$f":"B70&\" \"&C70","v":"   C09.06 Udbudsdokumenter"},"   C09.06","Udbudsdokumenter","Udbudsbekendtgørelse, udbudsbetingelser, AB-dokumenter"]
[{"$f":"B71&\" \"&C71","v":"   C09.07 Erklæring"},"   C09.07","Erklæring","Tro og love erklæring, ESPD"]
[{"$f":"B72&\" \"&C72","v":"C10 Kvalitetsstyring"},"C10","Kvalitetsstyring","Dokumenter hvis indhold er knyttet til fastlæggelse, håndtering og kontrol af kvalitet"]
["   C10.01 Granskning","   C10.01","Granskning","Afvigelsesrapport, granskningsnotat, projekteringscheck- og huskeliste, spørgsmål-svar-liste, procesgranskning"]
["   C10.02 Kontrol","   C10.02","Kontrol","Kontrolplan, projektkontrol, proceskontrol, egenkontrol, kollisionskontrol, konsistenskontrol"]
["   C10.03 KS-Dok.","   C10.03","KS-Dok.","Kvalitetssikringsdokumentation, modtagekontrol, logbog, projektlog"]
["   C10.04 Kvalitetsplan","   C10.04","Kvalitetsplan","Kvalitetshåndbog, kvalitetskrav, kvalitetsniveau"]
["   C10.05 Risikovurdering","   C10.05","Risikovurdering","Risikoanalyse, risikostyring"]
["   C10.06 Tilsyn","   C10.06","Tilsyn","Tilsynsplan, tilsynsnotat"]
["   C10.07 Mangel","   C10.07","Mangel","Fejl- og mangelliste"]
["   C10.08 Forespørgsel","   C10.08","Forespørgsel","Teknisk forespørgsel, projektafklaring, afvigelsesrapport"]
["   C10.09 Audit","   C10.09","Audit","Auditrapport, kvalitetsaudit"]
[{"$f":"B82&\" \"&C82","v":"   C10.10 Foto"},"   C10.10","Foto","Fotodokumentation"]
[{"$f":"B83&\" \"&C83","v":"   C10.11 Certifikat"},"   C10.11","Certifikat"]
[{"$f":"B84&\" \"&C84","v":"   C10.12 Trykprøv. Attest"},"   C10.12","Trykprøv. Attest"]
["C11 Tids- og ressourcestyring","C11","Tids- og ressourcestyring","Dokumenter hvis indhold er relateret  til tids- og ressourcemæssige forhold"]
["   C11.01 Projektplan","   C11.01","Projektplan","Forhindringsliste, aktivitetsliste, beslutningsplan, procesplan"]
["   C11.02 Tidsplan","   C11.02","Tidsplan","Hovedtidsplan, projekteringstidsplan, udbudstidsplan, tilbudstidsplan, udførelsestidsplan, arbejdstidsplan, produktionstidsplan"]
["   C11.03 Ressourceplan","   C11.03","Ressourceplan","Bemandingsplan, frekvensplan, timeseddel"]

{"sheet":"Vidensområde","index":6,"n_rows":115,"n_cols":13,"rows_kept":115,"cut":false,"hidden":true,"merged":[]}
["[K]Tegninger","[K]","Emne","Beskrivelse",null,"[K]Dokumenter","[K]","Emne","Beskrivelse",null,"[K]3D-modeller","Emne","Beskrivelse"]
[{"$f":"B2&\" \"&C2","v":"K01 Arkitektur"},"K01","Arkitektur","Viden om formgivning og sammensætning af bygninger, anlæg, rum eller fysiske strukturer",null,{"$f":"G2&\" \"&H2","v":"K01 Arkitektur"},"K01","Arkitektur","Viden om formgivning og sammensætning af bygninger, anlæg, rum eller fysiske strukturer",null,{"$f":"Table9[[#This Row],['[K']Tegninger]]","v":"K01 Arkitektur"},"ARK/FÆL-model","Arkitektur - og fællesmodel"]
[{"$f":"B3&\" \"&C3","v":"   K01.01 Form og funktion"},"   K01.01","Form og funktion","Form og funktion",null,{"$f":"G3&\" \"&H3","v":"   K01.01 Form og funktion"},"   K01.01","Form og funktion","Form og funktion",null,{"$f":"A10","v":"K02 By og landskab"},"LAN-model","Landskabsmodel"]
[{"$f":"B4&\" \"&C4","v":"   K01.02 Areal- og rumdisponering"},"   K01.02","Areal- og rumdisponering","Areal- og rumdisponering",null,{"$f":"G4&\" \"&H4","v":"   K01.02 Areal- og rumdisponering"},"   K01.02","Areal- og rumdisponering","Areal- og rumdisponering",null,{"$f":"A13","v":"K03 Indretning"},"INV-model","Inventarmodel"]
[{"$f":"B5&\" \"&C5","v":"   K01.03 Materialekomposition"},"   K01.03","Materialekomposition","Materialekomposition",null,{"$f":"G5&\" \"&H5","v":"   K01.03 Materialekomposition"},"   K01.03","Materialekomposition","Materialekomposition",null,{"$f":"A28","v":"K07 Elektroteknik og IT"},"EL-model","El-model"]
["   K01.04 Farvesætning","   K01.04","Farvesætning","Farvesætning",null,"   K01.04 Farvesætning","   K01.04","Farvesætning","Farvesætning",null,{"$f":"A37","v":"K08 Mekaniske installationer"},"MEK-model","Model for samlede mekaniske installationer, VVS, VENT, Kloak, Sprinkler, Gas"]
["   K01.05 Lyssætning","   K01.05","Lyssætning","Lyssætning",null,"   K01.05 Lyssætning","   K01.05","Lyssætning","Lyssætning",null,{"$f":"SUBSTITUTE(A38,\"   \",\"\")","v":"K08.01 VVS"},"VVS-model","VVS-model"]
["   K01.06 Støj og akustik","   K01.06","Støj og akustik","Støj og akustik",null,"   K01.06 Støj og akustik","   K01.06","Støj og akustik","Støj og akustik",null,{"$f":"SUBSTITUTE(A39,\"   \",\"\")","v":"K08.02 Ventilation"},"VENT-model","Ventilationsmodel"]
["   K01.07 Øvrig arkitektur","   K01.07","Øvrig arkitektur","Øvrig arkitektur",null,"   K01.07 Øvrig arkitektur","   K01.07","Øvrig arkitektur","Øvrig arkitektur",null,{"$f":"SUBSTITUTE(A41,\"   \",\"\")","v":"K08.04 Gas- og luftarter"},"GAS-model","Model for gas- og luftarter"]
["K02 By og landskab","K02","By og landskab","Viden om formgivning og indretning af, byer, bymiljøer, uderum og natur",null,"K02 By og landskab","K02","By og landskab","Viden om formgivning og indretning af, byer, bymiljøer, uderum og natur",null,{"$f":"SUBSTITUTE(A42,\"   \",\"\")","v":"K08.05 Sprinkler"},"SPR-model","Sprinklermodel"]
["   K02.02 Landskab","   K02.02","Landskab",null,null,"   K02.02 Landskab","   K02.02","Landskab",null,null,{"$f":"SUBSTITUTE(A43,\"   \",\"\")","v":"K08.06 Ledninger i jord"},"KLO-model","Kloakmodel"]
["   K02.03 Beplantning og vegetation","   K02.03","Beplantning og vegetation",null,null,"   K02.03 Beplantning og vegetation","   K02.03","Beplantning og vegetation",null,null,{"$f":"A46","v":"K09 Konstruktioner"},"KON-model","Konstruktionsmodel"]
["K03 Indretning","K03","Indretning","Viden om indretning, sammensætning og anvendelse af brugsting i rum, bygninger og anlæg",null,"K03 Indretning","K03","Indretning","Viden om indretning, sammensætning og anvendelse af brugsting i rum, bygninger og anlæg",null,{"$f":"SUBSTITUTE(A47,\"   \",\"\")","v":"K09.01 Aptering"},"APT-model","Apteringsmodel"]
["   K03.01 Møblering","   K03.01","Møblering",null,null,"   K03.01 Møblering","   K03.01","Møblering",null,null,{"$f":"SUBSTITUTE(A49,\"   \",\"\")","v":"K09.03 Klimaskærm"},"FAC-model","Model for facader og tag"]
["   K03.02 Farvesætning","   K03.02","Farvesætning",null,null,"   K03.02 Farvesætning","   K03.02","Farvesætning",null,null,{"$f":"SUBSTITUTE(A72,\"   \",\"\")","v":"K13.03 Arealforvaltning"},"AREAL-model","Arealforvaltningsmodel"]
["   K03.03 Lyssætning","   K03.03","Lyssætning",null,null,"   K03.03 Lyssætning","   K03.03","Lyssætning"]
["   K03.04 Tekstiler og materialer","   K03.04","Tekstiler og materialer",null,null,"   K03.04 Tekstiler og materialer","   K03.04","Tekstiler og materialer"]
["   K03.05 Kunst","   K03.05","Kunst",null,null,{"$f":"G18&\" \"&H18","v":"   K03.05 Kunst"},"   K03.05","Kunst"]
[{"$f":"B19&\" \"&C19","v":"K05 Grafisk design"},"K05","Grafisk design",null,null,"K05 Grafisk design","K05","Grafisk design","Viden om formgivning af visuel kommunikation"]
[{"$f":"B20&\" \"&C20","v":"   K05.01 Illustrationer"},"   K05.01","Illustrationer",null,null,"   K05.01 Illustrationer","   K05.01","Illustrationer"]
[{"$f":"B21&\" \"&C21","v":"   K05.02 Dokumentdesign"},"   K05.02","Dokumentdesign",null,null,"   K05.02 Dokumentdesign","   K05.02","Dokumentdesign"]
[{"$f":"B22&\" \"&C22","v":"   K05.03 Skiltning og typografi"},"   K05.03","Skiltning og typografi",null,null,"   K05.03 Skiltning og typografi","   K05.03","Skiltning og typografi"]
["K06 Kort og landmåling","K06","Kort og landmåling","Viden om opmåling, kortlægning, fastlæggelse af skel og\nregistrering og afsætning af bygninger og anlæg",null,"K06 Kort og landmåling","K06","Kort og landmåling","Viden om opmåling, kortlægning, fastlæggelse af skel og\nregistrering og afsætning af bygninger og anlæg"]
["   K06.01 Matrikulering","   K06.01","Matrikulering",null,null,"   K06.01 Matrikulering","   K06.01","Matrikulering"]
["   K06.02 Kortlægning","   K06.02","Kortlægning",null,null,"   K06.02 Kortlægning","   K06.02","Kortlægning"]
["   K06.03 Skelfastsættelse","   K06.03","Skelfastsættelse",null,null,"   K06.03 Skelfastsættelse","   K06.03","Skelfastsættelse"]
[{"$f":"B27&\" \"&C27","v":"   K06.04 Bygningsplacering"},"   K06.04","Bygningsplacering","Situationsplan, oversigtsplan, placering af bygninger på grund",null,{"$f":"G27&\" \"&H27","v":"   K06.04 Bygningsplacering"},"   K06.04","Bygningsplacering","Situationsplan, oversigtsplan, placering af bygninger på grund"]
["K07 Elektroteknik og IT","K07","Elektroteknik og IT","Viden om produktion, transmission, distribution og brug af elektrisk energi",null,"K07 Elektroteknik og IT","K07","Elektroteknik og IT","Viden om produktion, transmission, distribution og brug af elektrisk energi"]
["   K07.01 Stærkstrøm","   K07.01","Stærkstrøm",null,null,"   K07.01 Stærkstrøm","   K07.01","Stærkstrøm"]
["   K07.02 Svagstrøm","   K07.02","Svagstrøm",null,null,"   K07.02 Svagstrøm","   K07.02","Svagstrøm"]
["   K07.03 IT og Kommunikation","   K07.03","IT og Kommunikation",null,null,"   K07.03 IT og Kommunikation","   K07.03","IT og Kommunikation"]
["   K07.04 Alarm og overvågning","   K07.04","Alarm og overvågning",null,null,"   K07.04 Alarm og overvågning","   K07.04","Alarm og overvågning"]
["   K07.05 Belysning","   K07.05","Belysning",null,null,"   K07.05 Belysning","   K07.05","Belysning"]
["   K07.06 Sikring","   K07.06","Sikring",null,null,"   K07.06 Sikring","   K07.06","Sikring"]
[{"$f":"B35&\" \"&C35","v":"   K07.07 Styring og regulering"},"   K07.07","Styring og regulering",null,null,{"$f":"G35&\" \"&H35","v":"   K07.07 Styring og regulering"},"   K07.07","Styring og regulering"]
["   K07.08 Brand","   K07.08","Brand",null,null,"   K07.08 Brand","   K07.08","Brand"]
[{"$f":"B37&\" \"&C37","v":"K08 Mekaniske installationer"},"K08","Mekaniske installationer","Viden om fremføring af vand, afløb, sanitet, varme, ventilation og køling i bygninger",null,{"$f":"G37&\" \"&H37","v":"K08 Mekaniske installationer"},"K08","Mekaniske installationer","Viden om fremføring af vand, afløb, sanitet, varme, ventilation og køling i bygninger"]
[{"$f":"B38&\" \"&C38","v":"   K08.01 VVS"},"   K08.01","VVS",null,null,{"$f":"G38&\" \"&H38","v":"   K08.01 VVS"},"   K08.01","VVS"]
["   K08.02 Ventilation","   K08.02","Ventilation",null,null,"   K08.02 Ventilation","   K08.02","Ventilation"]
["   K08.03 Køling","   K08.03","Køling",null,null,"   K08.03 Køling","   K08.03","Køling"]
[{"$f":"B41&\" \"&C41","v":"   K08.04 Gas- og luftarter"},"   K08.04","Gas- og luftarter",null,null,{"$f":"G41&\" \"&H41","v":"   K08.04 Gas- og luftarter"},"   K08.04","Gas- og luftarter"]
[{"$f":"B42&\" \"&C42","v":"   K08.05 Sprinkler"},"   K08.05","Sprinkler",null,null,{"$f":"G42&\" \"&H42","v":"   K08.05 Sprinkler"},"   K08.05","Sprinkler"]
["   K08.06 Ledninger i jord","   K08.06","Ledninger i jord","Ledningsplaner om kloakering, regnvand, forsyningsledninger, elkabler mv. i jorden",null,"   K08.06 Ledninger i jord","   K08.06","Ledninger i jord","Ledningsplaner om kloakering, regnvand, forsyningsledninger, elkabler mv. i jorden"]
["   K08.07 Styring og regulering","   K08.07","Styring og regulering",null,null,"   K08.07 Styring og regulering","   K08.07","Styring og regulering"]
["   K08.08 Brand","   K08.08","Brand",null,null,"   K08.08 Brand","   K08.08","Brand"]
["K09 Konstruktioner","K09","Konstruktioner","Viden om bygninger og anlægs fysiske, tekniske og funktionelle opbygning og sammenbygning, eks. plantegninger, snit, detaljer",null,"K09 Konstruktioner","K09","Konstruktioner","Viden om bygninger og anlægs fysiske, tekniske og funktionelle opbygning og sammenbygning, eks. plantegninger, snit, detaljer"]
["   K09.01 Aptering","   K09.01","Aptering",null,null,"   K09.01 Aptering","   K09.01","Aptering"]
["   K09.02 Bærende konstruktioner","   K09.02","Bærende konstruktioner",null,null,"   K09.02 Bærende konstruktioner","   K09.02","Bærende konstruktioner"]
["   K09.03 Klimaskærm","   K09.03","Klimaskærm",null,null,"   K09.03 Klimaskærm","   K09.03","Klimaskærm"]
["   K09.04 Bygningsbasis","   K09.04","Bygningsbasis",null,null,"   K09.04 Bygningsbasis","   K09.04","Bygningsbasis"]
[{"$f":"B51&\" \"&C51","v":"   K09.05 Konstruktioner i terræn"},"   K09.05","Konstruktioner i terræn",null,null,{"$f":"G51&\" \"&H51","v":"   K09.05 Konstruktioner i terræn"},"   K09.05","Konstruktioner i terræn"]
["K10 Procesanlæg og forsyning","K10","Procesanlæg og forsyning","Viden om industrielle processer og anlæg for fremføring af el, vand, varme, gas, spildevand mm.",null,"K10 Procesanlæg og forsyning","K10","Procesanlæg og forsyning","Viden om industrielle processer og anlæg for fremføring af el, vand, varme, gas, spildevand mm."]
["   K10.01 Spildevand","   K10.01","Spildevand",null,null,"   K10.01 Spildevand","   K10.01","Spildevand"]
["   K10.02 Vandforsyning","   K10.02","Vandforsyning",null,null,"   K10.02 Vandforsyning","   K10.02","Vandforsyning"]
["   K10.03 Varmeforsyning","   K10.03","Varmeforsyning",null,null,"   K10.03 Varmeforsyning","   K10.03","Varmeforsyning"]
["   K10.04 El-forsyning","   K10.04","El-forsyning",null,null,"   K10.04 El-forsyning","   K10.04","El-forsyning"]
["   K10.05 Maskinanlæg","   K10.05","Maskinanlæg",null,null,"   K10.05 Maskinanlæg","   K10.05","Maskinanlæg"]
["   K10.06 Rørføring","   K10.06","Rørføring",null,null,"   K10.06 Rørføring","   K10.06","Rørføring"]
["K11 Transport","K11","Transport","Viden om at flytte mennesker og varer, f.eks. elevator, trapper",null,"K11 Transport","K11","Transport","Viden om at flytte mennesker og varer, f.eks. elevator, trapper"]
["   K11.01 Vej","   K11.01","Vej",null,null,"   K11.01 Vej","   K11.01","Vej"]
["   K11.02 Bane","   K11.02","Bane",null,null,"   K11.02 Bane","   K11.02","Bane"]
["   K11.03 Elevatorer","   K11.03","Elevatorer",null,null,"   K11.03 Elevatorer","   K11.03","Elevatorer"]
["   K11.04 Rulletrapper","   K11.04","Rulletrapper",null,null,"   K11.04 Rulletrapper","   K11.04","Rulletrapper"]
["K12 Natur og ressourcer","K12","Natur og ressourcer","Viden om undergrund, grundvand, luft og ressourcer",null,"K12 Natur og ressourcer","K12","Natur og ressourcer","Viden om undergrund, grundvand, luft og ressourcer"]
["   K12.01 Geoteknik","   K12.01","Geoteknik","Geotekniske undersøgelser",null,"   K12.01 Geoteknik","   K12.01","Geoteknik","Geotekniske undersøgelser"]
["   K12.02 Ressourcer","   K12.02","Ressourcer","Råstoffer",null,"   K12.02 Ressourcer","   K12.02","Ressourcer","Råstoffer"]
["   K12.03 Energi","   K12.03","Energi",null,null,"   K12.03 Energi","   K12.03","Energi"]
["   K12.04 Miljø","   K12.04","Miljø",null,null,"   K12.04 Miljø","   K12.04","Miljø"]
["K13 Ejendomsforvaltning","K13","Ejendomsforvaltning","Viden om anvendelse og administration af arealer og aktiver i form af bygninger og anlæg",null,"K13 Ejendomsforvaltning","K13","Ejendomsforvaltning","Viden om anvendelse og administration af arealer og aktiver i form af bygninger og anlæg"]
["   K13.01 Porteføljestyring","   K13.01","Porteføljestyring",null,null,"   K13.01 Porteføljestyring","   K13.01","Porteføljestyring"]
["   K13.02 Ejendomsadministration","   K13.02","Ejendomsadministration",null,null,"   K13.02 Ejendomsadministration","   K13.02","Ejendomsadministration"]
["   K13.03 Arealforvaltning","   K13.03","Arealforvaltning","Anvendes internt af AU for plantegninger",null,"   K13.03 Arealforvaltning","   K13.03","Arealforvaltning","Anvendes internt af AU for plantegninger"]
["   K13.04 Bygningsdrift","   K13.04","Bygningsdrift",null,null,"   K13.04 Bygningsdrift","   K13.04","Bygningsdrift"]
["   K13.05 Renhold","   K13.05","Renhold",null,null,"   K13.05 Renhold","   K13.05","Renhold"]
["K17 Sikkerhed og arbejdsmiljø","K17","Sikkerhed og arbejdsmiljø","Viden om det, som påvirker mennesker fysisk og psykisk f.eks. Brandsikkerhed og byggepladsforhold",null,"K14 Økonomi","K14","Økonomi","Viden om forholdet mellem produktion, handel, materielle værdier og penge som ressource"]
["   K17.01 Brand","   K17.01","Brand","Brandtegninger, brandteknisk dokumentation",null,"   K14.01 Controlling","   K14.01","Controlling"]
["   K17.02 Flugtveje","   K17.02","Flugtveje","Flugtvejsplaner, flugtvejsstrategi",null,"   K14.02 Risk management","   K14.02","Risk management"]
["   K17.03 Arbejdsmiljø","   K17.03","Arbejdsmiljø","Plan for sikkerhed og sundhed (PSS)",null,"   K14.03 Finansiering","   K14.03","Finansiering"]
["   K17.04 Byggeplads","   K17.04","Byggeplads","Byggepladsplaner",null,"   K14.04 Projektøkonomi","   K14.04","Projektøkonomi"]
["   K17.05 Evakuering","   K17.05","Evakuering","Evakueringsplaner, evakueringsstrategi",null,"   K14.05 Entrepriseøkonomi","   K14.05","Entrepriseøkonomi"]
["K21 Brugerinddragelse","K21","Brugerinddragelse","Viden om brugeres adfærd, arbejdsgange og behov i fysiske og digitale miljøer",null,"   K14.06 Projekteringsøkonomi","   K14.06","Projekteringsøkonomi"]
["   K21.01 Brugeradfærd","   K21.01","Brugeradfærd",null,null,{"$f":"G82&\" \"&H82","v":"   K14.07 Tilbudsliste"},"   K14.07","Tilbudsliste"]
["   K21.02 Arbejdsgange","   K21.02","Arbejdsgange",null,null,"K15 Jura","K15","Jura","Viden om det system af regler for rettigheder og regulering af konflikter, der gælder i byggeriet og det omgivende samfund"]
["   K21.03 Behovsafklaring","   K21.03","Behovsafklaring",null,null,"   K15.01 Kontraktforhold","   K15.01","Kontraktforhold"]
[null,null,null,null,null,"   K15.02 Udbudsret og ophavsret","   K15.02","Udbudsret og ophavsret"]
[null,null,null,null,null,"   K15.03 Tilladelse","   K15.03","Tilladelse"]
[null,null,null,null,null,{"$f":"G87&\" \"&H87","v":"   K15.04 AB-dokumenter"},"   K15.04","AB-dokumenter"]
[null,null,null,null,null,{"$f":"G88&\" \"&H88","v":"   K15.05 Betingelser"},"   K15.05","Betingelser"]
[null,null,null,null,null,{"$f":"G89&\" \"&H89","v":"   K15.06 Bekendtgørelse"},"   K15.06","Bekendtgørelse"]
[null,null,null,null,null,{"$f":"G90&\" \"&H90","v":"   K15.07 Tro og love erklæring"},"   K15.07","Tro og love erklæring"]
[null,null,null,null,null,{"$f":"G91&\" \"&H91","v":"K17 Sikkerhed og arbejdsmiljø"},"K17","Sikkerhed og arbejdsmiljø","Viden om det, som påvirker mennesker fysisk og psykisk f.eks. Brandsikkerhed og byggepladsforhold"]
[null,null,null,null,null,"   K17.01 Brand","   K17.01","Brand","Brandtegninger, brandteknisk dokumentation"]
[null,null,null,null,null,"   K17.02 Flugtveje","   K17.02","Flugtveje","Flugtvejsplaner, flugtvejsstrategi"]
[null,null,null,null,null,"   K17.03 Arbejdsmiljø","   K17.03","Arbejdsmiljø","Plan for sikkerhed og sundhed (PSS)"]
[null,null,null,null,null,"   K17.04 Byggeplads","   K17.04","Byggeplads","Byggepladsplaner"]
[null,null,null,null,null,"   K17.05 Evakuering","   K17.05","Evakuering","Evakueringsplaner, evakueringsstrategi"]
[null,null,null,null,null,"K18 Tids og ressourcestyring","K18","Tids og ressourcestyring","Viden om tids- og ressourceforbrug under projektering og udførelse"]
[null,null,null,null,null,"   K18.01 Udbudstidsplan","   K18.01","Udbudstidsplan","Udbudstidsplan"]
[null,null,null,null,null,"   K18.02 Hovedtidsplan, Projektering","   K18.02","Hovedtidsplan, Projektering","Hovedtidsplan for de samlede rådgivningsydelser på tværs at rådgivere"]
[null,null,null,null,null,"   K18.03 Hovedtidsplan, Udførelse","   K18.03","Hovedtidsplan, Udførelse","Hovedtidsplan for de samlede entreprenørydelser på tværs at entreprenører"]
[null,null,null,null,null,{"$f":"G101&\" \"&H101","v":"   K18.04 Projekteringstidsplan"},"   K18.04","Projekteringstidsplan","Detaljeret tidsplan for den enkelte rådgiver"]
[null,null,null,null,null,{"$f":"G102&\" \"&H102","v":"   K18.05 Entreprisetidsplan"},"   K18.05","Entreprisetidsplan","Overordnet tidsplan for den enkelte entreprenør"]
[null,null,null,null,null,{"$f":"G103&\" \"&H103","v":"   K18.06 Arbejdstidsplan"},"   K18.06","Arbejdstidsplan","Detaljeret tidsplan for den enkelte entreprise"]
[null,null,null,null,null,"   K18.07 Ugeplan","   K18.07","Ugeplan","Detaljeret tidsplan for den enkelte uge"]
[null,null,null,null,null,"   K18.08 Bemandingsplan","   K18.08","Bemandingsplan","Plan eller skematik over forbrug af bemandingsressourcer"]
[null,null,null,null,null,"   K18.09 Timeseddel","   K18.09","Timeseddel","Timesedler"]
[null,null,null,null,null,"K19 IKT","K19","IKT","Viden om det IKT-tekniske område"]
[null,null,null,null,null,"K20 Administrativt","K20","Administrativt","Viden om administrative systemer som understøtter byggesagen"]
[null,null,null,null,null,"   K20.01 Dokumenthåndtering","   K20.01","Dokumenthåndtering","Tegningslister, skabeloner"]
[null,null,null,null,null,"   K20.02 Organisationsforhold","   K20.02","Organisationsforhold","Byggesagens organisering"]
[null,null,null,null,null,"   K20.03 Byggesagen generelt ","   K20.03","Byggesagen generelt ","Byggesagsbeskrivelse og andet generelt."]
[null,null,null,null,null,"K21 Brugerinddragelse","K21","Brugerinddragelse","Viden om brugeres adfærd, arbejdsgange og behov i fysiske og digitale miljøer"]
[null,null,null,null,null,"   K21.01 Brugeradfærd","   K21.01","Brugeradfærd"]
[null,null,null,null,null,"   K21.02 Arbejdsgange","   K21.02","Arbejdsgange"]
[null,null,null,null,null,"   K21.03 Behovsafklaring","   K21.03","Behovsafklaring"]

{"sheet":"Tegningstype","index":7,"n_rows":9,"n_cols":3,"rows_kept":9,"cut":false,"hidden":true,"merged":[]}
["[H]Afbildningstype","[H]","[H]Tekst"]
["H0 Generelt","H0","Generelt"]
["H1 Plan","H1","Plan"]
["H2 Opstalt","H2","Opstalt"]
["H3 Snit","H3","Snit"]
["H4 Bygningsudsnit","H4","Bygningsudsnit"]
["H5 Detalje","H5","Detalje"]
["H6 Diagram/Skema","H6","Diagram/Skema"]
["H7 Rumlig afbildning","H7","Rumlig afbildning"]

{"sheet":"Virksomhedstype","index":8,"n_rows":93,"n_cols":3,"rows_kept":93,"cut":false,"hidden":true,"merged":[]}
["[B]Virksomhedstype","[B]","Emne"]
[{"$f":"Table14[[#This Row],['[B']]]&\" \"&Table14[[#This Row],[Emne]]","v":"B01 Bygherre"},"B01","Bygherre"]
[{"$f":"Table14[[#This Row],['[B']]]&\" \"&Table14[[#This Row],[Emne]]","v":"B02 Rådgiver"},"B02","Rådgiver"]
[{"$f":"Table14[[#This Row],['[B']]]&\" \"&Table14[[#This Row],[Emne]]","v":"   B02.01 Bygherrerådgiver"},"   B02.01","Bygherrerådgiver"]
[{"$f":"Table14[[#This Row],['[B']]]&\" \"&Table14[[#This Row],[Emne]]","v":"   B02.02 Arkitekt"},"   B02.02","Arkitekt"]
[{"$f":"Table14[[#This Row],['[B']]]&\" \"&Table14[[#This Row],[Emne]]","v":"   B02.03 Landskabsarkitekt"},"   B02.03","Landskabsarkitekt"]
[{"$f":"Table14[[#This Row],['[B']]]&\" \"&Table14[[#This Row],[Emne]]","v":"   B02.04 Indretningsarkitekt"},"   B02.04","Indretningsarkitekt"]
[{"$f":"Table14[[#This Row],['[B']]]&\" \"&Table14[[#This Row],[Emne]]","v":"   B02.06 Teknisk rådgiver"},"   B02.06","Teknisk rådgiver"]
[{"$f":"Table14[[#This Row],['[B']]]&\" \"&Table14[[#This Row],[Emne]]","v":"   B02.12 Landinspektør"},"   B02.12","Landinspektør"]
[{"$f":"Table14[[#This Row],['[B']]]&\" \"&Table14[[#This Row],[Emne]]","v":"   B02.15 Byggeledelse"},"   B02.15","Byggeledelse"]
[{"$f":"Table14[[#This Row],['[B']]]&\" \"&Table14[[#This Row],[Emne]]","v":"   B02.16 Ingeniør"},"   B02.16","Ingeniør"]
[{"$f":"Table14[[#This Row],['[B']]]&\" \"&Table14[[#This Row],[Emne]]","v":"   B02.17 Ingeniør KON"},"   B02.17","Ingeniør KON"]
[{"$f":"Table14[[#This Row],['[B']]]&\" \"&Table14[[#This Row],[Emne]]","v":"   B02.18 Ingeniør VENT"},"   B02.18","Ingeniør VENT"]
[{"$f":"Table14[[#This Row],['[B']]]&\" \"&Table14[[#This Row],[Emne]]","v":"   B02.19 Ingeniør VVS"},"   B02.19","Ingeniør VVS"]
[{"$f":"Table14[[#This Row],['[B']]]&\" \"&Table14[[#This Row],[Emne]]","v":"   B02.20 Ingeniør EL"},"   B02.20","Ingeniør EL"]
[{"$f":"Table14[[#This Row],['[B']]]&\" \"&Table14[[#This Row],[Emne]]","v":"B03 Producent"},"B03","Producent"]
[{"$f":"Table14[[#This Row],['[B']]]&\" \"&Table14[[#This Row],[Emne]]","v":"   B03.01 Betonelementfabrikant"},"   B03.01","Betonelementfabrikant"]
[{"$f":"Table14[[#This Row],['[B']]]&\" \"&Table14[[#This Row],[Emne]]","v":"   B03.02 Betonproducent"},"   B03.02","Betonproducent"]
[{"$f":"Table14[[#This Row],['[B']]]&\" \"&Table14[[#This Row],[Emne]]","v":"   B03.03 Træelementfabrikant"},"   B03.03","Træelementfabrikant"]
[{"$f":"Table14[[#This Row],['[B']]]&\" \"&Table14[[#This Row],[Emne]]","v":"   B03.04 Stålproducent"},"   B03.04","Stålproducent"]
[{"$f":"Table14[[#This Row],['[B']]]&\" \"&Table14[[#This Row],[Emne]]","v":"   B03.05 Armeringsbukkestation"},"   B03.05","Armeringsbukkestation"]
[{"$f":"Table14[[#This Row],['[B']]]&\" \"&Table14[[#This Row],[Emne]]","v":"   B03.06 Teglproducent"},"   B03.06","Teglproducent"]
[{"$f":"Table14[[#This Row],['[B']]]&\" \"&Table14[[#This Row],[Emne]]","v":"   B03.07 Glasfabrikant"},"   B03.07","Glasfabrikant"]
[{"$f":"Table14[[#This Row],['[B']]]&\" \"&Table14[[#This Row],[Emne]]","v":"   B03.08 Isoleringsproducent"},"   B03.08","Isoleringsproducent"]
[{"$f":"Table14[[#This Row],['[B']]]&\" \"&Table14[[#This Row],[Emne]]","v":"   B03.09 Vinduesfabrikant"},"   B03.09","Vinduesfabrikant"]
[{"$f":"Table14[[#This Row],['[B']]]&\" \"&Table14[[#This Row],[Emne]]","v":"   B03.10 Dørfabrikant"},"   B03.10","Dørfabrikant"]
[{"$f":"Table14[[#This Row],['[B']]]&\" \"&Table14[[#This Row],[Emne]]","v":"   B03.11 Portfabrikant"},"   B03.11","Portfabrikant"]
[{"$f":"Table14[[#This Row],['[B']]]&\" \"&Table14[[#This Row],[Emne]]","v":"   B03.12 Ventilationsfabrikant"},"   B03.12","Ventilationsfabrikant"]
[{"$f":"Table14[[#This Row],['[B']]]&\" \"&Table14[[#This Row],[Emne]]","v":"   B03.13 Laboratoriefabrikant"},"   B03.13","Laboratoriefabrikant"]
[{"$f":"Table14[[#This Row],['[B']]]&\" \"&Table14[[#This Row],[Emne]]","v":"B04 Leverandør"},"B04","Leverandør"]
[{"$f":"Table14[[#This Row],['[B']]]&\" \"&Table14[[#This Row],[Emne]]","v":"   B04.01 Byggevareleverandør"},"   B04.01","Byggevareleverandør"]
[{"$f":"Table14[[#This Row],['[B']]]&\" \"&Table14[[#This Row],[Emne]]","v":"   B04.03 Systemleverandør"},"   B04.03","Systemleverandør"]
[{"$f":"Table14[[#This Row],['[B']]]&\" \"&Table14[[#This Row],[Emne]]","v":"   B04.04 Materielleverandør"},"   B04.04","Materielleverandør"]
[{"$f":"Table14[[#This Row],['[B']]]&\" \"&Table14[[#This Row],[Emne]]","v":"   B04.05 Køkkenleverandør"},"   B04.05","Køkkenleverandør"]
[{"$f":"Table14[[#This Row],['[B']]]&\" \"&Table14[[#This Row],[Emne]]","v":"   B04.06 AV-leverandør"},"   B04.06","AV-leverandør"]
[{"$f":"Table14[[#This Row],['[B']]]&\" \"&Table14[[#This Row],[Emne]]","v":"   B04.07 Laboratorieleverandør"},"   B04.07","Laboratorieleverandør"]
[{"$f":"Table14[[#This Row],['[B']]]&\" \"&Table14[[#This Row],[Emne]]","v":"   B04.08 Gasleverandør"},"   B04.08","Gasleverandør"]
[{"$f":"Table14[[#This Row],['[B']]]&\" \"&Table14[[#This Row],[Emne]]","v":"B05 Entreprenør"},"B05","Entreprenør"]
[{"$f":"Table14[[#This Row],['[B']]]&\" \"&Table14[[#This Row],[Emne]]","v":"   B05.01 Byggepladsentreprenør"},"   B05.01","Byggepladsentreprenør"]
[{"$f":"Table14[[#This Row],['[B']]]&\" \"&Table14[[#This Row],[Emne]]","v":"   B05.02 Nedrivningsentreprenør"},"   B05.02","Nedrivningsentreprenør"]
[{"$f":"Table14[[#This Row],['[B']]]&\" \"&Table14[[#This Row],[Emne]]","v":"   B05.03 Jordentreprenør"},"   B05.03","Jordentreprenør"]
[{"$f":"Table14[[#This Row],['[B']]]&\" \"&Table14[[#This Row],[Emne]]","v":"   B05.04 Ramningsentreprenør"},"   B05.04","Ramningsentreprenør"]
[{"$f":"Table14[[#This Row],['[B']]]&\" \"&Table14[[#This Row],[Emne]]","v":"   B05.05 Anlægsentreprenør"},"   B05.05","Anlægsentreprenør"]
[{"$f":"Table14[[#This Row],['[B']]]&\" \"&Table14[[#This Row],[Emne]]","v":"   B05.06 Anlægsgartner"},"   B05.06","Anlægsgartner"]
[{"$f":"Table14[[#This Row],['[B']]]&\" \"&Table14[[#This Row],[Emne]]","v":"   B05.07 Kloakentreprenør"},"   B05.07","Kloakentreprenør"]
[{"$f":"Table14[[#This Row],['[B']]]&\" \"&Table14[[#This Row],[Emne]]","v":"   B05.08 Betonentreprenør"},"   B05.08","Betonentreprenør"]
[{"$f":"Table14[[#This Row],['[B']]]&\" \"&Table14[[#This Row],[Emne]]","v":"   B05.09 Murer"},"   B05.09","Murer"]
[{"$f":"Table14[[#This Row],['[B']]]&\" \"&Table14[[#This Row],[Emne]]","v":"   B05.10 Tømrer"},"   B05.10","Tømrer"]
[{"$f":"Table14[[#This Row],['[B']]]&\" \"&Table14[[#This Row],[Emne]]","v":"   B05.11 Snedker"},"   B05.11","Snedker"]
[{"$f":"Table14[[#This Row],['[B']]]&\" \"&Table14[[#This Row],[Emne]]","v":"   B05.12 Maler"},"   B05.12","Maler"]
[{"$f":"Table14[[#This Row],['[B']]]&\" \"&Table14[[#This Row],[Emne]]","v":"   B05.13 Montageentreprenør"},"   B05.13","Montageentreprenør"]
[{"$f":"Table14[[#This Row],['[B']]]&\" \"&Table14[[#This Row],[Emne]]","v":"   B05.14 Lukningsentreprenør"},"   B05.14","Lukningsentreprenør"]
[{"$f":"Table14[[#This Row],['[B']]]&\" \"&Table14[[#This Row],[Emne]]","v":"   B05.15 Glasfacadeentreprenør"},"   B05.15","Glasfacadeentreprenør"]
[{"$f":"Table14[[#This Row],['[B']]]&\" \"&Table14[[#This Row],[Emne]]","v":"   B05.16 Glarmester"},"   B05.16","Glarmester"]
[{"$f":"Table14[[#This Row],['[B']]]&\" \"&Table14[[#This Row],[Emne]]","v":"   B05.17 Gulventreprenør"},"   B05.17","Gulventreprenør"]
[{"$f":"Table14[[#This Row],['[B']]]&\" \"&Table14[[#This Row],[Emne]]","v":"   B05.18 Smed"},"   B05.18","Smed"]
[{"$f":"Table14[[#This Row],['[B']]]&\" \"&Table14[[#This Row],[Emne]]","v":"   B05.19 Blikkenslager"},"   B05.19","Blikkenslager"]
[{"$f":"Table14[[#This Row],['[B']]]&\" \"&Table14[[#This Row],[Emne]]","v":"   B05.20 Tagentreprenør"},"   B05.20","Tagentreprenør"]
[{"$f":"Table14[[#This Row],['[B']]]&\" \"&Table14[[#This Row],[Emne]]","v":"   B05.21 Isoleringsentreprenør"},"   B05.21","Isoleringsentreprenør"]
[{"$f":"Table14[[#This Row],['[B']]]&\" \"&Table14[[#This Row],[Emne]]","v":"   B05.22 Fugeentreprenør"},"   B05.22","Fugeentreprenør"]
[{"$f":"Table14[[#This Row],['[B']]]&\" \"&Table14[[#This Row],[Emne]]","v":"   B05.23 Elevatorentreprenør"},"   B05.23","Elevatorentreprenør"]
[{"$f":"Table14[[#This Row],['[B']]]&\" \"&Table14[[#This Row],[Emne]]","v":"   B05.24 VVS entreprenør"},"   B05.24","VVS entreprenør"]
[{"$f":"Table14[[#This Row],['[B']]]&\" \"&Table14[[#This Row],[Emne]]","v":"   B05.25 Ventilationsentreprenør"},"   B05.25","Ventilationsentreprenør"]
[{"$f":"Table14[[#This Row],['[B']]]&\" \"&Table14[[#This Row],[Emne]]","v":"   B05.26 El entreprenør"},"   B05.26","El entreprenør"]
[{"$f":"Table14[[#This Row],['[B']]]&\" \"&Table14[[#This Row],[Emne]]","v":"   B05.27 Kølingsentreprenør"},"   B05.27","Kølingsentreprenør"]
[{"$f":"Table14[[#This Row],['[B']]]&\" \"&Table14[[#This Row],[Emne]]","v":"   B05.29 Laboratorieentreprenør"},"   B05.29","Laboratorieentreprenør"]
[{"$f":"Table14[[#This Row],['[B']]]&\" \"&Table14[[#This Row],[Emne]]","v":"   B05.28 Rengøringsfirma"},"   B05.28","Rengøringsfirma"]
[{"$f":"Table14[[#This Row],['[B']]]&\" \"&Table14[[#This Row],[Emne]]","v":"   B05.29 AIA-entreprenør"},"   B05.29","AIA-entreprenør"]
[{"$f":"Table14[[#This Row],['[B']]]&\" \"&Table14[[#This Row],[Emne]]","v":"   B05.30 ADK-entreprenør"},"   B05.30","ADK-entreprenør"]
[{"$f":"Table14[[#This Row],['[B']]]&\" \"&Table14[[#This Row],[Emne]]","v":"   B05.31 BMS-entreprenør"},"   B05.31","BMS-entreprenør"]
[{"$f":"Table14[[#This Row],['[B']]]&\" \"&Table14[[#This Row],[Emne]]","v":"   B05.32 Inventarentreprenør"},"   B05.32","Inventarentreprenør"]
[{"$f":"Table14[[#This Row],['[B']]]&\" \"&Table14[[#This Row],[Emne]]","v":"   B05.33 Væksthusentreprenør"},"   B05.33","Væksthusentreprenør"]
[{"$f":"Table14[[#This Row],['[B']]]&\" \"&Table14[[#This Row],[Emne]]","v":"B07 Ejendomsforvalter"},"B07","Ejendomsforvalter"]
[{"$f":"Table14[[#This Row],['[B']]]&\" \"&Table14[[#This Row],[Emne]]","v":"   B07.01 Driftsherre"},"   B07.01","Driftsherre"]
[{"$f":"Table14[[#This Row],['[B']]]&\" \"&Table14[[#This Row],[Emne]]","v":"   B07.02 Ejendomsadministrator"},"   B07.02","Ejendomsadministrator"]
[{"$f":"Table14[[#This Row],['[B']]]&\" \"&Table14[[#This Row],[Emne]]","v":"   B07.03 Ejendomsservice"},"   B07.03","Ejendomsservice"]
[{"$f":"Table14[[#This Row],['[B']]]&\" \"&Table14[[#This Row],[Emne]]","v":"B12 Myndighed"},"B12","Myndighed"]
[{"$f":"Table14[[#This Row],['[B']]]&\" \"&Table14[[#This Row],[Emne]]","v":"   B12.01 Arbejdstilsyn"},"   B12.01","Arbejdstilsyn"]
[{"$f":"Table14[[#This Row],['[B']]]&\" \"&Table14[[#This Row],[Emne]]","v":"   B12.02 Brandmyndighed"},"   B12.02","Brandmyndighed"]
[{"$f":"Table14[[#This Row],['[B']]]&\" \"&Table14[[#This Row],[Emne]]","v":"   B12.03 Bygningsinspektorat"},"   B12.03","Bygningsinspektorat"]
[{"$f":"Table14[[#This Row],['[B']]]&\" \"&Table14[[#This Row],[Emne]]","v":"B16 Forsikringsselskab"},"B16","Forsikringsselskab"]
[{"$f":"Table14[[#This Row],['[B']]]&\" \"&Table14[[#This Row],[Emne]]","v":"B20 Forsyning og afledning"},"B20","Forsyning og afledning"]
[{"$f":"Table14[[#This Row],['[B']]]&\" \"&Table14[[#This Row],[Emne]]","v":"   B20.01 Gasforsyningsselskab"},"   B20.01","Gasforsyningsselskab"]
[{"$f":"Table14[[#This Row],['[B']]]&\" \"&Table14[[#This Row],[Emne]]","v":"   B20.02 El-forsyningsselskab"},"   B20.02","El-forsyningsselskab"]
[{"$f":"Table14[[#This Row],['[B']]]&\" \"&Table14[[#This Row],[Emne]]","v":"   B20.03 Vandværk"},"   B20.03","Vandværk"]
[{"$f":"Table14[[#This Row],['[B']]]&\" \"&Table14[[#This Row],[Emne]]","v":"   B20.04 Telefonselskab"},"   B20.04","Telefonselskab"]
[{"$f":"Table14[[#This Row],['[B']]]&\" \"&Table14[[#This Row],[Emne]]","v":"   B20.05 Kloakselskab"},"   B20.05","Kloakselskab"]
[{"$f":"Table14[[#This Row],['[B']]]&\" \"&Table14[[#This Row],[Emne]]","v":"   B20.06 Renovationsfirma"},"   B20.06","Renovationsfirma"]
[{"$f":"Table14[[#This Row],['[B']]]&\" \"&Table14[[#This Row],[Emne]]","v":"   B20.07 Forbrændingsanstalt"},"   B20.07","Forbrændingsanstalt"]
[{"$f":"Table14[[#This Row],['[B']]]&\" \"&Table14[[#This Row],[Emne]]","v":"   B20.08 Losseplads"},"   B20.08","Losseplads"]
[{"$f":"Table14[[#This Row],['[B']]]&\" \"&Table14[[#This Row],[Emne]]","v":"B21 Forskning og uddannelse"},"B21","Forskning og uddannelse"]
[{"$f":"Table14[[#This Row],['[B']]]&\" \"&Table14[[#This Row],[Emne]]","v":"   B21.01 Institut"},"   B21.01","Institut"]
[{"$f":"Table14[[#This Row],['[B']]]&\" \"&Table14[[#This Row],[Emne]]","v":"   B21.02 Fakultet"},"   B21.02","Fakultet"]

{"sheet":"Løbenummer","index":9,"n_rows":1000,"n_cols":1,"rows_kept":1000,"cut":false,"hidden":true,"merged":[]}
["Løbenummer"]
["001"]
["002"]
["003"]
["004"]
["005"]
["006"]
["007"]
["008"]
["009"]
["010"]
["011"]
["012"]
["013"]
["014"]
["015"]
["016"]
["017"]
["018"]
["019"]
["020"]
["021"]
["022"]
["023"]
["024"]
["025"]
["026"]
["027"]
["028"]
["029"]
["030"]
["031"]
["032"]
["033"]
["034"]
["035"]
["036"]
["037"]
["038"]
["039"]
["040"]
["041"]
["042"]
["043"]
["044"]
["045"]
["046"]
["047"]
["048"]
["049"]
["050"]
["051"]
["052"]
["053"]
["054"]
["055"]
["056"]
["057"]
["058"]
["059"]
["060"]
["061"]
["062"]
["063"]
["064"]
["065"]
["066"]
["067"]
["068"]
["069"]
["070"]
["071"]
["072"]
["073"]
["074"]
["075"]
["076"]
["077"]
["078"]
["079"]
["080"]
["081"]
["082"]
["083"]
["084"]
["085"]
["086"]
["087"]
["088"]
["089"]
["090"]
["091"]
["092"]
["093"]
["094"]
["095"]
["096"]
["097"]
["098"]
["099"]
["100"]
["101"]
["102"]
["103"]
["104"]
["105"]
["106"]
["107"]
["108"]
["109"]
["110"]
["111"]
["112"]
["113"]
["114"]
["115"]
["116"]
["117"]
["118"]
["119"]
["120"]
["121"]
["122"]
["123"]
["124"]
["125"]
["126"]
["127"]
["128"]
["129"]
["130"]
["131"]
["132"]
["133"]
["134"]
["135"]
["136"]
["137"]
["138"]
["139"]
["140"]
["141"]
["142"]
["143"]
["144"]
["145"]
["146"]
["147"]
["148"]
["149"]
["150"]
["151"]
["152"]
["153"]
["154"]
["155"]
["156"]
["157"]
["158"]
["159"]
["160"]
["161"]
["162"]
["163"]
["164"]
["165"]
["166"]
["167"]
["168"]
["169"]
["170"]
["171"]
["172"]
["173"]
["174"]
["175"]
["176"]
["177"]
["178"]
["179"]
["180"]
["181"]
["182"]
["183"]
["184"]
["185"]
["186"]
["187"]
["188"]
["189"]
["190"]
["191"]
["192"]
["193"]
["194"]
["195"]
["196"]
["197"]
["198"]
["199"]
["200"]
["201"]
["202"]
["203"]
["204"]
["205"]
["206"]
["207"]
["208"]
["209"]
["210"]
["211"]
["212"]
["213"]
["214"]
["215"]
["216"]
["217"]
["218"]
["219"]
["220"]
["221"]
["222"]
["223"]
["224"]
["225"]
["226"]
["227"]
["228"]
["229"]
["230"]
["231"]
["232"]
["233"]
["234"]
["235"]
["236"]
["237"]
["238"]
["239"]
["240"]
["241"]
["242"]
["243"]
["244"]
["245"]
["246"]
["247"]
["248"]
["249"]
["250"]
["251"]
["252"]
["253"]
["254"]
["255"]
["256"]
["257"]
["258"]
["259"]
["260"]
["261"]
["262"]
["263"]
["264"]
["265"]
["266"]
["267"]
["268"]
["269"]
["270"]
["271"]
["272"]
["273"]
["274"]
["275"]
["276"]
["277"]
["278"]
["279"]
["280"]
["281"]
["282"]
["283"]
["284"]
["285"]
["286"]
["287"]
["288"]
["289"]
["290"]
["291"]
["292"]
["293"]
["294"]
["295"]
["296"]
["297"]
["298"]
["299"]
["300"]
["301"]
["302"]
["303"]
["304"]
["305"]
["306"]
["307"]
["308"]
["309"]
["310"]
["311"]
["312"]
["313"]
["314"]
["315"]
["316"]
["317"]
["318"]
["319"]
["320"]
["321"]
["322"]
["323"]
["324"]
["325"]
["326"]
["327"]
["328"]
["329"]
["330"]
["331"]
["332"]
["333"]
["334"]
["335"]
["336"]
["337"]
["338"]
["339"]
["340"]
["341"]
["342"]
["343"]
["344"]
["345"]
["346"]
["347"]
["348"]
["349"]
["350"]
["351"]
["352"]
["353"]
["354"]
["355"]
["356"]
["357"]
["358"]
["359"]
["360"]
["361"]
["362"]
["363"]
["364"]
["365"]
["366"]
["367"]
["368"]
["369"]
["370"]
["371"]
["372"]
["373"]
["374"]
["375"]
["376"]
["377"]
["378"]
["379"]
["380"]
["381"]
["382"]
["383"]
["384"]
["385"]
["386"]
["387"]
["388"]
["389"]
["390"]
["391"]
["392"]
["393"]
["394"]
["395"]
["396"]
["397"]
["398"]
["399"]
["400"]
["401"]
["402"]
["403"]
["404"]
["405"]
["406"]
["407"]
["408"]
["409"]
["410"]
["411"]
["412"]
["413"]
["414"]
["415"]
["416"]
["417"]
["418"]
["419"]
["420"]
["421"]
["422"]
["423"]
["424"]
["425"]
["426"]
["427"]
["428"]
["429"]
["430"]
["431"]
["432"]
["433"]
["434"]
["435"]
["436"]
["437"]
["438"]
["439"]
["440"]
["441"]
["442"]
["443"]
["444"]
["445"]
["446"]
["447"]
["448"]
["449"]
["450"]
["451"]
["452"]
["453"]
["454"]
["455"]
["456"]
["457"]
["458"]
["459"]
["460"]
["461"]
["462"]
["463"]
["464"]
["465"]
["466"]
["467"]
["468"]
["469"]
["470"]
["471"]
["472"]
["473"]
["474"]
["475"]
["476"]
["477"]
["478"]
["479"]
["480"]
["481"]
["482"]
["483"]
["484"]
["485"]
["486"]
["487"]
["488"]
["489"]
["490"]
["491"]
["492"]
["493"]
["494"]
["495"]
["496"]
["497"]
["498"]
["499"]
["500"]
["501"]
["502"]
["503"]
["504"]
["505"]
["506"]
["507"]
["508"]
["509"]
["510"]
["511"]
["512"]
["513"]
["514"]
["515"]
["516"]
["517"]
["518"]
["519"]
["520"]
["521"]
["522"]
["523"]
["524"]
["525"]
["526"]
["527"]
["528"]
["529"]
["530"]
["531"]
["532"]
["533"]
["534"]
["535"]
["536"]
["537"]
["538"]
["539"]
["540"]
["541"]
["542"]
["543"]
["544"]
["545"]
["546"]
["547"]
["548"]
["549"]
["550"]
["551"]
["552"]
["553"]
["554"]
["555"]
["556"]
["557"]
["558"]
["559"]
["560"]
["561"]
["562"]
["563"]
["564"]
["565"]
["566"]
["567"]
["568"]
["569"]
["570"]
["571"]
["572"]
["573"]
["574"]
["575"]
["576"]
["577"]
["578"]
["579"]
["580"]
["581"]
["582"]
["583"]
["584"]
["585"]
["586"]
["587"]
["588"]
["589"]
["590"]
["591"]
["592"]
["593"]
["594"]
["595"]
["596"]
["597"]
["598"]
["599"]
["600"]
["601"]
["602"]
["603"]
["604"]
["605"]
["606"]
["607"]
["608"]
["609"]
["610"]
["611"]
["612"]
["613"]
["614"]
["615"]
["616"]
["617"]
["618"]
["619"]
["620"]
["621"]
["622"]
["623"]
["624"]
["625"]
["626"]
["627"]
["628"]
["629"]
["630"]
["631"]
["632"]
["633"]
["634"]
["635"]
["636"]
["637"]
["638"]
["639"]
["640"]
["641"]
["642"]
["643"]
["644"]
["645"]
["646"]
["647"]
["648"]
["649"]
["650"]
["651"]
["652"]
["653"]
["654"]
["655"]
["656"]
["657"]
["658"]
["659"]
["660"]
["661"]
["662"]
["663"]
["664"]
["665"]
["666"]
["667"]
["668"]
["669"]
["670"]
["671"]
["672"]
["673"]
["674"]
["675"]
["676"]
["677"]
["678"]
["679"]
["680"]
["681"]
["682"]
["683"]
["684"]
["685"]
["686"]
["687"]
["688"]
["689"]
["690"]
["691"]
["692"]
["693"]
["694"]
["695"]
["696"]
["697"]
["698"]
["699"]
["700"]
["701"]
["702"]
["703"]
["704"]
["705"]
["706"]
["707"]
["708"]
["709"]
["710"]
["711"]
["712"]
["713"]
["714"]
["715"]
["716"]
["717"]
["718"]
["719"]
["720"]
["721"]
["722"]
["723"]
["724"]
["725"]
["726"]
["727"]
["728"]
["729"]
["730"]
["731"]
["732"]
["733"]
["734"]
["735"]
["736"]
["737"]
["738"]
["739"]
["740"]
["741"]
["742"]
["743"]
["744"]
["745"]
["746"]
["747"]
["748"]
["749"]
["750"]
["751"]
["752"]
["753"]
["754"]
["755"]
["756"]
["757"]
["758"]
["759"]
["760"]
["761"]
["762"]
["763"]
["764"]
["765"]
["766"]
["767"]
["768"]
["769"]
["770"]
["771"]
["772"]
["773"]
["774"]
["775"]
["776"]
["777"]
["778"]
["779"]
["780"]
["781"]
["782"]
["783"]
["784"]
["785"]
["786"]
["787"]
["788"]
["789"]
["790"]
["791"]
["792"]
["793"]
["794"]
["795"]
["796"]
["797"]
["798"]
["799"]
["800"]
["801"]
["802"]
["803"]
["804"]
["805"]
["806"]
["807"]
["808"]
["809"]
["810"]
["811"]
["812"]
["813"]
["814"]
["815"]
["816"]
["817"]
["818"]
["819"]
["820"]
["821"]
["822"]
["823"]
["824"]
["825"]
["826"]
["827"]
["828"]
["829"]
["830"]
["831"]
["832"]
["833"]
["834"]
["835"]
["836"]
["837"]
["838"]
["839"]
["840"]
["841"]
["842"]
["843"]
["844"]
["845"]
["846"]
["847"]
["848"]
["849"]
["850"]
["851"]
["852"]
["853"]
["854"]
["855"]
["856"]
["857"]
["858"]
["859"]
["860"]
["861"]
["862"]
["863"]
["864"]
["865"]
["866"]
["867"]
["868"]
["869"]
["870"]
["871"]
["872"]
["873"]
["874"]
["875"]
["876"]
["877"]
["878"]
["879"]
["880"]
["881"]
["882"]
["883"]
["884"]
["885"]
["886"]
["887"]
["888"]
["889"]
["890"]
["891"]
["892"]
["893"]
["894"]
["895"]
["896"]
["897"]
["898"]
["899"]
["900"]
["901"]
["902"]
["903"]
["904"]
["905"]
["906"]
["907"]
["908"]
["909"]
["910"]
["911"]
["912"]
["913"]
["914"]
["915"]
["916"]
["917"]
["918"]
["919"]
["920"]
["921"]
["922"]
["923"]
["924"]
["925"]
["926"]
["927"]
["928"]
["929"]
["930"]
["931"]
["932"]
["933"]
["934"]
["935"]
["936"]
["937"]
["938"]
["939"]
["940"]
["941"]
["942"]
["943"]
["944"]
["945"]
["946"]
["947"]
["948"]
["949"]
["950"]
["951"]
["952"]
["953"]
["954"]
["955"]
["956"]
["957"]
["958"]
["959"]
["960"]
["961"]
["962"]
["963"]
["964"]
["965"]
["966"]
["967"]
["968"]
["969"]
["970"]
["971"]
["972"]
["973"]
["974"]
["975"]
["976"]
["977"]
["978"]
["979"]
["980"]
["981"]
["982"]
["983"]
["984"]
["985"]
["986"]
["987"]
["988"]
["989"]
["990"]
["991"]
["992"]
["993"]
["994"]
["995"]
["996"]
["997"]
["998"]
["999"]